Workbook

Sheet Recettes
A1: N° | B1: Recette | C1: Nb pers | D1: type plat | E1: Durée | F1: Préparation | G1: Ingrédients | H1: Ingrédient 1 | I1: Qtité 1 | J1: Unité 1 | K1: Ingrédient 2 | L1: Qtité 2 | M1: Unité 2 | N1: Ingrédient 3 | O1: Qtité 3 | P1: Unité 3 | Q1: Ingrédient 4 | R1: Qtité 4 | S1: Unité 4 | T1: Ingrédient 5 | U1: Qtité 5 | V1: Unité 5 | W1: Ingrédient 6 | X1: Qtité 6 | Y1: Unité 6 | Z1: Ingrédient 7 | AA1: Qtité 7 | AB1: Unité 7 | AC1: Ingrédient 8 | AD1: Qtité 8 | AE1: Unité 8 | AF1: Ingrédient 9 | AG1: Qtité 9 | AH1: Unité 9 | AI1: Ingrédient 10 | AJ1: Qtité 10 | AK1: Unité 10 | AL1: Ingrédient 11 | AM1: Qtité 11 | AN1: Unité 11 | AO1: Ingrédient 12 | AP1: Qtité 12 | AQ1: Unité 12 | AR1: Ingrédient 13 | AS1: Qtité 13 | AT1: Unité 13 | AU1: Ingrédient 14 | AV1: Qtité 14 | AW1: Unité 14 | AX1: Ingrédient 15 | AY1: Qtité 15 | AZ1: Unité 15 | BB1: 3
A2: 47 | B2: bananes flambées | C2: 4 | D2: Dessert | E2: 15 | F2: Epluchez et taillez les bananes en 3 tronçons (laissez entières si ce sont des frécinettes). Placez au congélateur pendant une heure. Dans une poêle, faites fondre le beurre et ajoutez le sucre roux. Mélangez puis ajoutez les bananes. Laissez cuire 5 minutes en retournant régulièrement les bananes. Râpez le citron vert dessus et pressez en le jus. Chauffez légèrement le rhum dans une casserole avant de verser sur les bananes et flambez. Saupoudrez d’un peu de sucre blond de canne. Dressez dans un grand plat et dégustez avec une boule de glace à la vanille ou au chocolat. | G2: ,bananes,beurre,sucre roux,rhum,citron vert | H2: bananes | I2: 4 | J2: unité(s) | K2: beurre | L2: 2 | M2: noix | N2: sucre roux | O2: 50 | P2: gramme(s) | Q2: rhum | R2: 10 | S2: ctl(s) | T2: citron vert | U2: 1 | V2: unité(s)
A3: 5 | B3: céleri rémoulade | C3: 6 | D3: Entrée | E3: 15 | F3: Épluchez le céleri et râpez-le en fins bâtonnets à la mandoline. Faites dégorger le céleri avec un peu de sel et le jus de citron. Faites cuire les deux œufs dans une casserole d’eau bouillante pendant 9 minutes. Passez-les sous l’eau froide, écalez-lez et séparez les jaunes de blancs. Écrasez les jaunes d’œufs dans un bol pour les réduire en pâte, ajoutez le jaune d’œuf cru. Incorporez la moutarde et l’huile comme pour une mayonnaise. Terminez par le vinaigre. Salez, poivrez. Mélangez le céleri à la sauce et réservez au réfrigérateur pendant 30 min avant de servir. Épluchez et taillez la pomme en bâtonnets à la dernière minute, parsemez-en la rémoulade. Servez. | G3: ,céleri,citron,pomme ,oeufs,jaune d'oeuf,moutarde,huile,vinaigre | H3: céleri rave | I3: 500 | J3: gramme(s) | K3: citron jaune | L3: 1 | M3: unité(s) | N3: pommes golden | O3: 1 | P3: unité(s) | Q3: œufs | R3: 2 | S3: unité(s) | T3: jaune d'œuf | U3: 1 | V3: unité(s) | W3: moutarde | X3: 1 | Y3: cas | Z3: huile végétale | AA3: 25 | AB3: ctl(s) | AC3: vinaigre rouge | AD3: 1 | AE3: cas
A4: 25 | B4: chou fleur et brocoli en gratin | C4: 4 | D4: Plat | E4: 20 | F4: Faites cuire le chou-fleur et le brocoli au cuit-vapeur (ou autre mode de cuisson au choix). 2 Pendant ce temps, préparez la béchamel : dans une casserole, faites fondre le beurre à feu doux. Ajoutez la farine tamisée et mélangez. Versez le lait en une seule fois et mélangez sans arrêt jusqu'à obtention d'une préparation épaisse. Incorporez la noix de muscade. 3 Préchauffez le four à 210°C (thermostat 7). 4 Beurrez un plat à gratin et disposez les choux encore chauds au fond du plat, en mêlant les 2 variétés. Parsemez de la moitié du comté. Nappez de béchamel et couvrez de l'autre moitié du comté. Laissez cuire 20 minutes. Pensez à terminer la cuisson en passant votre gratin sous le gril. | G4: ,chou fleur,brocoli,gros sel,comté rapé,beurre,farine,lait,noix de muscade | H4: chou fleur | I4: 1 | J4: unité(s) | K4: brocoli | L4: 1 | M4: unité(s) | N4: gros sel | O4: 10 | P4: gramme(s) | Q4: comté rapé | R4: 150 | S4: gramme(s) | T4: beurre | U4: 50 | V4: gramme(s) | W4: farine | X4: 50 | Y4: gramme(s) | Z4: lait | AA4: 50 | AB4: ctl(s) | AC4: noix de muscade | AD4: 1 | AE4: pincée(s)
A5: 51 | B5: coulis framboise | C5: 4 | D5: Préparation | E5: 10 | F5: 1 Mettez les framboises dans un robot avec le sucre semoule et le jus de citron. 2 Mixez le tout. Pour finir Passez au chinois et réservez au réfrigérateur jusqu'au moment de consommer. | G5: ,framboises,sucre,citron jaune | H5: framboises | I5: 150 | J5: gramme(s) | K5: sucre | L5: 50 | M5: gramme(s) | N5: citron jaune | O5: 1 | P5: unité(s)
A6: 31 | B6: crème brulée à la semoule | C6: 4 | D6: Dessert | E6: 15 | F6: Faites chauffez doucement le lait dans une casserole avec le sel, le sucre blond de canne et la cannelle, puis ajoutez la semoule en pluie fine. Fouettez sans cesse pendant 5 minutes. Arrêtez la cuisson en ajoutant la purée d’amandes. Mélangez. Répartissez la préparation dans un grand ramequin, laissez refroidir à température ambiante puis 30 minutes dans le réfrigérateur. Saupoudrez de sucre roux et faites caraméliser sous le grill du four. Dégustez sans attendre. | G6: ,lait entier,sucre de canne,cannelle,semoule fine,purée d’amande brute,cassonnade | H6: lait entier | I6: 50 | J6: ctl(s) | K6: sucre de canne | L6: 70 | M6: gramme(s) | N6: cannelle | O6: 2 | P6: pincée(s) | Q6: semoule fine | R6: 80 | S6: gramme(s) | T6: purée d’amande brute | U6: 50 | V6: gramme(s) | W6: cassonnade | X6: 50 | Y6: gramme(s) | AB6: ctl(s) | AC6: lait entier ou cru
A7: 29 | B7: far breton aux pruneaux | C7: 6 | D7: Dessert | E7: 15 | F7: 1 Faire macérer les pruneaux dans du thé. 2 Dans un grand saladier, verser la farine, 1 pincée de sel, et casser les oeufs, bien mélanger en évitant les grumeaux. 3 Ajouter lait, sucre et rhum et remuer encore. 4 Égoutter les pruneaux, les incorporer à la préparation. 5 Beurrer un moule, y verser la pâte et enfourner à four très chaud (thermostat 9, 270°C), puis au bout de 10 minutes baisser le four (thermostat 7, 210°C). Laisser cuire 35 minutes. | G7: ,farine,sucre,lait,oeufs,pruneaux,rhum,beurre salé,infusion de thé | H7: farine | I7: 250 | J7: gramme(s) | K7: sucre | L7: 175 | M7: gramme(s) | N7: lait | O7: 1 | P7: litre(s) | Q7: œufs | R7: 4 | S7: unité(s) | T7: pruneaux | U7: 150 | V7: gramme(s) | W7: rhum | X7: 10 | Y7: ctl(s) | Z7: beurre salé | AA7: 20 | AB7: gramme(s) | AC7: infusion de thé | AD7: 1 | AE7: sachet(s)
A8: 1 | B8: gateau au chocolat | C8: 6 | D8: Dessert | E8: 15 | F8: Préchauffez le four à 170°C (th.5-6). Faites fondre le chocolat au bain-marie. Ajoutez l’huile d’olive et la fleur de sel. Faites fondre le chocolat au bain-marie. Ajoutez l’huile d’olive et la fleur de sel. Cassez les oeufs dans la cuve du robot et fouettez 5 min au moins avec le sucre. Une fois le chocolat fondu, incorporer la poudre de noisette puis les oeufs fouettés. Dans un moule graissé avec un filet d’huile d’olive, disposez un fond de papier cuisson. Versez la préparation du gâteau et enfournez pour 30 minutes. Laissez refroidir au moins 2 heures à température ambiante, puis retournez le gâteau sur une assiette. Ôtez le papier cuisson, lustrez le gâteau avec un peu d’huile d’olive et saupoudrez de cacao en poudre. Tranchez et dégustez ! Astuce : pour un goût plus intense, vous pouvez opter pour une huile d’olive fruité vert. Laissez refroidir au moins 2 heures à température ambiante, puis retournez le gâteau sur une assiette. Ôtez le papier cuisson, lustrez le gâteau avec un peu d’huile d’olive et saupoudrez de cacao en poudre. Tranchez et dégustez ! | G8: ,chocolat noir,oeufs,sucre de canne,huile d’olive,poudre de noisettes,cacao,sel | H8: chocolat noir | I8: 250 | J8: gramme(s) | K8: œufs | L8: 5 | M8: unité(s) | N8: sucre de canne | O8: 150 | P8: gramme(s) | Q8: huile d'olive | R8: 15 | S8: ctl(s) | T8: poudre de noisettes | U8: 125 | V8: gramme(s) | W8: cacao | X8: 2 | Y8: cas | Z8: sel | AA8: 1 | AB8: pincée(s)
A9: 6 | B9: harengs pommes à l'huile | C9: 4 | D9: Entrée | E9: 15 | F9: Mélangez tous les ingrédients de la vinaigrette. Rincez les pommes de terre et faites-les cuire 20 minutes dans une grande casserole d’eau bouillante. Pendant ce temps, émincez les oignons nouveaux (bulbe et tige) et tranchez les radis à la mandoline. Égouttez les pommes de terre et coupez les plus grosses en deux dans la longueur. Réunissez les tranches de radis, les bulbes d’oignons émincés et les pommes de terre dans un saladier et mélangez le tout à chaud avec le ¾ de la vinaigrette. Laissez tiédir ou même refroidir. Tranchez les filets de harengs en biseaux et ajoutez-les à la salade. Versez le reste de vinaigrette et parsemez de tiges d’oignons nouveaux émincées. Salez, poivrez et servez aussitôt. | G9: ,filets de harengs,pommes de terre,radis,oignon nouveau,moutarde,vinaigre vin,huile d'olive | H9: filets de harengs | I9: 4 | J9: unité(s) | K9: pommes de terre | L9: 600 | M9: gramme(s) | N9: radis | O9: 0,5 | P9: botte(s) | Q9: oignon nouveau | R9: 2 | S9: unité(s) | T9: moutarde | U9: 1 | V9: cac | W9: vinaigre rouge | X9: 1 | Y9: cas | Z9: huile d'olive | AA9: 3 | AB9: cas
A10: 41 | B10: huîtres au kacha et à la pomme | C10: 4 | D10: Entrée | E10: 15 | F10: Faites fondre le beurre dans une poêle et ajoutez la kasha. Laissez griller pendant 10 minutes puis déglacez avec la sauce soja. Ajoutez le gingembre râpé et la coriandre concassée. Taillez la pomme en fin bâtonnets et arrosez du jus de citron vert. Ouvrez les huîtres, jetez la première eau et placez-en trois sur chaque assiette. Recouvrez d’un peu de kasha et quelques bâtonnets de pommes. | G10: ,huitres,kasha,pomme ,citron vert,beurre,sauce soja,gingembre,coriandre,poivre | H10: huitres | I10: 12 | J10: unité(s) | K10: kasha | L10: 50 | M10: gramme(s) | N10: pommes reinette | O10: 1 | P10: unité(s) | Q10: citron vert | R10: 1 | S10: unité(s) | T10: beurre | U10: 30 | V10: gramme(s) | W10: sauce soja | X10: 1 | Y10: cas | Z10: gingembre | AA10: 10 | AB10: gramme(s) | AC10: coriandre | AD10: 50 | AE10: feuille(s) | AF10: poivre | AG10: 1 | AH10: pincée(s)
A11: 7 | B11: boeuf bourguignon | C11: 6 | D11: Plat | E11: 20 | F11: Dans un saladier mélangez le vin, le marc de Bourgogne, le bouquet garni, les grains de poivre et 1 cuil. à soupe d’huile de tournesol. Epluchez les carottes, puis taillez-les en quartier et ajoutez-les à la marinade. Retirez la couenne du lard, coupez-le en lardons. Pelez les oignons, émincez grossièrement. Dans une cocotte, faites-les revenir avec les lardons dans 20 g de beurre et 1 cuil. à soupe d’huile jusqu’à ce qu’ils soient dorés. Débarrassez le tout dans une assiette. Dans la même cocotte, faites revenir les cubes de viande de tous les côtés. Remettez les oignons et les lardons. Versez la marinade avec le bouquet garni. Portez à ébullition, puis ajoutez la gousse d’ail épluchée. Couvrez et laissez mijoter pendant 3h à feu doux. Saupoudrez de persil haché et servez | G11: ,langue de boeuf,bouillon de volaille,échalottes,vin blanc,beurre,cornichons au vinaigre,farine,moutarde,persil haché,poivre,sel | H11: joue de bœuf | I11: 0.7 | J11: kg(s) | K11: paleron | L11: 0.7 | M11: kg(s) | N11: lardons | O11: 200 | P11: gramme(s) | Q11: beurre | R11: 30 | S11: gramme(s) | T11: carottes | U11: 3 | V11: unité(s) | W11: oignon | X11: 3 | Y11: unité(s) | Z11: ail | AA11: 1 | AB11: gousse(s) | AC11: bouquet garni | AD11: 1 | AE11: unité(s) | AF11: vin rouge bourgogne | AG11: 1 | AH11: litre(s) | AI11: marc de Bourgogne | AJ11: 5 | AK11: ctl(s) | AL11: grains de poivre noir | AM11: 5 | AN11: grain(s)
A12: 39 | B12: tartare de melon | C12: 4 | D12: Entrée | E12: 10 | F12: 1 Lavez et découpez le concombre en quatre dans la hauteur. Épépinez et coupez-le en dés. 2 Épluchez, épépinez, taillez le melon en dés. 3 Mélangez le concombre, le melon et la feta coupée en dés. Ajoutez le jus de citron et l'huile. Salez, poivrez et mélangez délicatement. 4 Remplissez quatre ramequins avec la préparation. Tassez et retournez sur les assiettes. 5 Parsemez de menthe ciselée et servez frais. | G12: ,melon,porto,jambon cru | H12: melon | I12: 1 | J12: unité(s) | K12: concombre | L12: 1 | M12: unité(s) | N12: féta | O12: 200 | P12: gramme(s) | Q12: citron vert | R12: 1 | S12: unité(s) | T12: huile d'olive | U12: 2 | V12: cas | W12: menthe | X12: 1 | Y12: botte(s)
A13: 8 | B13: moules au cidre | C13: 2 | D13: Plat | E13: 20 | F13: Dans une grande casserole, verser un filet d'huile d'olive et y faire revenir 4 - 5 minutes les échalotes émincées avec le fenouil coupé en fines lamelles et les 2 feuilles de laurier. Peler et couper la tomate puis l'ajouter dans la casserole. Ajouter le thym citronné, le cidre, l'eau, le poivre et le sel. Laisser réduire à feu moyen 15-20 min. Pendant ce temps, peler et écraser les gousses d'ail, ciseler le bouquet de persil et ajouter au fromage frais avec un peu de sel et poivre. Une fois le bouillon légèrement réduit, ajouter une cuillère à soupe de votre préparation de fromage frais dans le bouillon. Ajouter le rhum et mettre le feu au maximum. Une fois que ça cuit à gros bouillon, ajouter les moules et mélanger délicatement pour ne pas casser les coquilles. Dès que toutes les moules sont ouvertes (3-5 minutes de cuisson) retirer la casserole du feu. A l'aide d'un écumoire, sortir les moules du bouillon, les dresser dans des assiettes creuses bien chaudes et, avec la pointe d'un couteau à tartiner, mettre une pointe de fromage frais dans chaque moule (oui, je sais, c'est long à faire, mais ça vaut vraiment la peine de se décarcasser ^^). Une fois cette opération faite, reversez le bouillon chaud par dessus et servir avec des frites. | G13: ,cidre,persil,moules,crème fraiche,jaunes d'oeufs,échalottes | H13: moules | I13: 1 | J13: kg(s) | K13: fenouil | L13: 1 | M13: unité(s) | N13: huile d'olive | O13: 1 | P13: cas | Q13: échalotte | R13: 2 | S13: gousse(s) | T13: tomates | U13: 1 | V13: unité(s) | W13: laurier | X13: 2 | Y13: feuille(s) | Z13: thym | AA13: 10 | AB13: gramme(s) | AC13: fromage frais | AD13: 150 | AE13: gramme(s) | AF13: ail | AG13: 2 | AH13: gousse(s) | AI13: persil plat | AJ13: 1 | AK13: botte(s) | AL13: cidre | AM13: 50 | AN13: ctl(s) | AO13: rhum | AP13: 10 | AQ13: ctl(s)
A14: 9 | B14: oeufs à la neige | C14: 8 | D14: Dessert | E14: 20 | F14: 1 Préparer la crème anglaise. Fendre les gousses de vanille en deux. Les chauffer avec le lait. Dès que le lait commence à bouillir, le retirer du feu. Sortir les gousses de vanille. Battre 5 minutes les 8 jaunes d'oeufs et 150 g de sucre. Verser doucement le lait encore chaud en fouettant. Réchauffer le tout à feu doux en remuant. Dès que la mousse disparaît de la surface, retirer du feu. 2 Pour la neige : fouetter fermement les 8 blancs d'oeufs en neige en y ajoutant une pincée de sel. Une fois que la neige est ferme, verser 140 g de sucre. Fouetter 1 minute. Dans une sauteuse, verser 5 cm d'eau. Faire frémir l'eau. Poser des boules de neige dans l'eau (attention, éviter que les boules se touchent ! Faire cuire 2 minutes, les retourner. Les laisser encore 1 minute. Les ôter puis les égoutter délicatement. 3 Le caramel : le préparer juste avant de servir. Chauffer 75 g de sucre avec 1 c. À soupe d'eau. Laisser dorer le caramel. Poser alors la casserole sur une surface froide. 4 Déposer la neige sur la crème anglaise et faire couler le caramel en minces filets. | G14: ,oeufs,Lait | H14: lait | I14: 1 | J14: litre(s) | K14: vanille | L14: 2 | M14: gousse(s) | N14: œufs | O14: 8 | P14: unité(s) | Q14: sucre | R14: 350 | S14: gramme(s)
A15: 10 | B15: oeufs mimosa au thon | C15: 4 | D15: Entrée | E15: 10 | F15: 1 Placez les œufs dans une casserole, couvrez-les d’eau froide avec une pincée de gros sel (cela permet que la coquille des œufs n’éclate pas à la cuisson). 2 Faites chauffer l’eau. A partir de l’ébullition, laissez durcir les œufs 10-12 minutes. Égouttez-les et passez-les sous l’eau froide pour arrêter la cuisson. Laissez-les refroidir 1h à température ambiante. 3 Écalez chaque œuf puis coupez-les dans le sens de la longueur. Dans un saladier, récupérez tous les jaunes. 4 Égouttez le thon puis ajoutez-le aux jaunes avec la mayonnaise. Avec une fourchette, écrasez le tout. Salez et poivrez. 5 Avec une petite cuillère, farcissez les blancs avec les rillettes jaunes d’œuf-thon. Placez-les sur un plat de service. Saupoudrez le tout de ciboulette ciselée. Placez au frais (au moins 2h) jusqu’au moment de passer à table. | G15: ,oeufs,mayonnaise | H15: œufs | I15: 6 | J15: unité(s) | K15: thon | L15: 200 | M15: gramme(s) | N15: mayonnaise | O15: 2 | P15: cas | Q15: ciboulette | R15: 1 | S15: botte(s)
A16: 11 | B16: omelette au lard | C16: 1 | D16: Plat | E16: 10 | F16: Que le jambon soit cru ou cuit, le lard, fumé ou demi-sel, les couper en petits dés et faire revenir au beurre 2 à 3 min. Verser les dés de jambon ou de lard passés à la poêle, beurre de cuisson compris, dans le saladier avec les œufs déjà battus. Procéder comme pour une omelette légère. | G16: ,oeufs,poitrine fumée | H16: œufs | I16: 2 | J16: unité(s) | K16: lard fumé | L16: 100 | M16: gramme(s) | N16: poivre | O16: 1 | P16: pincée(s)
A17: 12 | B17: omelette aux champignons | C17: 6 | D17: Plat | E17: 10 | F17: 1 Pressez le demi citron. 2 Coupez la partie sableuse du pied et nettoyez les champignons à l'aide d'un essuie-tout humide. Coupez les en lamelles fines et arrosez-les du jus de citron. Faites dorer les champignons dans un peu de beurre, du sel, du poivre. Laissez l'eau s'évaporer. 3 Cassez les œufs dans une terrine et battez les avec une fourchette. Lavez et hachez le persil. 4 Faites chauffer le beurre dans la poêle. Une fois qu'il est fondu, versez les œufs battus et ajoutez les champignons. Faîtes cuire jusqu'à obtenir la consistance voulue. 5 Repliez l'omelette sur elle même et faîtes-la glisser dans un plat de service. | G17: ,oeufs,champignons pleurotte,huile,poivre,sel | H17: œufs | I17: 12 | J17: unité(s) | K17: champignons pleurotte | L17: 300 | M17: gramme(s) | N17: citron jaune | O17: 0.5 | P17: unité(s) | Q17: persil plat | R17: 1 | S17: botte(s) | T17: beurre | U17: 50 | V17: gramme(s)
A18: 13 | B18: omelette sans oeufs | C18: 2 | D18: Plat | E18: 10 | F18: Éplucher et hacher l’oignon et l’ail. Brosser et découper les champignons en tranches. Hacher les herbes fraîches et réserver. Dans une poêle bien épaisse et généreusement huilée, faire revenir l’oignon et l’ail jusqu’à ce qu’il dorent. Ajouter les champignons et cuire encore quelques minutes à feu moyen . Pendant ce temps, mélanger la farine de pois chiche, le sel, le poivre et le curcuma dans un saladier. Y verser ensuite l’huile d’olive et ajouter l’eau progressivement en mélangeant bien à l’aide d’un fouet. Retirer les champignons du feu, les ajouter ainsi que les herbes fraîches et mélanger. Huiler à nouveau la même poêle, attendre qu’elle soit bien chaude et y verser la préparation. Couvrir et laisser cuire à feu tout doux à couvert pendant environ 10 minutes. Retourner éventuellement à l’aide d’une large spatule et cuire encore quelques minutes l’autre face. Astuce : en ajoutant un peu de tofu soyeux qu’on trouve en magasin bio, on obtient une texture moins sèche encore plus proche de l’omelette. Servir immédiatement avec une portion de crudités. | G18: ,farine pois chiche,fromage en dés,farine de mais,eau,huile d'olive,oignons | H18: farine de pois chiche | I18: 100 | J18: gramme(s) | K18: oignon | L18: 50 | M18: gramme(s) | N18: poivre | O18: 1 | P18: pincée(s) | Q18: curcuma | R18: 1 | S18: pincée(s) | T18: huile d'olive | U18: 2 | V18: cas | W18: coriandre | X18: 10 | Y18: feuille(s)
A19: 34 | B19: panacotta fraise | C19: 4 | D19: Dessert | E19: 10 | F19: 1 Dans une casserole, verser la crème fraîche, le lait, le sucre et la gousse de vanille fendue en deux. Remuer jusqu'à ébullition. 2 Pendant ce temps faire ramollir la gélatine dans de l'eau froide. 3 Insérer les feuilles de gélatine ramollies dans la casserole et remuer très vite de façon à bien les diluer. 4 Une fois la préparation bien mélangée, verser dans des petits ramequins et laisser au réfrigérateur pendant au moins 4 heures. 5 Lorsque la panacotta est bien prise répartir des fraises sur le dessus. | G19: ,sucre,gélatine,vanille,fraises,crème liquide,menthe | H19: crème liquide | I19: 20 | J19: ctl(s) | K19: lait | L19: 30 | M19: ctl(s) | N19: sucre | O19: 50 | P19: gramme(s) | Q19: gélatine | R19: 3 | S19: feuille(s) | T19: vanille | U19: 1 | V19: gousse(s) | W19: fraises | X19: 150 | Y19: gramme(s)
A20: 37 | B20: paté de lapin | C20: 10 | D20: Entrée | E20: 30 | F20: 1 Désosser le lapin et le faire mariner au frais 48 heures, (sauf le foie qui est à réserver au frais). 2 Egoutter le lapin, (garder le jus de la marinade). Mixer le foie et le hachis à la machine à viande. Ebouillanter le lapin et le lard (garder une partie pour la découpe). 3 Mélanger le tout et y ajouter les oeufs, le Madère (ou Cognac), la farine, la noix de muscade, le sel et le poivre. Bien mélanger en incorporant également le lard gras découpé en fines lamelles. Goûter et rectifier au besoin l'assaisonnement. 4 Etaler dans la terrine. Mettre le couvercle. Cuire à 150°C au bain-marie. 5 Laisser refroidir deux jours (si possible). Démouler et découper en tranches très fines, si possible au couteau électrique (les tranches sont plus belles). 6 Décorer de gelée, de cornichons, d'oignons au vinaigre (décoré de paprika). Servir de la gelée en accompagnement. | G20: ,paté de lapin,lard gras,hachis de porc,oeufs,alcool madère,farine,noix de muscade,vin blanc,ail,échalotte | H20: lapin | I20: 1 | J20: kg(s) | K20: lard gras | L20: 300 | M20: gramme(s) | N20: hachis de porc | O20: 500 | P20: gramme(s) | Q20: œufs | R20: 2 | S20: unité(s) | T20: vin de madère | U20: 4 | V20: cas | W20: farine | X20: 50 | Y20: gramme(s) | Z20: noix de muscade | AA20: 1 | AB20: cac | AC20: vin blanc | AD20: 20 | AE20: ctl(s) | AF20: ail | AG20: 1 | AH20: gousse(s) | AI20: échalotte | AJ20: 3 | AK20: gousse(s)
A21: 14 | B21: pates à la tomate | C21: 4 | D21: Plat | E21: 10 | F21: 1 Laver la courgette et la tomate et les couper en tranches. Émincer l'oignon. Enlever la peau du chorizo et le couper en tranches. 2 Dans un wok, avec un peu de matière grasse, à feu assez fort, faire revenir la courgette et l'oignon pendant 2 min. Ajouter la tomate, le chorizo, l'ail, la sauce soja, le piment. Mélanger et laisser cuire 5min à feu moyen et à couvert. Ajouter le reste de pâtes, mélanger et poursuivre la cuisson 3 min. Servir avec un peu de persil et du parmesan. 3 Pour moi, c'est le repas idéal et vite préparé, il suffit de penser à dégeler un reste de pâtes. Ensuite, vous l'accommodez de légumes que vous avez sous la main (navet, poireau, carotte...) et de viande (reste de poulet, gigot, rôti...). Lorsque je fais des pâtes fraîches, j'en cuis toujours un peu plus pour pouvoir en congeler pour les soirs où je n'ai pas trop envie de me casser la tête à cuisiner... | G21: ,courgette,tomate,oignon,ail,sauce soja,pâte piment,chorizo,parmesan,persil | H21: courgette | I21: 1 | J21: unité(s) | K21: tomates | L21: 1 | M21: unité(s) | N21: oignon | O21: 1 | P21: unité(s) | Q21: ail | R21: 1 | S21: gousse(s) | T21: sauce soja | U21: 1 | V21: cas | W21: piment cayenne | X21: 1 | Y21: cac | Z21: chorizo | AA21: 200 | AB21: gramme(s) | AC21: parmesan | AD21: 1 | AE21: cas | AF21: persil plat | AG21: 5 | AH21: feuille(s)
A22: 15 | B22: pates aux pétoncles et beurre d'escargot | C22: 4 | D22: Plat | E22: 10 | F22: 1 Réunir tous les ingrédients, décongeler les pétoncles. 2 Chauffer de l'eau salée à ébullition. Après les avoir rincer, plonger les pétoncles dans l'eau bouillante 1 minute, égoutter. 3 Dans le même récipient mettre de l'eau à chauffer(suffisamment). A ébullition, saler, ajouter les graines de fenouil et mettre les pâtes à cuire (selon le temps recommandé, environ 6 minutes). 4 Quand les pâtes sont cuites, les égoutter rapidement et les remettre dans le récipient (chaud). Ajouter les pétoncles et le beurre d'escargot. 5 Mettre le récipient sur feu doux, mélanger doucement, puis assaisonner (si nécessaire ajouter du sel, et poivrer selon votre goût). 6 Quand le beurre d'escargot est fondu entièrement, vous pouvez servir au plat ou à l'assiette. | G22: ,tagliatelles,pétoncles,beurre escargot,graines fenouil | H22: tagliatelles | I22: 500 | J22: gramme(s) | K22: pétoncles | L22: 400 | M22: gramme(s) | N22: beurre d'escargot | O22: 100 | P22: gramme(s) | Q22: graines fenouil | R22: 100 | S22: gramme(s)
A23: 27 | B23: pates carbonara | C23: 4 | D23: Plat | E23: 10 | F23: 1 Faites rissoler la pancetta à sec, à feu vif, jusqu'à ce qu'elle dore. Réserver au chaud sans jeter la graisse. 2 Faites cuire les pâtes al dente dans un grand volume d'eau bouillante salée. Pendant ce temps, battez les oeufs entiers et les jaunes avec la moitié du mélange pecorino-parmesan. Poivrez généreusement. 3 Egouttez les pâtes en prenant soin de garder 1 dl environ d'eau de cuisson au fond de la marmite. Reversez les pâtes dans la marmite chaude, ajoutez la pancetta et sa graisse, puis le mélange oeuf-fromage et remuez vivement (hors du feu) : avec la chaleur, les oeufs et l'eau de cuisson vont former une sauce onctueuse. 4 Ajoutez alors le reste de fromage râpé, mélangez une dernière fois et servez immédiatement. | G23: ,pâtes spaghetti,œufs,parmesan,pancetta,jaune d' œuf,poivre,sel | H23: pâtes spaghetti | I23: 500 | J23: gramme(s) | K23: œufs | L23: 2 | M23: unité(s) | N23: parmesan | O23: 100 | P23: gramme(s) | Q23: pancetta | R23: 200 | S23: gramme(s) | T23: jaune d' œuf | U23: 4 | V23: unité(s) | W23: poivre | X23: 1 | Y23: pincée(s) | Z23: sel | AA23: 1 | AB23: pincée(s)
A24: 28 | B24: pizza jambon fromage | C24: 4 | D24: Plat | E24: 15 | F24: 1 Préparer la pâte : dans un robot, mettre la farine, le sel et la levure, mélanger pour bien répartir. Ajouter l'eau tiède et pétrir jusqu'à obtenir une boule. Ajouter les 3 cuillères à soupe d'huile d'olive et pétrir pour bien l'incorporer à la pâte. 2 Une fois la pâte bien souple et non collante, la mettre dans un saladier, recouvrir d'un torchon et laisser reposer 2 heures dans un endroit chaud. 3 Huiler légèrement une lèchefrite. Etaler la pâte sur le plan de travail fariné à l'aide d'un rouleau à pâtisserie aux dimensions du plat. 4 Déposer la pâte dans la lèchefrite, étaler dessus la sauce tomates, mettre un peu d'origan, puis répartir le jambon et la mozzarella coupés en dés. Finir avec le fromage râpé, remettre un peu d'herbes. 5 Allumer le four à 250°C, et laisser la pizza à température ambiante pendant que le four chauffe (ça permet à la pâte de continuer à lever un peu). Une fois le four chaud, enfourner la pizza pour environ 20 à 25 minutes. Déguster dès la sortie du four. | G24: ,farine,huile d'olive,jambon blanc,huile d'olive,emmental,levure boulangère,sauce tomate,mozzarella,origan | H24: farine | I24: 250 | J24: gramme(s) | K24: huile d'olive | L24: 3 | M24: cas | N24: jambon blanc | O24: 2 | P24: tranche(s) | Q24: huile d'olive | R24: 2 | S24: cas | T24: emmental | U24: 100 | V24: gramme(s) | W24: levure boulangère | X24: 1 | Y24: sachet(s) | Z24: sauce tomate | AA24: 400 | AB24: gramme(s) | AC24: mozzarella | AD24: 2 | AE24: boule(s) | AF24: origan | AG24: 1 | AH24: pincée(s)
A25: 36 | B25: plateau de fromages | C25: 10 | D25: Dessert | E25: 5 | F25: Déballez, servez. | G25: ,bleu de bresse,roquefort,camembert,comté,fromage de chèvre | H25: bleu de bresse | I25: 1 | J25: unité(s) | K25: roquefort | L25: 250 | M25: gramme(s) | N25: camembert | O25: 1 | P25: unité(s) | Q25: comté | R25: 1 | S25: unité(s) | T25: fromage de chèvre | U25: 1 | V25: unité(s)
A26: 16 | B26: gâteau aux pommes-poires | C26: 6 | D26: Dessert | E26: 15 | F26: 1 Préchauffer le four à 200°C (thermostat 6-7). Tamiser ensemble la farine, la levure chimique et le sel. Battre les oeufs avec le sucre jusqu'à ce que le mélange mousse et pâlisse. Ajouter alors le beurre préalablement fondu, le lait et l'arôme vanille. Fouetter de nouveau. Ajouter le mélange de farine progressivement, sans cesser de battre. 2 Diviser la quantité de pâte obtenue de manière plus ou moins égale dans deux saladiers différents. Peler, retirer le coeur et épépiner les pommes. Les couper en deux puis les trancher très finement à la mandoline. Au fur et à mesure, les jeter dans un des deux saladiers, en remuant pour les imbiber de pâte (cela évite que les tranches ne s'oxydent). Faire de même pour les poires, dans l'autre saladier. 3 Beurrer et fariner un moule carré de 20 cm de côté (ou autre). Verser d'abord le contenu du saladier aux pommes, lisser. Verser par-dessus le contenu du saladier aux poires. Lisser de nouveau. Enfourner pour 35 minutes à 200°C (thermostat 6-7). Laisser tiédir dans le moule avant de saupoudrer de sucre glace et de découper en 6 rectangles (ou 9 carrés). | G26: ,pommes golden,poires,farine,sucre,beurre,œufs,levure chimique,arome vanille | H26: pommes golden | I26: 3 | J26: unité(s) | K26: poire | L26: 3 | M26: unité(s) | N26: farine | O26: 50 | P26: gramme(s) | Q26: sucre | R26: 50 | S26: gramme(s) | T26: beurre | U26: 20 | V26: gramme(s) | W26: œufs | X26: 2 | Y26: unité(s) | Z26: levure chimique | AA26: 1 | AB26: sachet(s) | AC26: arome vanille | AD26: 1 | AE26: cas
A27: 17 | B27: pommes au four | C27: 4 | D27: Dessert | E27: 10 | F27: 1 Faire macérer les raisins secs, durant une heure environ, dans le calvados. 2 Laver les pommes, les évider avec un vide-pommes pour enlever le trognon et tous les pépins alentours. Les piquer de part en part, avec une fourchette, afin d’éviter qu’elles éclatent à la cuisson. Les disposer dans un plat à four beurré, pouvant ensuite aller sur le feu (gaz, vitrocéramique...). Préchauffer le four à 180°. 3 Dans un saladier, mélanger les raisins égouttés (conserver l’alcool) les noix hachées, la poudre d’amandes, 50 g de beurre mou, le zeste râpé de l’orange, le miel et la cassonade. 4 Farcir les pommes du mélange (s’aider du manche d’un couteau à bout rond, pour bien faire pénétrer et tasser la préparation, à l’intérieur des pommes). Disposer une petite noix de beurre sur chacune des pommes et enfourner pour 30 minutes. 5 Pour servir, poser les pommes dans des coupelles. Dans le plat dans lequel elles ont cuit, verser le jus de l’orange ayant servi pour les zestes, mêlé au calvados conservé. Faire bouillir sur feu assez vif, afin de faire réduire le tout. En napper les pommes et servir tiède. | G27: ,pommes Reinette,orange,raisins secs,cerneaux noix,poudre amande,calvados,miel,cassonnade,beurre | H27: pommes reinette | I27: 4 | J27: unité(s) | K27: orange | L27: 1 | M27: unité(s) | N27: raisins secs | O27: 40 | P27: gramme(s) | Q27: cerneaux noix | R27: 25 | S27: gramme(s) | T27: poudre d'amande | U27: 25 | V27: gramme(s) | W27: calvados | X27: 5 | Y27: ctl(s) | Z27: miel | AA27: 1 | AB27: cas | AC27: cassonnade | AD27: 20 | AE27: gramme(s) | AF27: beurre | AG27: 60 | AH27: gramme(s)
A28: 18 | B28: purée de pommes de terre et carotte | C28: 4 | D28: Plat | E28: 10 | F28: 1 Dans une casserole d’eau salée, cuire pendant environ 25-30 minutes les pommes de terre préalablement épluchées avec les carottes coupées en rondelles. 2 Égoutter les pommes de terre et les carottes puis les passer au presse-purée. Incorporer le beurre coupé en morceaux et ajouter la crème fraîche. Saler, poivrer et parsemer de noix de muscade. Bien mélanger. | G28: ,pommes de terre,carottes,beurre,crème fraiche,noix de muscade | H28: pommes de terre | I28: 1 | J28: kg(s) | K28: carottes | L28: 400 | M28: gramme(s) | N28: beurre | O28: 50 | P28: gramme(s) | Q28: crème fraiche | R28: 2 | S28: cas | T28: noix de muscade | U28: 1 | V28: pincée(s)
A29: 19 | B29: quiche lorraine | C29: 6 | D29: Plat | E29: 15 | F29: 1 Préchauffer le four sur thermostat 6 (180°C). Dérouler la pâte dans un moule à tarte et y faire de petits trous avec une fourchette. 2 Émincer l'oignon. Mettre l'oignon et les lardons dans une poêle et les faire cuire à feu vif. 3 Dans un récipient, battre en omelette les 4 œufs à l'aide d'une fourchette. Y ajouter la crème fraîche et mélanger toujours avec la fourchette. Ajouter le comté râpé puis le persil, mélanger. Saler, poivrer et mettre un peu de noix de muscade râpée. 4 Quand les lardons et les oignons ont bien doré, les ajouter à la préparation précédente et mélanger. 5 Verser la préparation ainsi obtenue dans le moule à tarte et mettre au four pendant 20 minutes sur thermostat 6 (180°C). | G29: ,Pate feullettée,oeufs,crème liquide,lardons,comté,persil,oignons,noix de muscade | H29: pate feuilletée | I29: 1 | J29: unité(s) | K29: œufs | L29: 4 | M29: unité(s) | N29: crème liquide | O29: 20 | P29: ctl(s) | Q29: lardons | R29: 200 | S29: gramme(s) | T29: comté | U29: 100 | V29: gramme(s) | W29: persil plat | X29: 10 | Y29: feuille(s) | Z29: oignon | AA29: 1 | AB29: unité(s) | AC29: noix de muscade | AD29: 1 | AE29: pincée(s)
A30: 45 | B30: rillettes de saumon | C30: 6 | D30: Entrée | E30: 10 | F30: Cuire le saumon frais. Pendant ce temps découper le saumon fumé en dés. Emietter le saumon frais cuit. Mélanger dans un saladier les dés de saumon fumé et le saumon frais. Ajouter le beurre pommade, l'oeuf, l'huile d'olive, le persil, l'aneth ; saler légèremment, poivrer. Mélanger le tout à la fourchette et faire prendre une nuit au réfrigérateur. Servir sur des toasts. Astuce originale : remplacer le pain par des endives. | G30: ,saumon,saumon fumé,crème fraiche,yaourt,citron,aneth | H30: saumon | I30: 200 | J30: gramme(s) | K30: saumon fumé | L30: 100 | M30: gramme(s) | N30: jaune d'œuf | O30: 1 | P30: unité(s) | Q30: beurre pommade | R30: 125 | S30: gramme(s) | T30: persil plat | U30: 10 | V30: feuille(s) | W30: aneth | X30: 1 | Y30: cas | Z30: citron jaune | AA30: 1 | AB30: cas | AC30: huile d'olive | AD30: 1 | AE30: cas | AF30: endives | AG30: 1 | AH30: unité(s)
A31: 20 | B31: roti de porc | C31: 6 | D31: Plat | E31: 10 | F31: 1 Faire revenir le rôti sur chaque face pour dorer la viande. 2 Faire dorer les oignons et les tomates ainsi que l’ail puis ajouter le rôti et couvrir à moitié d’eau. Ajouter le fond de veau ou les bouillons de boeuf. Puis saler et poivrer. 3 Laisser cuire pendant 80 minutes à feu moyen et couvrir. Retourner et arroser le rôti toutes les 15 minutes pour qu’il cuise de tous les côtés. A la dernière rotation, mettre les champignons. 4 A la fin, sortir le rôti et le couper en tranches moyennes et servir avec des pâtes ou des légumes ou encore des frites selon les goûts. | G31: ,roti de porc,huile,ail,petits oignons,fond de veau,tomates,champignons paris,sel,poivre | H31: roti de porc | I31: 1,5 | J31: kg(s) | K31: huile végétale | L31: 20 | M31: ctl(s) | N31: ail | O31: 4 | P31: gousse(s) | Q31: oignon nouveau | R31: 5 | S31: unité(s) | T31: fond de veau | U31: 3 | V31: cas | W31: tomates | X31: 2 | Y31: unité(s) | Z31: champignons paris | AA31: 250 | AB31: gramme(s) | AC31: sel | AD31: 2 | AE31: pincée(s) | AF31: poivre | AG31: 1 | AH31: pincée(s)
A32: 3 | B32: salade d'avocat et crevettes | C32: 1 | D32: Entrée | E32: 10 | F32: 1 Disposez les feuilles de laitue dans une assiette. 2 Ajoutez les crevettes décortiquées, l'avocat coupé en dés, les tomates cerises coupées en deux et les rondelles de concombre. 3 Assaisonnez avec l'ail, la ciboulette, le sel, le poivre, un filet de citron et une cuillère d'huile d'olives. | G32: ,laitue,crevettes,avocat,tomates cerises,concombre,ail,citron,ciboulette | H32: laitue | I32: 4 | J32: feuille(s) | K32: crevettes | L32: 12 | M32: unité(s) | N32: avocat | O32: 0,5 | P32: unité(s) | Q32: tomates cerise | R32: 3 | S32: unité(s) | T32: concombre | U32: 50 | V32: gramme(s) | W32: ail | X32: 1 | Y32: gousse(s) | Z32: citron jaune | AA32: 0,5 | AB32: unité(s) | AC32: ciboulette | AD32: 15 | AE32: gramme(s)
A33: 44 | B33: salade de pommes de terre | C33: 5 | D33: Entrée | E33: 15 | F33: 1 Laver les pommes de terre et les laisser tremper au moins 15 minutes dans de l'eau froide. Les faire cuire avec la peau, laisser refroidir. 2 Faire cuire les œufs 9 minutes. Faire revenir les lardons sans matière grasse. Débarrasser sur du papier absorbant. 3 Laver les tomates cerises et les couper en 2. Détailler le comté. Éplucher les pommes de terre, les couper en rondelles ou en dés. Écaler les œufs et les couper en 4. 4 Réunir tous les ingrédients dans un saladier, saler, poivrer et arroser d'huile d'olive. Parsemer la ciboulette ciselée et réfrigérer au moins 1 heure afin que les saveurs s'emmêlent. | G33: ,pommes de terre,oeufs,comté,lardons,tomates cerise,câpres,ciboulette,huile d'olive | H33: pommes de terre | I33: 1 | J33: kg(s) | K33: œufs | L33: 5 | M33: unité(s) | N33: comté | O33: 100 | P33: gramme(s) | Q33: lardons | R33: 100 | S33: gramme(s) | T33: tomates cerise | U33: 200 | V33: gramme(s) | W33: câpres | X33: 3 | Y33: cas | Z33: ciboulette | AA33: 10 | AB33: gramme(s) | AC33: huile d'olive | AD33: 2 | AE33: cas
A34: 42 | B34: salade de riz | C34: 2 | D34: Entrée | E34: 10 | F34: 1 Faites cuire votre riz selon les instructions sur l'emballage. Réserver. 2 Faites revenir vos légumes (poivron, ail et oignon) dans une poêle, à feu moyen, pendant 10 minutes. 2-3 minutes avant la fin de la cuisson, ajouter le thon et le basilic. 3 Mélanger le riz, les légumes cuits, les olives et le maïs. 4 Ajouter la mayonaise et la moutarde. Bien mélanger. 5 Mettre au réfrigérateur au moins 4 heures. Servir froid. | G34: ,riz blanc,poivron,ail,oignons,thon,maïs,olives,moutarde,mayonnaise,basilic,huile d'olive | H34: riz basmati | I34: 100 | J34: gramme(s) | K34: poivron vert | L34: 1 | M34: unité(s) | N34: ail | O34: 1 | P34: gousse(s) | Q34: oignon | R34: 1 | S34: unité(s) | T34: thon | U34: 170 | V34: gramme(s) | W34: maïs | X34: 4 | Y34: cas | Z34: olives noires | AA34: 2 | AB34: unité(s) | AC34: moutarde | AD34: 1 | AE34: cas | AF34: mayonnaise | AG34: 2 | AH34: cas | AI34: basilic | AJ34: 5 | AK34: feuille(s) | AL34: huile d'olive | AM34: 4 | AN34: cas
A35: 21 | B35: salade de tomates | C35: 4 | D35: Entrée | E35: 5 | F35: 1 Coupez les tomates en rondelles. 2 Coupez la feta en cubes. 3 Ciselez le basilic (en un seul passage). 4 Mettez le tout en saladier. 5 Arrosez d'un filet d'huile d'olive. 6 Assaisonnez d'un peu de sel de Guérande et de quelques tours de moulin à poivre. | G35: ,tomate,féta,basilic,huile d'olive | H35: Tomate | I35: 4 | J35: unité(s) | K35: féta | L35: 200 | M35: gramme(s) | N35: basilic | O35: 4 | P35: feuille(s) | Q35: huile d'olive | R35: 1 | S35: cas
A36: 38 | B36: salade niçoise | C36: 4 | D36: Entrée | E36: 10 | F36: 1 Laver et égoutter le mesclun. Laver et couper les poivrons en petits cubes. Émincer les oignons. 2 Laver et couper les tomates en quartiers. Ajouter les tomates à la salade, les olives, les œufs durs, le thon et les anchois. 3 Placer le tout joliment dans une assiette. Faire la vinaigrette avec l'huile et le basilic. Verser sur la salade, bon appétit ! | G36: ,mesclun,thon,anchois,tomate,radis,poivron,haricots verts,œufs,oignons nouveaux,basilic,huile d'olive,olive noire | H36: mesclun | I36: 100 | J36: gramme(s) | K36: thon | L36: 200 | M36: gramme(s) | N36: anchois | O36: 2 | P36: unité(s) | Q36: Tomate | R36: 4 | S36: unité(s) | T36: radis | U36: 1 | V36: botte(s) | W36: poivron vert | X36: 2 | Y36: unité(s) | Z36: haricots verts | AA36: 200 | AB36: gramme(s) | AC36: œufs | AD36: 2 | AE36: unité(s) | AF36: oignon nouveau | AG36: 2 | AH36: unité(s) | AI36: basilic | AJ36: 15 | AK36: feuille(s) | AL36: huile d'olive | AM36: 2 | AN36: cas | AO36: olives noires | AP36: 2 | AQ36: unité(s)
A37: 26 | B37: sauce béchamel | C37: 5 | D37: Préparation | E37: 5 | F37: 1 faites chauffer le lait, dans une casserole ou au micro-ondes, sans le faire bouillir. Pour une béchamel inratable, il est important de faire chauffer le lait! 3 Sur feu moyen, faites fondre le beurre dans une casserole à fond épais, sans laisser colorer. (roux) 4 Ajoutez la farine. Mélangez avec un fouet (ou une cuillère en bois). Laissez cuire en remuant 2 ou 3 minutes. 5 Commencez par verser le lait chaud petit à petit, tout en remuant, pour diluer le roux. Une fois bien dilué et lisse, versez le reste du lait. 6 Après avoir versé tout le lait, continuez à fouetter sans arrêt jusqu’à obtention d’un mélange lisse et homogène. 7 Continuez la cuisson en remuant jusqu’à épaississement de la sauce. 8 Retirez la casserole du feu. Salez, poivrez. Eventuellement ajoutez de la noix de muscade, ou tout autre assaisonnement selon vos goûts. | G37: ,farine,lait,sel fin,poivre,noix de muscade,beurre | H37: farine | I37: 35 | J37: gramme(s) | K37: lait | L37: 0,5 | M37: litre(s) | N37: sel | O37: 6 | P37: pincée(s) | Q37: poivre | R37: 1 | S37: pincée(s) | T37: noix de muscade | U37: 6 | V37: gramme(s) | W37: beurre | X37: 35 | Y37: gramme(s)
A38: 4 | B38: sauce crevettes | C38: 4 | D38: Préparation | E38: 10 | F38: 1 Faire rissoler 150grs de carcasses de reste de crevettes avec 20grs de beurre et un oignon. Ajoutez un fond de vin blanc au bout d'une minute. 2 Sur feu moyen, faites fondre le beurre dans une casserole à fond épais, sans laisser colorer. (roux) 3 Ajoutez la farine. Mélangez avec un fouet (ou une cuillère en bois). Laissez cuire en remuant 2 ou 3 minutes. 4 Ajoutez les carcasses de crevettes 1L d'eau. Faire réduire. 5 Passer le tout au chinois. Saler et poivrer à votre convenance. Mouiller par du vin, de l'eau, un bouillon ou du lait, ce liant permet d'obtenir une sauce) 6 Dans une casserole, faire fondre du beurre 50grs ajoutez la farine 50grs. (Ajoutez plus de beurre et de farine si vous souhaitez plus de quantité ) Versez petit à petit le bouillon de crevettes, remuer jusqu'à épaississement de la sauce. Astuce : Une délicieuse sauce pour accompagner vos poissons, quenelles ,vol au vent.... Vous pouvez congeler votre bouillon dans des bacs a glaçons pour utilisation ultérieure. | G38: ,beurre,oignon,carcasses crevettes,poivre,tabasco rouge,sel,poivre | H38: beurre | I38: 20 | J38: gramme(s) | K38: oignon | L38: 1 | M38: unité(s) | N38: carcasses crevettes | O38: 150 | P38: gramme(s) | Q38: poivre | R38: 1 | S38: pincée(s) | T38: tabasco rouge | U38: 2 | V38: goutte(s) | W38: sel | X38: 4 | Y38: pincée(s) | Z38: poivre | AA38: 1 | AB38: pincée(s) | AC38: vin blanc | AD38: 10 | AE38: ctl(s)
A39: 40 | B39: sauce vinaigrette | C39: 10 | D39: Préparation | E39: 5 | F39: On peut y ajouter de la moutarde, du poivre et des condiments (fines herbes, épices…) pour relever le goût. Toutefois il faut veiller à ne pas marier tout et n’importe quoi. Trop d’aliments différents finissent souvent par neutraliser le goût de la vinaigrette maison et certaines épices sont vraiment trop envahissantes. | G39: ,huile,vinaigre,sel fin,poivre | H39: huile végétale | I39: 20 | J39: ctl(s) | K39: vinaigre rouge | L39: 10 | M39: ctl(s) | N39: sel | O39: 2 | P39: pincée(s) | Q39: poivre | R39: 1 | S39: pincée(s)
A40: 33 | B40: smoothie fraise-menthe | C40: 4 | D40: Dessert | E40: 5 | F40: 1 Réaliser les pesées. 2 Laver les fraises et la menthe. Équeuter les fraises et les couper en 2. Réserver de belles feuilles de menthe pour la décoration. 3 Dans un blender, mixer les fraises, 10 feuilles de menthe et le reste des ingrédients jusqu'à obtention d'un smoothie onctueux et homogène. 4 Pour le dressage, servir dans un verre avec quelques feuilles de menthe. «Ajoutez du lait si le smoothie est trop épais. Il est conseillé de prendre de la Mara des bois ou de la gariguette pour cette recette.» | G40: ,fraises,yaourt,lait,menthe,sucre,glaçons | H40: fraises | I40: 300 | J40: gramme(s) | K40: yaourt | L40: 2 | M40: unité(s) | N40: lait | O40: 5 | P40: ctl(s) | Q40: menthe | R40: 0,3 | S40: botte(s) | T40: sucre | U40: 50 | V40: gramme(s) | W40: glaçons | X40: 10 | Y40: unité(s)
A41: 22 | B41: soupe à l'oignon | C41: 4 | D41: Entrée | E41: 10 | F41: 1 Porter à ébullition 1 litre d'eau. Quand elle bout, ajouter le cube et demi de bouillon et remuer pour le diluer. Éplucher et émincer les oignons. Dans un faitout, faire fondre le beurre. Puis ajouter les oignons. Les faire revenir 10 minutes environ jusqu'à ce qu'ils soient légèrement dorés. Mélanger régulièrement. 2 Saupoudrer les oignons de farine et mélanger sans cesse à feu moyen jusqu'à coloration. Ajouter ensuite le bouillon, le vin et le bouquet garni (vous pouvez utiliser du bouquet garni déshydraté, dans cas 1 cuillère à café suffit). Saler et poivrer et laisser cuire 25 minutes environ avec un couvercle et à feu doux. 3 Préchauffer le four à 240°C, thermostat 8. À la fin de la cuisson du faitout, retirer le bouquet garni et verser la soupe dans 4 bols pouvant aller au four.. 4 Déposer 1 à 2 tranches de pain (en fonction de la taille) par bol sur le dessus de la soupe 5 Parsemer de gruyère râpé et mettre au four 7 à 8 minutes. Servir aussitôt. | G41: ,bouillon bœuf,oignons,farine,vin blanc,bouquet garni,pain campagne,gruyère rapé,beurre | H41: bouillon bœuf | I41: 1,5 | J41: cube(s) | K41: oignon | L41: 600 | M41: gramme(s) | N41: farine | O41: 2 | P41: cas | Q41: vin blanc | R41: 20 | S41: ctl(s) | T41: bouquet garni | U41: 1 | V41: unité(s) | W41: pain campagne | X41: 4 | Y41: tranche(s) | Z41: gruyère rapé | AA41: 120 | AB41: gramme(s) | AC41: beurre | AD41: 40 | AE41: gramme(s)
A42: 23 | B42: steack haché - frites | C42: 4 | D42: Plat | E42: 10 | F42: Eplucher les pommes de terre puis les rincer à l’eau. Les couper en forme de frite puis les faire blanchir dans de l’huile bouillante. - Assaisonner la viande puis la saisir avec du beurre dans une poêle bien chaude. - Avant de passer à table, replonger les frites dans l’huile bouillante pour un croustillant parfait. | G42: ,steack haché,pommes de terre,huile olive | H42: steack haché | I42: 4 | J42: unité(s) | K42: pommes de terre | L42: 4 | M42: unité(s) | N42: huile d'olive | O42: 1 | P42: cas
A43: 35 | B43: tarte au citron | C43: 8 | D43: Dessert | E43: 20 | F43: 1 Préparer la pâte : préchauffer le four à 180°c ou thermostat 6. Blanchir les jaunes et le sucre avec un peu d'eau (réserver les blancs). Mélanger aux doigts la farine et le beurre coupé en petits morceaux pour obtenir une consistance sableuse. Verser au milieu de ce sable le mélange liquide. Former une boule avec les paumes et fraiser 1 ou 2 fois. Étaler la pâte directement sur du papier sulfurisé et garnir le plat à tarte avec la pâte piquée avec une fourchette. Mettre du papier sulfurisé et recouvrir de haricots secs. Laisser cuire 10 minutes (la pâte ne doit pas colorer ou très peu). 2 Réaliser la crème : dans un saladier, mélanger 2 œufs entiers et 2 jaunes (mettre les blancs de côté) la crème fraîche et le sucre. Ensuite, ajouter le jus des 2 citrons ainsi que leur zeste râpé très finement. Sortir la pâte du four, enlever les haricots et mettre le mélange. Enfourner pendant 30 minutes. 3 Pendant ce temps, préparer la meringue : utiliser les 4 blancs d'œufs, ajouter une pincée de sel et battre en neige. Quand ils sont fermes, ajouter doucement le sucre glace en continuant de battre. 4 Lorsque la tarte est cuite, répartir la meringue sur la crème au citron puis faire cuire encore 10 minutes afin que la meringue soit légèrement dorée. Laisser la tarte dans le four éteint pendant 40 minutes pour une meringue croquante. | G43: ,farine,beurre,sucre,oeufs,citron vert,crème fraiche,sucre glace | H43: farine | I43: 250 | J43: gramme(s) | K43: beurre | L43: 125 | M43: gramme(s) | N43: sucre | O43: 250 | P43: gramme(s) | Q43: œufs | R43: 6 | S43: unité(s) | T43: citron vert | U43: 2 | V43: unité(s) | W43: crème fraiche | X43: 20 | Y43: ctl(s) | Z43: sucre glace | AA43: 150 | AB43: gramme(s)
A44: 30 | B44: tarte aux pommes vegan | C44: 8 | D44: Dessert | E44: 20 | F44: Pour la compote : Épluchez 4 pommes (de bonne taille). Coupez les en petits morceaux et faites-les fondre dans une casserole jusqu’à obtention d’une compote. Laissez refroidir et passez ensuite au mixeur. Pour la pâte sablée : Coupez la margarine (bien froide) en petits dés. Mélangez la farine tamisée avec le sel et ajoutez-y les dés de margarine. Sablez l’ensemble (frottez entre vos mains ou du bout des doigts la farine et les dés de margarine jusqu’à obtention d’une texture sable, sans l’écraser). Sablez l’ensemble (frottez entre vos mains ou du bout des doigts la farine et les dés de margarine jusqu’à obtention d’une texture sable, sans l’écraser). Ajoutez le sucre glace tamisé, puis les 50g de compote de pomme (apporte du liquide et remplace un œuf). Mélangez à la spatule jusqu’à ce que la pâte soit ferme et homogène. Mélangez à la spatule jusqu’à ce que la pâte soit ferme et homogène. Formez un rectangle et emballez la pâte dans du cellophane ou une boite hermétique Formez un rectangle et emballez la pâte dans du cellophane ou une boite hermétique. Laissez au réfrigérateur au minimum 2h, vous pouvez également la préparer la veille. Préchauffez votre four à 180°C. Margarinez un plat à tarte (en verre), farinez le ensuite. Étalez votre pâte, soit entre deux feuilles de papier sulfurisé soit sur une feuille de cuisson (dans les deux cas, ça facilitera sa mise en place). Foncez le moule à tarte (déposez la pâte à tarte dans le moule). Piquez le fond et enfournez pour 15mn à 180°C (selon votre four). Pour éviter que la pâte gonfle, vous pouvez déposer sur le dessus une feuille de papier sulfurisé avec des haricots ou un moule avec du poids. Assemblage de la tarte : Épluchez les pommes. Coupez les en quartier puis en fine lamelles. Réservez, vous pouvez ajouter un filet de citron sur l’ensemble des pommes et les mélanger si la vue de leur oxydation vous révulse ! Déposez harmonieusement la poudre d’amande sur votre fond de tarte. Coulez quelques plots de compote sur la poudre d’amande que vous étalerez avec délicatesse à l’aide d’une spatule ou d’une cuillère. Disposez vos lamelles de pommes en cercle (2 ou 3), réservez les plus courts pour le centre. Saupoudrez les pommes de sucre vanillé. Enfournez pour 15mn / 180°C. Enfournez pour 15mn / 180°C. Enfournez pour 15mn / 180°C. Laissez bien refroidir. Démoulez pour éviter que la pâte se détrempe dans le plat. | G44: ,farine,margarine,sucre glace,sel,compote,poudre amande,pommes,sucre vanillé | H44: farine | I44: 225 | J44: gramme(s) | K44: margarine | L44: 80 | M44: gramme(s) | N44: sucre glace | O44: 70 | P44: gramme(s) | Q44: sel | R44: 1 | S44: pincée(s) | T44: compote pomme | U44: 50 | V44: gramme(s) | W44: poudre d'amande | X44: 70 | Y44: gramme(s) | Z44: pommes reinette | AA44: 4 | AB44: unité(s) | AC44: sucre vanillé | AD44: 1 | AE44: sachet(s)
A45: 32 | B45: tiramisu | C45: 4 | D45: Dessert | E45: 10 | F45: 1 Séparer les blancs des jaunes. Mélanger les jaunes, le sucre et le sucre vanillé. 2 Ajouter le Mascarpone au fouet. 3 Monter les blancs en neige et les incorporer délicatement à la spatule au mélange précédent. 4 Tapisser les verrines de biscuits. Recouvrir de coulis et de quelques framboises, étalez par dessus une couche de crème, œuf, sucre, Mascarpone. 5 Alterner biscuits, coulis, framboises et crème. Terminer par une couche de crème. 6 Saupoudrer d'amandes effilées et d'une framboise pour la déco. Laissez prendre au minimum 3 ou 4 h au réfrigérateur. | G45: ,oeufs,mascarpone,sucre roux,framboises,coulis framboise,sucre vanillé,biscuits | H45: œufs | I45: 2 | J45: unité(s) | K45: mascarpone | L45: 250 | M45: gramme(s) | N45: sucre roux | O45: 70 | P45: gramme(s) | Q45: framboises | R45: 100 | S45: gramme(s) | T45: coulis framboise | U45: 20 | V45: ctl(s) | W45: sucre vanillé | X45: 1 | Y45: sachet(s) | Z45: biscuits boudoir | AA45: 10 | AB45: unité(s)
A46: 43 | B46: velouté d'asperges | C46: 5 | D46: Entrée | E46: 15 | F46: 1 Épluchez les pommes de terre et coupez-les en tranches. Coupez les feuilles vertes des poireaux pour ne garder que le blanc. Fendez les poireaux en quatre, lavez-les soigneusement à l'eau courante. Ouvrez la boîte de pointes d'asperges, égouttez les légumes. 2 Versez 1,5 litre d'eau dans un récipient, mettez-y les pommes de terre et les poireaux, salez et laissez cuire 1/2 heure. En fin de cuisson, ajoutez les pointes d'asperges, passez tous les légumes à la moulinette ou au mixeur, puis réincorporez cette crème de légumes au liquide de cuisson. Poivrez légèrement. 3 Mettez dans une grande casserole 60 g de beurre et laissez fondre doucement sans qu'il y ait coloration. Versez alors la farine en pluie et mélangez bien le tout 4 à 5 minutes en remuant constamment à la spatule de bois, sur feu très doux. La farine ne doit pas roussir. Laissez refroidir. 4 Versez le potage bouillant sur le roux blanc. Mélangez soigneusement à la cuiller de bois afin d'obtenir un liquide parfaitement lisse. Laissez cuire ainsi quelques minutes à petits bouillons et ôtez le récipient du feu. 5 Incorporez alors la crème fraîche, parsemez le velouté d'un hachis de cerfeuil et de persil et servez en soupière. | G46: ,poireau,pointes asperges,pommes de terre,beurre,farine,crème fraiche,cerfeuil,persil | H46: poireau | I46: 600 | J46: gramme(s) | K46: pointes asperges | L46: 1 | M46: boite(s) | N46: pommes de terre | O46: 200 | P46: gramme(s) | Q46: beurre | R46: 60 | S46: gramme(s) | T46: farine | U46: 60 | V46: gramme(s) | W46: crème fraiche | X46: 15 | Y46: ctl(s) | Z46: cerfeuil | AA46: 10 | AB46: feuille(s) | AC46: persil | AD46: 10 | AE46: feuille(s)
A47: 48 | B47: velouté de potiron | C47: 6 | D47: Entrée | E47: 50 | F47: A tester aussi avec potimarron ou citrouille. Un régal pour toute la famille et un doux moyen de faire déguster des légumes à vos enfants. Pour les végétariens, réalisez la recette sans le fond de volaille. 1. Couper le potiron en quartiers et ôter les graines. Peler les quartiers et les couper en dés de 1 à 2 cm. Vous pouvez en préparer plus que nécessaire : les dés de potiron et de citrouille se congèlent très bien. 2.Peler et couper les pommes de terre en dés de 1 à 2 cm. Éplucher et hacher grossièrement les oignons. Ôter le vert foncé du poireau. Découper le blanc en quatre dans la longueur puis en petits morceaux. Vous pouvez ficeler et congeler le vert. Il parfumera une soupe ou un pot-au-feu. 3.Faire fondre le beurre dans un autocuiseur ou une cocotte. Y faire revenir 5 minutes les oignons et les poireaux, sans laisser prendre couleur. Puis ajouter le potiron et les pommes de terre. 4.Chauffer le lait et le verser dans la cocotte. Ajouter le bouillon chaud ou 50 cl d'eau très chaude et 2 bouillons cubes. Ne pas saler. Fermer l'autocuiseur et laisser cuire 30 minutes (1 heure dans une cocotte sans pression). 5.La préparation peut se servir telle quelle (donc en soupe) être passée au moulin à légumes, ou mixée finement pour obtenir un velouté. Quel que soit votre choix, rectifier l'assaisonnement avant de servir avec du sel et éventuellement du poivre. 6.Pour finir Présenter très chaud accompagné d'un pot de crème fraîche épaisse ou chacun se servira à sa guise. | G47: ,chair de potiron,pommes de terre,poireau,lait,bouillon de volaille,beurre,oignons,crème fraiche | H47: chair de potiron | I47: 600 | J47: gramme(s) | K47: pommes de terre | L47: 4 | M47: unité(s) | N47: poireau | O47: 2 | P47: unité(s) | Q47: lait | R47: 50 | S47: ctl(s) | T47: bouillon de volaille | U47: 50 | V47: ctl(s) | W47: beurre | X47: 20 | Y47: gramme(s) | Z47: oignons | AA47: 2 | AB47: unité(s) | AC47: crème fraiche | AD47: 25 | AE47: gramme(s)
A48: 24 | B48: travers de porc | C48: 3 | D48: Dessert | E48: 5 | F48: Dans un saladier mettre tous les ingrédients de la marinade. Bien mélanger. 2 Ajouter les travers de porc. Bien enrober la viande avec la marinade. Laisser reposer au frais minimum 1h30. 3 Préchauffer le four à 190°. Déposer la viande dans un plat. Laisser cuire une demi-heure. Ensuite cuire les travers de porc en mode grill une vingtaine de minutes. Badigeonner la viande avec la marinade et la retourner à mi-cuisson. | G48: ,travers de porc,ketchup,moutarde forte,miel,sauce soja,piment cayenne,paprika,ail haché,sucre roux,fécule pdt,huile d'olive | H48: travers de porc | I48: 6 | J48: unité(s) | K48: ketchup | L48: 6 | M48: cas | N48: moutarde forte | O48: 1 | P48: cas | Q48: miel | R48: 3 | S48: cas | T48: sauce soja | U48: 3 | V48: cas | W48: piment cayenne | X48: 2 | Y48: cac | Z48: paprika | AA48: 2 | AB48: cac | AC48: ail haché | AD48: 4 | AE48: gousse(s) | AF48: sucre roux | AG48: 1 | AH48: cas | AI48: fécule pdt | AJ48: 2 | AK48: cac | AL48: huile d'olive | AM48: 1 | AN48: cac
A49: 49 | B49: beurre d'escargot | C49: 4 | D49: Préparation | E49: 5 | F49: Faire ramollir le beurre, soit au micro-ondes ou à température ambiante. Incorporer le persil, l'échalotte et l'ail hâchés très fin puis le sel et le poivre. Mettre dans un film étirable et faire un saucison. Mettre au congélateur. | G49: ,beurre,persil,échalotte,ail,sel,poivre 4 épices,poivre | H49: beurre | I49: 250 | J49: gramme(s) | K49: persil plat | L49: 25 | M49: gramme(s) | N49: échalotte | O49: 1 | P49: gousse(s) | Q49: ail | R49: 3 | S49: gousse(s) | T49: sel | U49: 12 | V49: gramme(s) | W49: poivre | X49: 2 | Y49: pincée(s)
A50: 50 | B50: mayonnaise | C50: 6 | D50: Préparation | E50: 5 | F50: Dans la cuve ou dans un bol, mettez le jaune d’œuf avec 1 cuillère à soupe d'huile et la moutarde. Au fouet manuel, mélangez en effectuant un mouvement de rotation afin de mêler la moutarde au jaune d’œuf. Tout en fouettant, ajoutez au fur et à mesure l'huile en filet. Continuez jusqu'à que l'huile soit bien incorporée. Tous les ingrédients doivent être à température ambiante. Pour une mayonnaise plus aérée, utiliser l’œuf entier. Vous pouvez assaisonner la mayonnaise avec de l'estragon, du citron, du gros poivre, du curry etc... Cette mayonnaise a une durée de conservation de 48 heures. Idéale pour des barbecues, des repas de famille... Des bons hot dogs ou burgers maison. | G50: ,Jaune d'œuf,moutarde,huile de tournesol,poivre,vinaigre | H50: jaune d'œuf | I50: 1 | J50: unité(s) | K50: moutarde | L50: 1 | M50: cas | N50: huile de tournesol | O50: 1 | P50: cas | Q50: poivre | R50: 0,5 | S50: cac | T50: vinaigre rouge | U50: 1 | V50: cac

Sheet Ventes
A2: N° | B2: Table n° 1 | D2: 6 tablés | G2: 2023-07-22
A3: 41 | B3: 2 huîtres au kacha et à la pomme | E3: 4 personnes pour la recette
B4: Ingrédients | C4: Qté | D4: Unité | E4: Couts | F4: Total 1 | G4: Prorata | H4: Total 2
B5: huitres | C5: 12 | D5: unité(s) | E5: 1.166666627 | F5: =C5*E5 -> 13.99999952 | G5: 0.25 | H5: =C5*E5*G5 -> 3.499999881
B6: kasha | C6: 50 | D6: gramme(s) | E6: 0.06499999762 | F6: 3.249999881 | G6: 0.25 | H6: 0.8124999702
B7: pommes reinette | C7: 1 | D7: unité(s) | E7: 0.75 | F7: 0.75 | G7: 0.25 | H7: 0.1875
B8: citron vert | C8: 1 | D8: unité(s) | E8: 0.400000006 | F8: 0.400000006 | G8: 0.25 | H8: 0.1000000015
B9: beurre | C9: 30 | D9: gramme(s) | E9: 0.006000000052 | F9: 0.1800000016 | G9: 0.25 | H9: 0.04500000039
B10: sauce soja | C10: 1 | D10: cas | E10: 0.1140000001 | F10: 0.1140000001 | G10: 0.25 | H10: 0.02850000001
B11: gingembre | C11: 10 | D11: gramme(s) | E11: 0.01295000035 | F11: 0.1295000035 | G11: 0.25 | H11: 0.03237500088
B12: coriandre | C12: 5 | D12: feuille(s) | E12: 0.01999999955 | F12: 0.09999999776 | G12: 0.25 | H12: 0.02499999944
B13: poivre | C13: 1 | D13: pincée(s) | E13: 0.04444444552 | F13: 0.04444444552 | G13: 0.25 | H13: 0.01111111138
B14: tps cuisine | C14: 15
B15: tps divers | C15: 6
B16: total temps | C16: =C14+C15 -> 21 | D16: cout horaire | E16: 20.01 | F16: =E16/60*C16 -> 7.0035 | G16: 0.25 | H16: =F16*G16 -> 1.750875
D17: location /repas | H17: 1.52
B18: 1 huîtres au kacha et à la pomme | H18: 8.01
B19: Total 2 huîtres au kacha et à la pomme | H19: 16.03
A20: N° | B20: Table n° 1 | D20: 6 tablés | G20: 2023-07-22
A21: 8 | B21: 2 moules au cidre | E21: 2 personnes pour la recette
B22: Ingrédients | C22: Qté | D22: Unité | E22: Couts | F22: Total 1 | G22: Prorata | H22: Total 2
B23: moules | C23: 1 | D23: kg(s) | E23: 5.666666508 | F23: =C23*E23 -> 5.666666508 | G23: 0.5 | H23: =C23*E23*G23 -> 2.833333254
B24: fenouil | C24: 1 | D24: unité(s) | E24: 1 | F24: 1 | G24: 0.5 | H24: 0.5
B25: huile d'olive | C25: 1 | D25: cas | E25: 0.09974999726 | F25: 0.09974999726 | G25: 0.5 | H25: 0.04987499863
B26: échalotte | C26: 2 | D26: gousse(s) | E26: 0.01600000076 | F26: 0.03200000152 | G26: 0.5 | H26: 0.01600000076
B27: tomates | C27: 1 | D27: unité(s) | E27: 0.1000000015 | F27: 0.1000000015 | G27: 0.5 | H27: 0.05000000075
B28: laurier | C28: 2 | D28: feuille(s) | E28: 0.01999999955 | F28: 0.03999999911 | G28: 0.5 | H28: 0.01999999955
B29: thym | C29: 10 | D29: gramme(s) | E29: 0.009999999776 | F29: 0.09999999776 | G29: 0.5 | H29: 0.04999999888
B30: fromage frais | C30: 150 | D30: gramme(s) | E30: 0.003599999938 | F30: 0.5399999907 | G30: 0.5 | H30: 0.2699999954
B31: ail | C31: 2 | D31: gousse(s) | E31: 0.05600000173 | F31: 0.1120000035 | G31: 0.5 | H31: 0.05600000173
B32: persil plat | C32: 1 | D32: botte(s) | E32: 1 | F32: 1 | G32: 0.5 | H32: 0.5
B33: cidre | C33: 50 | D33: ctl(s) | E33: 0.02533333376 | F33: 1.266666688 | G33: 0.5 | H33: 0.633333344
B34: rhum | C34: 10 | D34: ctl(s) | E34: 0.01857142895 | F34: 0.1857142895 | G34: 0.5 | H34: 0.09285714477
B35: tps cuisine | C35: 20
B36: tps divers | C36: 6
B37: total temps | C37: =C35+C36 -> 26 | D37: cout horaire | E37: 20.01 | F37: =E37/60*C37 -> 8.671 | G37: 0.5 | H37: =F37*G37 -> 4.3355
D38: location /repas | H38: 1.52
B39: 1 moules au cidre | H39: 10.93
B40: Total 2 moules au cidre | H40: 21.85
A41: N° | B41: Table n° 1 | D41: 6 tablés | G41: 2023-07-22
A42: 31 | B42: 2 crème brulée à la semoule | E42: 4 personnes pour la recette
B43: Ingrédients | C43: Qté | D43: Unité | E43: Couts | F43: Total 1 | G43: Prorata | H43: Total 2
B44: lait entier | C44: 50 | D44: ctl(s) | E44: 0.009999999776 | F44: =C44*E44 -> 0.4999999888 | G44: 0.25 | H44: =C44*E44*G44 -> 0.1249999972
B45: sucre de canne | C45: 70 | D45: gramme(s) | E45: 0.002649999922 | F45: 0.1854999945 | G45: 0.25 | H45: 0.04637499864
B46: cannelle | C46: 2 | D46: pincée(s) | E46: 0.01857142895 | F46: 0.03714285791 | G46: 0.25 | H46: 0.009285714477
B47: semoule fine | C47: 80 | D47: gramme(s) | E47: 0.003199999919 | F47: 0.2559999935 | G47: 0.25 | H47: 0.06399999838
B48: purée d’amande brute | C48: 50 | D48: gramme(s) | E48: 0.03529411927 | F48: 1.764705963 | G48: 0.25 | H48: 0.4411764909
B49: cassonnade | C49: 50 | D49: gramme(s) | E49: 0.00270000007 | F49: 0.1350000035 | G49: 0.25 | H49: 0.03375000088
B50: tps cuisine | C50: 15
B51: tps divers | C51: 6
B52: total temps | C52: =C50+C51 -> 21 | D52: cout horaire | E52: 20.01 | F52: =E52/60*C52 -> 7.0035 | G52: 0.25 | H52: =F52*G52 -> 1.750875
D53: location /repas | H53: 1.52
B54: 1 crème brulée à la semoule | H54: 3.99
B55: Total 2 crème brulée à la semoule | H55: 7.98
F56: Total note HT | H56: 45.86
B57: 2023-07-22 | D57: 6 tablés | F57: Total TTC | H57: 50.45 | J57: avt
A58: N° | B58: Table n° 1 | D58: 6 tablés | G58: 2023-07-24
A59: 6 | B59: 2 harengs pommes à l'huile | E59: 4 personnes pour la recette
B60: Ingrédients | C60: Qté | D60: Unité | E60: Couts | F60: Total 1 | G60: Prorata | H60: Total 2
B61: filets de harengs | C61: 4 | D61: unité(s) | E61: 0.8138461709 | F61: =C61*E61 -> 3.255384684 | G61: 0.25 | H61: =C61*E61*G61 -> 0.8138461709
B62: pommes de terre | C62: 600 | D62: gramme(s) | E62: 0.001000000047 | F62: 0.6000000285 | G62: 0.25 | H62: 0.1500000071
B63: radis | C63: 0,5 | D63: botte(s) | E63: 1 | F63: 0.5 | G63: 0.25 | H63: 0.125
B64: oignon nouveau | C64: 2 | D64: unité(s) | E64: 0.3400000036 | F64: 0.6800000072 | G64: 0.25 | H64: 0.1700000018
B65: moutarde | C65: 1 | D65: cac | E65: 0.0397499986 | F65: 0.0397499986 | G65: 0.25 | H65: 0.00993749965
B66: vinaigre rouge | C66: 1 | D66: cas | E66: 0.02250000089 | F66: 0.02250000089 | G66: 0.25 | H66: 0.005625000224
B67: huile d'olive | C67: 3 | D67: cas | E67: 0.09974999726 | F67: 0.2992499918 | G67: 0.25 | H67: 0.07481249794
B68: tps cuisine | C68: 15
B69: tps divers | C69: 6
B70: total temps | C70: =C68+C69 -> 21 | D70: cout horaire | E70: 20.01 | F70: =E70/60*C70 -> 7.0035 | G70: 0.25 | H70: =F70*G70 -> 1.750875
D71: location /repas | H71: 1.52
B72: 1 harengs pommes à l'huile | H72: 4.62
B73: Total 2 harengs pommes à l'huile | H73: 9.24 | I73: jr
A74: N° | B74: Table n° 1 | D74: 6 tablés | G74: 2023-07-24
A75: 7 | B75: 2 boeuf bourguignon | E75: 6 personnes pour la recette
B76: Ingrédients | C76: Qté | D76: Unité | E76: Couts | F76: Total 1 | G76: Prorata | H76: Total 2
B77: joue de bœuf | C77: 0.7 | D77: kg(s) | E77: 22.55555534 | F77: =C77*E77 -> 15.78888874 | G77: 0.1666666667 | H77: =C77*E77*G77 -> 2.631481457
B78: paleron | C78: 0.7 | D78: kg(s) | E78: 14 | F78: 9.8 | G78: 0.1666666667 | H78: 1.633333333
B79: lardons | C79: 200 | D79: gramme(s) | E79: 0.008249999955 | F79: 1.649999991 | G79: 0.1666666667 | H79: 0.2749999985
B80: beurre | C80: 30 | D80: gramme(s) | E80: 0.006000000052 | F80: 0.1800000016 | G80: 0.1666666667 | H80: 0.03000000026
B81: carottes | C81: 3 | D81: unité(s) | E81: 0.25 | F81: 0.75 | G81: 0.1666666667 | H81: 0.125
B82: oignon | C82: 3 | D82: unité(s) | E82: 0.275000006 | F82: 0.8250000179 | G82: 0.1666666667 | H82: 0.137500003
B83: ail | C83: 1 | D83: gousse(s) | E83: 0.05600000173 | F83: 0.05600000173 | G83: 0.1666666667 | H83: 0.009333333621
B84: bouquet garni | C84: 1 | D84: unité(s) | E84: 1 | F84: 1 | G84: 0.1666666667 | H84: 0.1666666667
B85: vin rouge bourgogne | C85: 1 | D85: litre(s) | E85: 1.071428537 | F85: 1.071428537 | G85: 0.1666666667 | H85: 0.1785714229
B86: marc de Bourgogne | C86: 5 | D86: ctl(s) | E86: 0.5849999785 | F86: 2.924999893 | G86: 0.1666666667 | H86: 0.4874999821
B87: grains de poivre noir | C87: 5 | D87: grain(s) | E87: 0.03222222254 | F87: 0.1611111127 | G87: 0.1666666667 | H87: 0.02685185211
B88: tps cuisine | C88: 20
B89: tps divers | C89: 6
B90: total temps | C90: =C88+C89 -> 26 | D90: cout horaire | E90: 20.01 | F90: =E90/60*C90 -> 8.671 | G90: 0.1666666667 | H90: =F90*G90 -> 1.445166667
D91: location /repas | H91: 1.52
B92: 1 boeuf bourguignon | H92: 8.67
B93: Total 2 boeuf bourguignon | H93: 17.33 | I93: jr
A94: N° | B94: Table n° 1 | D94: 6 tablés | G94: 2023-07-24
A95: 1 | B95: 2 gateau au chocolat | E95: 6 personnes pour la recette
B96: Ingrédients | C96: Qté | D96: Unité | E96: Couts | F96: Total 1 | G96: Prorata | H96: Total 2
B97: chocolat noir | C97: 250 | D97: gramme(s) | E97: 0.004499999806 | F97: =C97*E97 -> 1.124999952 | G97: 0.1666666667 | H97: =C97*E97*G97 -> 0.1874999919
B98: œufs | C98: 5 | D98: unité(s) | E98: 0.237499997 | F98: 1.187499985 | G98: 0.1666666667 | H98: 0.1979166642
B99: sucre de canne | C99: 150 | D99: gramme(s) | E99: 0.002649999922 | F99: 0.3974999883 | G99: 0.1666666667 | H99: 0.06624999805
B100: huile d'olive | C100: 15 | D100: ctl(s) | E100: 0.06650000066 | F100: 0.9975000098 | G100: 0.1666666667 | H100: 0.1662500016
B101: poudre de noisettes | C101: 125 | D101: gramme(s) | E101: 0.01862500049 | F101: 2.328125061 | G101: 0.1666666667 | H101: 0.3880208436
B102: cacao | C102: 2 | D102: cas | E102: 0.1187499985 | F102: 0.237499997 | G102: 0.1666666667 | H102: 0.03958333284
B103: sel | C103: 1 | D103: pincée(s) | E103: 0.0005000000237 | F103: 0.0005000000237 | G103: 0.1666666667 | H103: 8.333333729e-05
B104: tps cuisine | C104: 15
B105: tps divers | C105: 6
B106: total temps | C106: =C104+C105 -> 21 | D106: cout horaire | E106: 20.01 | F106: =E106/60*C106 -> 7.0035 | G106: 0.1666666667 | H106: =F106*G106 -> 1.16725
D107: location /repas | H107: 1.52
B108: 1 gateau au chocolat | H108: 3.73
B109: Total 2 gateau au chocolat | H109: 7.47 | I109: jr
F110: Total note HT | H110: 34.04
B111: 2023-07-24 | D111: 6 tablés | F111: Total TTC | H111: 37.44 | I111: jr | J111: avt
A112: N° | B112: Table n° 1 | D112: 1 tablés | G112: 25/07/2023
A113: 30 | B113: 1 tarte aux pommes vegan | E113: 8 personnes pour la recette
B114: Ingrédients | C114: Qté | D114: Unité | E114: Couts | F114: Total 1 | G114: Prorata | H114: Total 2
B115: farine | C115: 225 | D115: gramme(s) | E115: 0.0007500000065 | F115: =C115*E115 -> 0.1687500015 | G115: 0.125 | H115: =C115*E115*G115 -> 0.02109375018
B116: margarine | C116: 80 | D116: gramme(s) | E116: 0.001449999982 | F116: 0.1159999985 | G116: 0.125 | H116: 0.01449999982
B117: sucre glace | C117: 70 | D117: gramme(s) | E117: 0.00400000019 | F117: 0.2800000133 | G117: 0.125 | H117: 0.03500000166
B118: sel | C118: 1 | D118: pincée(s) | E118: 0.0005000000237 | F118: 0.0005000000237 | G118: 0.125 | H118: 6.250000297e-05
B119: compote pomme | C119: 50 | D119: gramme(s) | E119: 0.001830985886 | F119: 0.0915492943 | G119: 0.125 | H119: 0.01144366179
B120: poudre d'amande | C120: 70 | D120: gramme(s) | E120: 0.0175999999 | F120: 1.231999993 | G120: 0.125 | H120: 0.1539999992
B121: pommes reinette | C121: 4 | D121: unité(s) | E121: 0.75 | F121: 3 | G121: 0.125 | H121: 0.375
B122: sucre vanillé | C122: 1 | D122: sachet(s) | E122: 0.09000000358 | F122: 0.09000000358 | G122: 0.125 | H122: 0.01125000045
B123: tps cuisine | C123: 20
B124: tps divers | C124: 6
B125: total temps | C125: =C123+C124 -> 26 | D125: cout horaire | E125: 20.01 | F125: =E125/60*C125 -> 8.671 | G125: 0.125 | H125: =F125*G125 -> 1.083875
D126: location /repas | H126: 1.52
B127: 1 tarte aux pommes vegan | H127: 3.23
B128: Total 1 tarte aux pommes vegan | H128: 3.23 | I128: jr
F129: Total note HT | H129: 3.23
B130: 25/07/2023 | D130: 1 tablés | F130: Total TTC | H130: 3.55 | I130: jr | J130: avt
A131: N° | B131: Table n° 1 | D131: 1 tablés | G131: 25/07/2023
A132: 30 | B132: 1 tarte aux pommes vegan | E132: 8 personnes pour la recette
B133: Ingrédients | C133: Qté | D133: Unité | E133: Couts | F133: Total 1 | G133: Prorata | H133: Total 2
B134: farine | C134: 225 | D134: gramme(s) | E134: 0.0007500000065 | F134: =C134*E134 -> 0.1687500015 | G134: 0.125 | H134: =C134*E134*G134 -> 0.02109375018
B135: margarine | C135: 80 | D135: gramme(s) | E135: 0.001449999982 | F135: 0.1159999985 | G135: 0.125 | H135: 0.01449999982
B136: sucre glace | C136: 70 | D136: gramme(s) | E136: 0.00400000019 | F136: 0.2800000133 | G136: 0.125 | H136: 0.03500000166
B137: sel | C137: 1 | D137: pincée(s) | E137: 0.0005000000237 | F137: 0.0005000000237 | G137: 0.125 | H137: 6.250000297e-05
B138: compote pomme | C138: 50 | D138: gramme(s) | E138: 0.001830985886 | F138: 0.0915492943 | G138: 0.125 | H138: 0.01144366179
B139: poudre d'amande | C139: 70 | D139: gramme(s) | E139: 0.0175999999 | F139: 1.231999993 | G139: 0.125 | H139: 0.1539999992
B140: pommes reinette | C140: 4 | D140: unité(s) | E140: 0.75 | F140: 3 | G140: 0.125 | H140: 0.375
B141: sucre vanillé | C141: 1 | D141: sachet(s) | E141: 0.09000000358 | F141: 0.09000000358 | G141: 0.125 | H141: 0.01125000045
B142: tps cuisine | C142: 20
B143: tps divers | C143: 6
B144: total temps | C144: =C142+C143 -> 26 | D144: cout horaire | E144: 20.01 | F144: =E144/60*C144 -> 8.671 | G144: 0.125 | H144: =F144*G144 -> 1.083875
D145: location /repas | H145: 1.52
B146: 1 tarte aux pommes vegan | H146: 3.23
B147: Total 1 tarte aux pommes vegan | H147: 3.23 | I147: jr
F148: Total note HT | H148: 3.23
B149: 25/07/2023 | D149: 1 tablés | F149: Total TTC | H149: 3.55 | I149: jr | J149: avt
A150: N° | B150: Table n° 1 | D150: 1 tablés | G150: 25/07/2023
A151: 32 | B151: 1 tiramisu | E151: 4 personnes pour la recette
B152: Ingrédients | C152: Qté | D152: Unité | E152: Couts | F152: Total 1 | G152: Prorata | H152: Total 2
B153: œufs | C153: 2 | D153: unité(s) | E153: 0.237499997 | F153: =C153*E153 -> 0.474999994 | G153: 0.25 | H153: =C153*E153*G153 -> 0.1187499985
B154: mascarpone | C154: 250 | D154: gramme(s) | E154: 0.00689999992 | F154: 1.72499998 | G154: 0.25 | H154: 0.431249995
B155: sucre roux | C155: 70 | D155: gramme(s) | E155: 0.003000000026 | F155: 0.2100000018 | G155: 0.25 | H155: 0.05250000046
B156: framboises | C156: 100 | D156: gramme(s) | E156: 0.01600000076 | F156: 1.600000076 | G156: 0.25 | H156: 0.400000019
B157: coulis framboise | C157: 20 | D157: ctl(s) | E157: 0.01484848466 | F157: 0.2969696932 | G157: 0.25 | H157: 0.07424242329
B158: sucre vanillé | C158: 1 | D158: sachet(s) | E158: 0.09000000358 | F158: 0.09000000358 | G158: 0.25 | H158: 0.02250000089
B159: biscuits boudoir | C159: 10 | D159: unité(s) | E159: 0.25 | F159: 2.5 | G159: 0.25 | H159: 0.625
B160: tps cuisine | C160: 10
B161: tps divers | C161: 6
B162: total temps | C162: =C160+C161 -> 16 | D162: cout horaire | E162: 20.01 | F162: =E162/60*C162 -> 5.336 | G162: 0.25 | H162: =F162*G162 -> 1.334
D163: location /repas | H163: 1.52
B164: 1 tiramisu | H164: 4.58
B165: Total 1 tiramisu | H165: 4.58 | I165: jr
F166: Total note HT | H166: 4.58
B167: 25/07/2023 | D167: 1 tablés | F167: Total TTC | H167: 5.04 | I167: jr | J167: avt

Sheet Compta
A1: prévisions | B1: repas complets/ jour | C1: mois | F1: mensuel | G1: Taux horaire | H1: nbre heures | J1: Tps présence | K1: matin
B2: 10 | C2: =+B2*22 -> 220 | E2: SMIC brut | F2: 1747.2 | G2: 11.52 | H2: =+F2/G2 -> 151.6666667 | K2: 10h00-11h00 | L2: Autres tâches+préparations | M2: 60
E3: salaire cuisinier | F3: 2000 | G3: =+F3/H3 -> 13.1969647 | H3: =4.33*35 -> 151.55 | K3: 11h-12h00 | L3: Tps cuisine selon plats | M3: 0
A4: tps travail cuistot | B4: =15*3*10/60 -> 7.5 | D4: Tps cuisine (préparation inclus) | G4: =+G3 -> 13.1969647 | K4: soir
K5: 19-20h | L5: Tps cuisine selon plats | M5: 0
E6: réceptioniste-serveuse | F6: 12-14h00 | G6: 11.52 | H6: 1 | L6: par jour | M6: 60
F7: 19-20h00 | G7: 11.52 | H7: 1 | L7: Tps mn par couvert | M7: =M6/B2 -> 6
A8: amortissement matériel sur 9 ans | C8: ht | G8: =+G7*H8 -> 498.816 | H8: =2*5*4.33 -> 43.3 | I8: h/ mois
B9: Vaisselle et matériel cuisine | C9: 3000 | F9: cout serveuse/ repas | G9: =+G8/C2 -> 2.267345455
A10: 2 tables de 4, 3tables de 2 | B10: mobilier | C10: 2000 | F10: Taxes énergie et comptable / mois | G10: =1000/C2 -> 4.545454545 | L10: location | M10: 1000
C11: 5000 | F11: Total MO | G11: =+G4+G9+G10 -> 20.0097647 | L11: repas / mois | M11: =+C2 -> 220
B12: année | C12: =+C11/9 -> 555.5555556 | L12: Location / repas | M12: =+M10/M11 -> 4.545454545
B13: mois | C13: =+C12/12 -> 46.2962963 | E13: addition/ note client : | L13: location 1 entrée, ou 1 plat ou 1 dessert
B14: jours activité | C14: =5*4.33 -> 21.65 | E14: Ingredients entrée | F14: voir couts | M14: =+M12/3 -> 1.515151515
B15: jour | C15: =+C13/C14 -> 2.138397058 | E15: tps cuisine entrée | F15: tps + 6 mns x | G15: =+G11 -> 20.0097647
B16: Amort. /repas | C16: =+C15/B2 -> 0.2138397058 | E16: Ingredients plat | F16: voir couts
E17: tps cuisine plat | F17: tps + 6 mns x | G17: =+G15 -> 20.0097647
E18: Ingredients dessert | F18: voir couts
E19: tps cuisine dessert | F19: tps + 6 mns x | G19: =+G17 -> 20.0097647
E20: Location / repas | F20: =+M12 -> 4.545454545

Sheet Ingredients
A1: Ingrédients | B1: Unité associée | C1: Rayons | D1: Unités | E1: Rayons | F1: chiffres | G1: Non stockés
A2: ail | B2: gousse(s) | C2: légumes | D2: boite(s) | E2: agrumes | F2: 1 | G2: curry
A3: ail haché | B3: gousse(s) | C3: légumes | D3: botte(s) | E3: alcools | F3: 2 | G3: eau
A4: alcool madère | B4: cas | C4: alcools | D4: boule(s) | E4: biscuits | F4: 3 | G4: farine de mais
A5: anchois | B5: filet(s) | C5: poissonnerie | D5: brin(s) | E5: boucherie | F5: 4 | G5: huile d'olive
A6: aneth | B6: botte(s) | C6: herbes | D6: brique(s) | E6: boulangerie | F6: 5 | G6: moutarde
A7: aneth | B7: cas | C7: herbes | D7: ctl(s) | E7: déjeuner | F7: 6 | G7: noix de muscade
A8: arome vanille | B8: cas | C8: épices | D8: cube(s) | E8: charcuterie | F8: 7 | G8: poivre
A9: asperges | B9: botte(s) | C9: légumes | D9: cac | E9: chocolat | F9: 8 | G9: sel
A10: avocat | B10: unité(s) | C10: légumes | D10: cas | E10: condiments | F10: 9
A11: bananes | B11: unité(s) | C11: fruits | D11: dose(s) | E11: confiture | F11: 10
A12: basilic | B12: brin(s) | C12: herbes | D12: feuille(s) | E12: conserves | F12: 11
A13: beurre | B13: gramme(s) | C13: pdts laitiers | D13: filet(s) | E13: crustacés | F13: 12
A14: beurre escargot | B14: gramme(s) | C14: pdts laitiers | D14: flacon(s) | E14: divers | F14: 13
A15: beurre pommade | B15: gramme(s) | C15: pdts laitiers | D15: gousse(s) | E15: eau | F15: 14
A16: beurre salé | B16: noix | C16: pdts laitiers | D16: goutte(s) | E16: épices | F16: 15
A17: beurre salé | B17: gramme(s) | C17: pdts laitiers | D17: grain(s) | E17: fromages | F17: 16
A18: biscuits boudoirs | B18: unité(s) | C18: biscuits | D18: gramme(s) | E18: fruits | F18: 17
A19: bleu de bresse | B19: unité(s) | C19: fromages | D19: kg(s) | E19: fruits secs | F19: 18
A20: botte de radis | B20: botte(s) | C20: légumes | D20: litre(s) | E20: graines | F20: 19
A21: bouillon bœuf | B21: cube(s) | C21: épices | D21: morceau(x) | E21: herbes | F21: 20
A22: bouillon de volaille | B22: litre(s) | C22: épices | D22: noix | E22: huile | F22: 21
A23: bouillon de volaille | B23: ctl(s) | C23: épices | D23: pièce(s) | E23: jus | F23: 22
A24: brocoli | B24: pièce(s) | C24: légumes | D24: pincée(s) | E24: légumes | F24: 23
A25: cacao | B25: gramme(s) | C25: déjeuner | D25: pot(s) | E25: œufs | F25: 24
A26: cacao | B26: cas | C26: déjeuner | D26: pousse(s) | E26: pâtes | F26: 25
A27: café | B27: ctl(s) | C27: déjeuner | D27: sachet(s) | E27: pdts laitiers | F27: 26
A28: café expresso | B28: ctl(s) | C28: déjeuner | D28: tartine(s) | E28: poissonnerie | F28: 27
A29: calvados | B29: ctl(s) | C29: alcools | D29: tour(s) moulin | E29: sauces | F29: 28
A30: camembert | B30: unité(s) | C30: fromages | D30: tranche(s) | E30: salades | F30: 29
A31: cannelle | B31: pincée(s) | C31: épices | D31: tube | E31: sucre | F31: 30
A32: câpres | B32: cas | C32: épices | D32: unité(s) | E32: surgelés | F32: 31
A33: carcasses crevettes | B33: gramme(s) | C33: crustacés | E33: viande | F33: 32
A34: carottes | B34: gramme(s) | C34: légumes | E34: vinaigre | F34: 33
A35: céleri | B35: gramme(s) | C35: légumes | F35: 34
A36: cerfeuil | B36: feuille(s) | C36: légumes | F36: 35
A37: cerneaux noix | B37: gramme(s) | C37: fruits secs | F37: 36
A38: chair de potiron | B38: gramme(s) | C38: légumes | F38: 37
A39: chair de tomates | B39: gramme(s) | C39: légumes | F39: 38
A40: champignons | B40: gramme(s) | C40: légumes | F40: 39
A41: champignons paris | B41: boite(s) | C41: conserves | F41: 40
A42: chocolat | B42: morceau(x) | C42: chocolat | F42: 41
A43: chocolat noir | B43: gramme(s) | C43: déjeuner | F43: 42
A44: chorizo | B44: gramme(s) | C44: charcuterie | F44: 43
A45: chou fleur | B45: pièce(s) | C45: légumes | F45: 44
A46: chou pomme | B46: unité(s) | C46: légumes | F46: 45
A47: ciboulette | B47: botte(s) | C47: herbes | F47: 46
A48: ciboulette | B48: gramme(s) | C48: herbes | F48: 47
A49: cidre | B49: ctl(s) | C49: alcools | F49: 48
A50: citron | B50: unité(s) | C50: fruits | F50: 49
A51: citron vert | B51: unité(s) | C51: agrumes | F51: 50
A52: compote | B52: gramme(s) | C52: fruits | F52: 51
A53: comté | B53: unité(s) | C53: fromages | F53: 52
A54: comté | B54: gramme(s) | C54: fromages | F54: 53
A55: comté rapé | B55: gramme(s) | C55: fromages | F55: 54
A56: confiture | B56: gramme(s) | C56: confiture | F56: 55
A57: coriandre | B57: botte(s) | C57: herbes | F57: 56
A58: coriandre | B58: feuille(s) | C58: herbes | F58: 57
A59: cornichons au vinaigre | B59: unité(s) | C59: condiments | F59: 58
A60: coulis framboise | B60: boite(s) | C60: conserves | F60: 59
A61: courgette | B61: unité(s) | C61: légumes | F61: 60
A62: crème fraiche | B62: gramme(s) | C62: pdts laitiers | F62: 61
A63: crème liquide | B63: ctl(s) | C63: pdts laitiers | F63: 62
A64: créme mascarpone | B64: gramme(s) | C64: pdts laitiers | F64: 63
A65: crevettes | B65: gramme(s) | C65: crustacés | F65: 64
A66: crevettes | B66: unité(s) | C66: crustacés | F66: 65
A67: curcuma | B67: pincée(s) | C67: épices | F67: 66
A68: échalottes | B68: unité(s) | C68: légumes | F68: 67
A69: emmental | B69: gramme(s) | C69: fromages | F69: 68
A70: endive | B70: unité(s) | C70: légumes | F70: 69
A71: farine | B71: gramme(s) | C71: épices | F71: 70
A72: farine de mais | B72: gramme(s) | C72: épices | F72: 71
A73: farine de pois chiche | B73: gramme(s) | C73: épices | F73: 72
A74: fécule pdt | B74: cac | C74: épices | F74: 73
A75: fenouil | B75: unité(s) | C75: légumes | F75: 74
A76: févettes | B76: unité(s) | C76: légumes | F76: 75
A77: filets de harengs | B77: unité(s) | C77: poissonnerie | F77: 76
A78: fond de veau | B78: cas | C78: épices | F78: 77
A79: fraises | B79: gramme(s) | C79: fruits | F79: 78
A80: framboises | B80: gramme(s) | C80: fruits | F80: 79
A81: frites | B81: gramme(s) | C81: surgelés | F81: 80
A82: fromage de chèvre | B82: unité(s) | C82: fromages | F82: 81
A83: fromage en dés | B83: gramme(s) | C83: fromages | F83: 82
A84: fromage frais | B84: gramme(s) | C84: fromages | F84: 83
A85: gélatine | B85: feuille(s) | C85: épicerie | F85: 84
A86: gingembre | B86: gramme(s) | C86: épicerie | F86: 85
A87: gingembre | B87: pousse(s) | C87: épicerie | F87: 86
A88: glaçons | B88: unité(s) | C88: congélateur | F88: 87
A89: graines fenouil | B89: gramme(s) | C89: épices | F89: 88
A90: grains de poivre noir | B90: grain(s) | C90: épices | F90: 89
A91: gros sel | B91: gramme(s) | C91: condiments | F91: 90
A92: gruyère rapé | B92: gramme(s) | C92: fromages | F92: 91
A93: hachis de porc | B93: gramme(s) | C93: boucherie | F93: 92
A94: harengs | B94: gramme(s) | C94: poissonnerie | F94: 93
A95: haricots | B95: kg(s) | C95: graines | F95: 94
A96: haricots verts | B96: gramme(s) | C96: légumes | F96: 95
A97: herbe fraiche | B97: feuille(s) | C97: herbes | F97: 96
A98: huile | B98: ctl(s) | C98: huile | F98: 97
A99: huile d'olive | B99: ctl(s) | C99: huile | F99: 98
A100: huile oliive | B100: cas | C100: huile | F100: 99
A101: huile olive | B101: cuillère(s) à café | C101: huile | F101: 100
A102: huitres | B102: unité(s) | C102: crustacés | F102: 101
A103: infusion de thé | B103: unité(s) | C103: épices
A104: jambon | B104: tranche(s) | C104: charcuterie
A105: jambon cru | B105: unité(s) | C105: charcuterie
A106: jambon de paris | B106: tranche(s) | C106: charcuterie
A107: jaune œuf | B107: unité(s) | C107: œufs
A108: joue de bœuf | B108: Kg(s) | C108: boucherie
A109: jus de fruit | B109: ctl(s) | C109: jus
A110: kasha | B110: gramme(s) | C110: graines
A111: ketchup | B111: cas | C111: sauces
A112: lait | B112: ctl(s) | C112: pdts laitiers
A113: laitue | B113: feuille(s) | C113: légumes
A114: langue de boeuf | B114: kg(s) | C114: boucherie
A115: lapin | B115: kg(s) | C115: boucherie
A116: lard fumé | B116: gramme(s) | C116: boucherie
A117: lard gras | B117: gramme(s) | C117: boucherie
A118: lardons | B118: gramme(s) | C118: charcuterie
A119: laurier | B119: feuille(s) | C119: herbes
A120: levure | B120: sachet(s) | C120: épices
A121: levure chimique | B121: sachet(s) | C121: épices
A122: maïs | B122: cas | C122: conserves
A123: marc de Bourgogne | B123: ctl(s) | C123: alcools
A124: margarine | B124: gramme(s) | C124: pdts laitiers
A125: mascarpone | B125: gramme(s) | C125: pdts laitiers
A126: mayonnaise | B126: cas | C126: sauces
A127: melon | B127: unité(s) | C127: légumes
A128: menthe | B128: brin(s) | C128: herbes
A129: mesclun | B129: unité(s) | C129: salades
A130: miel | B130: cas | C130: déjeuner
A131: moules | B131: litre(s) | C131: crustacés
A132: moules | B132: kg(s) | C132: crustacés
A133: moutarde | B133: gramme(s) | C133: sauces
A134: moutarde | B134: cas | C134: sauces
A135: moutarde forte | B135: cas | C135: sauces
A136: mozzarella | B136: boule(s) | C136: fromages
A137: muscade | B137: cuillère(s) à café | C137: épices
A138: noix de muscade | B138: gousse(s) | C138: épices
A139: oeufs | B139: unité(s) | C139: œufs
A140: oignon cébette | B140: unité(s) | C140: légumes
A141: oignon de Roscoff | B141: unité(s) | C141: légumes
A142: oignon(s) | B142: unité(s) | C142: légumes
A143: oignons nouveaux | B143: unité(s) | C143: légumes
A144: oignons nouveaux | B144: unité(s) | C144: légumes
A145: olive noire | B145: unité(s) | C145: condiments
A146: olives | B146: unité(s) | C146: condiments
A147: olives noires | B147: unité(s) | C147: condiments
A148: orange | B148: unité(s) | C148: fruits
A149: origan | B149: pincée(s) | C149: herbes
A150: pain | B150: tranche(s) | C150: boulangerie
A151: pain campagne | B151: tranche(s) | C151: boulangerie
A152: pain de campagne | B152: tranche(s) | C152: boulangerie
A153: pain rassis | B153: unité(s) | C153: boulangerie
A154: paleron | B154: kg(s) | C154: boucherie
A155: pancetta | B155: gramme(s) | C155: charcuterie
A156: paprika | B156: cac | C156: épices
A157: pate brisée | B157: unité(s) | C157: boulangerie
A158: paté de lapin | B158: kg(s) | C158: charcuterie
A159: pate feuillettée | B159: unité(s) | C159: surgelés
A160: pate feuillettée | B160: unité(s) | C160: boulangerie
A161: pâte piment | B161: cac | C161: condiments
A162: pates | B162: gramme(s) | C162: pâtes
A163: persil | B163: brin(s) | C163: herbes
A164: persil haché | B164: cac | C164: herbes
A165: petits oignons | B165: unité(s) | C165: légumes
A166: pétoncles | B166: gramme(s) | C166: crustacés
A167: piment cayenne | B167: cac | C167: condiments
A168: pointes asperges | B168: boite(s) | C168: légumes
A169: poire | B169: unité(s) | C169: fruits
A170: poireau | B170: unité(s) | C170: légumes
A171: poitrine fumée | B171: gramme(s) | C171: charcuterie
A172: poivre | B172: pincée(s) | C172: épices
A173: poivron vert | B173: unité(s) | C173: légumes
A174: pommes | B174: unité(s) | C174: fruits
A175: pommes de terre | B175: kg(s) | C175: légumes
A176: pommes golden | B176: unité(s) | C176: fruits
A177: pommes Reinette | B177: pièce(s) | C177: fruits
A178: porto | B178: ctl(s) | C178: alcools
A179: poudre de noisettes | B179: gramme(s) | C179: fruits secs
A180: pruneaux | B180: unité(s) | C180: fruits
A181: pruneaux | B181: gramme(s) | C181: fruits
A182: purée d’amande brute | B182: gramme(s) | C182: fruits secs
A183: radis | B183: botte(s) | C183: légumes
A184: raisins secs | B184: gramme(s) | C184: fruits secs
A185: rhum | B185: ctl(s) | C185: alcools
A186: riz | B186: gramme(s) | C186: graines
A187: riz blanc | B187: gramme(s) | C187: graines
A188: roquefort | B188: unité(s) | C188: fromages
A189: roti de porc | B189: kg(s) | C189: boucherie
A190: sauce barbecue | B190: ctl(s) | C190: sauces
A191: sauce ketchup | B191: cas | C191: sauces
A192: sauce soja | B192: cas | C192: sauces
A193: sauce tomate | B193: gramme(s) | C193: sauces
A194: saumon | B194: gramme(s) | C194: poissonnerie
A195: saumon fumé | B195: gramme(s) | C195: poissonnerie
A196: sel | B196: pincée(s) | C196: condiments
A197: semoule fine | B197: gramme(s) | C197: graines
A198: steack haché | B198: unité(s) | C198: boucherie
A199: sucre | B199: gramme(s) | C199: sucre
A200: sucre blond de canne | B200: gramme(s) | C200: sucre
... 20 more rows

Sheet Préparations
A1: =A2&" "&A3&" "&A4&" "&A5&" "&A6&" " &A7&" " &A8&" "&A9&" "&A10&" " &A11&" "&A12&" "&A13&" " &A14&" "&A15 -> Mettez les framboises dans un robot avec le sucre semoule et le jus de citron. 2 Mixez le tout. Pour finir Passez au chinois et réservez au réfrigérateur jusqu'au moment de consommer.
A2: Mettez les framboises dans un robot avec le sucre semoule et le jus de citron.
A3: 2 Mixez le tout.
A4: Pour finir
A5: Passez au chinois et réservez au réfrigérateur jusqu'au moment de consommer.
A17: 50 | B17: 1 mayonnaise | D17: 150 g | E17: 6 personnes pour la recette
B18: Ingrédients | C18: Qté | D18: Unité | E18: Couts | F18: Total 1 | G18: Prorata | H18: Total 2
B19: jaune d'œuf | C19: 1 | D19: unité(s) | E19: 0.1583333313 | F19: =C19*E19 -> 0.1583333313 | G19: 0.1666666667 | H19: =C19*E19*G19 -> 0.02638888856
B20: moutarde | C20: 1 | D20: cas | E20: 0.0794999972 | F20: =C20*E20 -> 0.0794999972 | G20: 0.1666666667 | H20: =C20*E20*G20 -> 0.01324999953
B21: huile de tournesol | C21: 1 | D21: cas | E21: 0.03884999827 | F21: =C21*E21 -> 0.03884999827 | G21: 0.1666666667 | H21: =C21*E21*G21 -> 0.006474999711
B22: poivre | C22: 0,5 | D22: cac | E22: 0.2222222239 | F22: =C22*E22 -> 0.1111111119 | G22: 0.1666666667 | H22: =C22*E22*G22 -> 0.01851851866
B23: vinaigre rouge | C23: 1 | D23: cac | E23: 0.007499999832 | F23: =C23*E23 -> 0.007499999832 | G23: 0.1666666667 | H23: =C23*E23*G23 -> 0.001249999972
B24: tps cuisine | C24: 5
B25: tps divers | C25: 6
B26: total temps | C26: =C24+C25 -> 11 | D26: cout horaire | E26: 20.01 | F26: =+E26/60*C26 -> 3.6685 | G26: 0.25 | H26: =+F26*G26 -> 0.917125
B27: 1 mayonnaise | H27: 0.98
A29: 49 | B29: 1 beurre d'escargot | D29: 300 g | E29: 4 personnes pour la recette
B30: Ingrédients | C30: Qté | D30: Unité | E30: Couts | F30: Total 1 | G30: Prorata | H30: Total 2
B31: beurre | C31: 250 | D31: gramme(s) | E31: 0.006000000052 | F31: =C31*E31 -> 1.500000013 | G31: 0.25 | H31: =C31*E31*G31 -> 0.3750000033
B32: persil plat | C32: 25 | D32: gramme(s) | E32: 0.01250000019 | F32: 0.3125000047 | G32: 0.25 | H32: 0.07812500116
B33: échalotte | C33: 1 | D33: gousse(s) | E33: 0.01600000076 | F33: 0.01600000076 | G33: 0.25 | H33: 0.00400000019
B34: ail | C34: 3 | D34: gousse(s) | E34: 0.05600000173 | F34: 0.1680000052 | G34: 0.25 | H34: 0.0420000013
B35: sel | C35: 12 | D35: gramme(s) | E35: 0.0005000000237 | F35: 0.006000000285 | G35: 0.25 | H35: 0.001500000071
B36: poivre | C36: 2 | D36: pincée(s) | E36: 0.04444444552 | F36: 0.08888889104 | G36: 0.25 | H36: 0.02222222276
B37: tps cuisine | C37: 5
B38: tps divers | C38: 6
B39: total temps | C39: =C37+C38 -> 11 | D39: cout horaire | E39: 20.01 | F39: =+E39/60*C39 -> 3.6685 | G39: 0.25 | H39: =+F39*G39 -> 0.917125
B40: Total 1 beurre d'escargot | H40: 1.44
A42: 26 | B42: 1 sauce béchamel | E42: 5 personnes pour la recette
B43: Ingrédients | C43: Qté | D43: Unité | E43: Couts | F43: Total 1 | G43: Prorata | H43: Total 2
B44: farine | C44: 35 | D44: gramme(s) | E44: 0.0007500000065 | F44: =C44*E44 -> 0.02625000023 | G44: 0.2 | H44: =C44*E44*G44 -> 0.005250000046
B45: lait | C45: 0,5 | D45: litre(s) | E45: 1 | F45: 0.5 | G45: 0.2 | H45: 0.1
B46: sel | C46: 6 | D46: pincée(s) | E46: 0.0005000000237 | F46: 0.003000000142 | G46: 0.2 | H46: 0.0006000000285
B47: poivre | C47: 1 | D47: pincée(s) | E47: 0.04444444552 | F47: 0.04444444552 | G47: 0.2 | H47: 0.008888889104
B48: noix de muscade | C48: 6 | D48: gramme(s) | E48: 0.06666667014 | F48: 0.4000000209 | G48: 0.2 | H48: 0.08000000417
B49: beurre | C49: 35 | D49: gramme(s) | E49: 0.006000000052 | F49: 0.2100000018 | G49: 0.2 | H49: 0.04200000037
B50: tps cuisine | C50: 5
B51: tps divers | C51: 6
B52: total temps | C52: =C50+C51 -> 11 | D52: cout horaire | E52: 20.01 | F52: =+E52/60*C52 -> 3.6685 | G52: 0.25 | H52: =+F52*G52 -> 0.917125
B53: Total 1 sauce béchamel | H53: 1.15
A55: 4 | B55: 1 sauce crevettes | E55: 4 personnes pour la recette
B56: Ingrédients | C56: Qté | D56: Unité | E56: Couts | F56: Total 1 | G56: Prorata | H56: Total 2
B57: beurre | C57: 20 | D57: gramme(s) | E57: 0.006000000052 | F57: =C57*E57 -> 0.120000001 | G57: 0.25 | H57: =C57*E57*G57 -> 0.03000000026
B58: oignon | C58: 1 | D58: unité(s) | E58: 0.275000006 | F58: 0.275000006 | G58: 0.25 | H58: 0.06875000149
B59: carcasses crevettes | C59: 150 | D59: gramme(s) | E59: 0.0540000014 | F59: 8.10000021 | G59: 0.25 | H59: 2.025000053
B60: poivre | C60: 1 | D60: pincée(s) | E60: 0.04444444552 | F60: 0.04444444552 | G60: 0.25 | H60: 0.01111111138
B61: tabasco rouge | C61: 2 | D61: goutte(s) | E61: 0.05000000075 | F61: 0.1000000015 | G61: 0.25 | H61: 0.02500000037
B62: sel | C62: 4 | D62: pincée(s) | E62: 0.0005000000237 | F62: 0.002000000095 | G62: 0.25 | H62: 0.0005000000237
B63: poivre | C63: 1 | D63: pincée(s) | E63: 0.04444444552 | F63: 0.04444444552 | G63: 0.25 | H63: 0.01111111138
B64: vin blanc | C64: 10 | D64: ctl(s) | E64: 0.02266666666 | F64: 0.2266666666 | G64: 0.25 | H64: 0.05666666664
B65: tps cuisine | C65: 10
B66: tps divers | C66: 6
B67: total temps | C67: =C65+C66 -> 16 | D67: cout horaire | E67: 20.01 | F67: =+E67/60*C67 -> 5.336 | G67: 0.25 | H67: =+F67*G67 -> 1.334
B68: 1 sauce crevettes | H68: 3.56
A70: 40 | B70: 1 sauce vinaigrette | E70: 10 personnes pour la recette
B71: Ingrédients | C71: Qté | D71: Unité | E71: Couts | F71: Total 1 | G71: Prorata | H71: Total 2
B72: huile végétale | C72: 20 | D72: ctl(s) | E72: 0.01899999939 | F72: =C72*E72 -> 0.3799999878 | G72: 0.1 | H72: =C72*E72*G72 -> 0.03799999878
B73: vinaigre rouge | C73: 10 | D73: ctl(s) | E73: 0.01499999966 | F73: =C73*E73 -> 0.1499999966 | G73: 0.1 | H73: =C73*E73*G73 -> 0.01499999966
B74: sel | C74: 2 | D74: pincée(s) | E74: 0.0005000000237 | F74: =C74*E74 -> 0.001000000047 | G74: 0.1 | H74: =C74*E74*G74 -> 0.0001000000047
B75: poivre | C75: 1 | D75: pincée(s) | E75: 0.04444444552 | F75: =C75*E75 -> 0.04444444552 | G75: 0.1 | H75: =C75*E75*G75 -> 0.004444444552
B76: tps cuisine | C76: 5
B77: tps divers | C77: 6
B78: total temps | C78: =C76+C77 -> 11 | D78: cout horaire | E78: 20.01 | F78: =E78/60*C78 -> 3.6685 | G78: 0.1 | H78: =F78*G78 -> 0.36685
B79: 1 sauce vinaigrette | H79: 0.42
A81: 51 | B81: 1 coulis framboise | E81: 4 personnes pour la recette
B82: Ingrédients | C82: Qté | D82: Unité | E82: Couts | F82: Total 1 | G82: Prorata | H82: Total 2
B83: framboises | C83: 150 | D83: gramme(s) | E83: 0.01600000076 | F83: =C83*E83 -> 2.400000114 | G83: 0.25 | H83: =C83*E83*G83 -> 0.6000000285
B84: sucre | C84: 50 | D84: gramme(s) | E84: 0.001500000013 | F84: =C84*E84 -> 0.07500000065 | G84: 0.25 | H84: =C84*E84*G84 -> 0.01875000016
B85: citron jaune | C85: 1 | D85: unité(s) | E85: 0.400000006 | F85: =C85*E85 -> 0.400000006 | G85: 0.25 | H85: =C85*E85*G85 -> 0.1000000015
B86: tps cuisine | C86: 10
B87: tps divers | C87: 6
B88: total temps | C88: =C86+C87 -> 16 | D88: cout horaire | E88: 20.01 | F88: =E88/60*C88 -> 5.336 | G88: 0.25 | H88: =F88*G88 -> 1.334
B89: 1 coulis framboise | H89: 2.05

Sheet Repas
A1: Recettes | B1: Ingrédients | C1: Rayons | D1: Quantités | E1: Unité | F1: Semaine | G1: Date | H1: Type plat | I1: midi/soir | J1: Nb invites
A2: moules au cidre | B2: cidre | C2: spiritueux | D2: 233.3333333 | E2: centilitre(s) | F2: 23 | G2: 2023-06-15 | H2: Plat | I2: midi | J2: 14
A3: moules au cidre | B3: persil | C3: herbes | D3: 14 | E3: brin(s) | F3: 23 | G3: 2023-06-15 | H3: Plat | I3: midi | J3: 14
A4: moules au cidre | B4: moules | C4: crustacés | D4: 11.66666667 | E4: Litre(s) | F4: 23 | G4: 2023-06-15 | H4: Plat | I4: midi | J4: 14
A5: moules au cidre | B5: crème fraiche | C5: pdts laitiers | D5: 933.3333333 | E5: gramme(s) | F5: 23 | G5: 2023-06-15 | H5: Plat | I5: midi | J5: 14
A6: moules au cidre | B6: jaunes d'oeufs | C6: œufs | D6: 14 | E6: unité(s) | F6: 23 | G6: 2023-06-15 | H6: Plat | I6: midi | J6: 14
A7: moules au cidre | B7: échalottes | C7: condiments | D7: 14 | E7: unité(s) | F7: 23 | G7: 2023-06-15 | H7: Plat | I7: midi | J7: 14
A8: omelette au lard | B8: oeufs | C8: œufs | D8: 20 | E8: unité(s) | F8: 23 | G8: 2023-06-15 | H8: Plat | I8: soir | J8: 10
A9: omelette au lard | B9: poitrine fumée | C9: charcuterie | D9: 1250 | E9: gramme(s) | F9: 23 | G9: 2023-06-15 | H9: Plat | I9: soir | J9: 10
A10: pommes au four | B10: pommes | C10: fruits | D10: 10 | E10: pièce(s) | F10: 23 | G10: 2023-06-15 | H10: Dessert | I10: soir | J10: 10
A11: pommes au four | B11: beurre | C11: pdts laitiers | D11: 125 | E11: gramme(s) | F11: 23 | G11: 2023-06-15 | H11: Dessert | I11: soir | J11: 10
A12: pommes au four | B12: sucre | C12: sucre | D12: 250 | E12: gramme(s) | F12: 23 | G12: 2023-06-15 | H12: Dessert | I12: soir | J12: 10
A13: salade d'avocat et crevettes | B13: avocat | C13: légumes | D13: 10 | E13: pièce(s) | F13: 23 | G13: 2023-06-15 | H13: Entrée | I13: soir | J13: 10
A14: salade d'avocat et crevettes | B14: crevettes | C14: crustacés | D14: 375 | E14: gramme(s) | F14: 23 | G14: 2023-06-15 | H14: Entrée | I14: soir | J14: 10
A15: salade d'avocat et crevettes | B15: ciboulette | C15: herbes | D15: 1.25 | E15: botte | F15: 23 | G15: 2023-06-15 | H15: Entrée | I15: soir | J15: 10
A16: salade de tomates | B16: Tomate | C16: légumes | D16: 2000 | E16: gramme(s) | F16: 23 | G16: 2023-06-15 | H16: Entrée | I16: soir | J16: 10
A17: salade de tomates | B17: échalottes | C17: condiments | D17: 20 | E17: unité(s) | F17: 23 | G17: 2023-06-15 | H17: Entrée | I17: soir | J17: 10
A18: salade de tomates | B18: huile | C18: huile | D18: 50 | E18: centilitre(s) | F18: 23 | G18: 2023-06-15 | H18: Entrée | I18: soir | J18: 10
A19: salade de tomates | B19: vinaigre | C19: vinaigre | D19: 30 | E19: omelette aux champignons | F19: 23 | G19: 2023-06-15 | H19: Entrée | I19: soir | J19: 10
A20: oeufs à la neige | B20: oeufs | C20: œufs | D20: 7.5 | E20: unité(s) | F20: 23 | G20: 2023-06-15 | H20: Dessert | I20: midi | J20: 5
A21: oeufs à la neige | B21: Lait | C21: pdts laitiers | D21: 1.25 | E21: Litre(s) | F21: 23 | G21: 2023-06-15 | H21: Dessert | I21: midi | J21: 5
A22: gratin de chou fleur et brocoli | B22: chou fleur | C22: légumes | D22: 1.666666667 | E22: pièce(s) | F22: 23 | G22: 2023-06-15 | H22: Plat | I22: midi | J22: 10
A23: gratin de chou fleur et brocoli | B23: brocoli | C23: légumes | D23: 1.666666667 | E23: pièce(s) | F23: 23 | G23: 2023-06-15 | H23: Plat | I23: midi | J23: 10
A24: gratin de chou fleur et brocoli | B24: lait | C24: pdts laitiers | D24: 16.66666667 | E24: centilitre(s) | F24: 23 | G24: 2023-06-15 | H24: Plat | I24: midi | J24: 10
A25: gratin de chou fleur et brocoli | B25: gros sel | C25: condiments | D25: 16.66666667 | E25: gramme(s) | F25: 23 | G25: 2023-06-15 | H25: Plat | I25: midi | J25: 10
A26: gratin de chou fleur et brocoli | B26: gruyère rapé | C26: fromages | D26: 166.6666667 | E26: gramme(s) | F26: 23 | G26: 2023-06-15 | H26: Plat | I26: midi | J26: 10
A27: langue de boeuf sauce piquante | B27: langue de boeuf | C27: boucherie | D27: 3 | E27: Kg(s) | F27: 23 | G27: 2023-06-15 | H27: Plat | I27: soir | J27: 12
A28: langue de boeuf sauce piquante | B28: bouillon de volaille | C28: divers | D28: 1 | E28: Litre(s) | F28: 23 | G28: 2023-06-15 | H28: Plat | I28: soir | J28: 12
A29: langue de boeuf sauce piquante | B29: échalottes | C29: condiments | D29: 6 | E29: unité(s) | F29: 23 | G29: 2023-06-15 | H29: Plat | I29: soir | J29: 12
A30: langue de boeuf sauce piquante | B30: vin blanc | C30: spiritueux | D30: 40 | E30: centilitre(s) | F30: 23 | G30: 2023-06-15 | H30: Plat | I30: soir | J30: 12
A31: langue de boeuf sauce piquante | B31: beurre | C31: pdts laitiers | D31: 60 | E31: gramme(s) | F31: 23 | G31: 2023-06-15 | H31: Plat | I31: soir | J31: 12
A32: langue de boeuf sauce piquante | B32: cornichons au vinaigre | C32: condiments | D32: 6 | E32: unité(s) | F32: 23 | G32: 2023-06-15 | H32: Plat | I32: soir | J32: 12
A33: langue de boeuf sauce piquante | B33: farine | C33: épicerie | D33: 20 | E33: gramme(s) | F33: 23 | G33: 2023-06-15 | H33: Plat | I33: soir | J33: 12
A34: langue de boeuf sauce piquante | B34: moutarde | C34: sauces | D34: 10 | E34: gramme(s) | F34: 23 | G34: 2023-06-15 | H34: Plat | I34: soir | J34: 12
A35: langue de boeuf sauce piquante | B35: persil haché | C35: herbes | D35: 10 | E35: gramme(s) | F35: 23 | G35: 2023-06-15 | H35: Plat | I35: soir | J35: 12
A36: langue de boeuf sauce piquante | B36: poivre | C36: épicerie | D36: 2 | E36: pincée(s) | F36: 23 | G36: 2023-06-15 | H36: Plat | I36: soir | J36: 12
A37: langue de boeuf sauce piquante | B37: sel fin | C37: épicerie | D37: 4 | E37: pincée(s) | F37: 23 | G37: 2023-06-15 | H37: Plat | I37: soir | J37: 12
A38: far breton | B38: farine | C38: épicerie | D38: 450 | E38: gramme(s) | F38: 23 | G38: 2023-06-15 | H38: Dessert | I38: midi | J38: 15
A39: far breton | B39: sucre | C39: sucre | D39: 375 | E39: gramme(s) | F39: 23 | G39: 2023-06-15 | H39: Dessert | I39: midi | J39: 15
A40: far breton | B40: lait | C40: pdts laitiers | D40: 1.5 | E40: Litre(s) | F40: 23 | G40: 2023-06-15 | H40: Dessert | I40: midi | J40: 15
A41: far breton | B41: raisins secs | C41: fruits | D41: 75 | E41: gramme(s) | F41: 23 | G41: 2023-06-15 | H41: Dessert | I41: midi | J41: 15
A42: far breton | B42: pruneaux | C42: fruits | D42: 150 | E42: gramme(s) | F42: 23 | G42: 2023-06-15 | H42: Dessert | I42: midi | J42: 15
A43: far breton | B43: oeufs | C43: œufs | D43: 9 | E43: unité(s) | F43: 23 | G43: 2023-06-15 | H43: Dessert | I43: midi | J43: 15
A44: far breton | B44: beurre salé | C44: pdts laitiers | D44: 6 | E44: noix | F44: 23 | G44: 2023-06-15 | H44: Dessert | I44: midi | J44: 15
A45: omelette aux champignons | B45: oeufs | C45: œufs | D45: 40 | E45: unité(s) | F45: 23 | G45: omelette au lard | H45: Plat | I45: soir | J45: 20
A46: omelette aux champignons | B46: champignons | C46: légumes | D46: 3000 | E46: gramme(s) | F46: 23 | G46: 2023-06-15 | H46: Plat | I46: soir | J46: 20
A47: omelette aux champignons | B47: huile | C47: huile | D47: 25 | E47: centilitre(s) | F47: 23 | G47: 2023-06-15 | H47: Plat | I47: soir | J47: 20
A48: omelette aux champignons | B48: poivre | C48: épicerie | D48: 5 | E48: pincée(s) | F48: 23 | G48: 2023-06-15 | H48: Plat | I48: soir | J48: 20
A49: omelette aux champignons | B49: sel fin | C49: épicerie | D49: 10 | E49: pincée(s) | F49: 23 | G49: 2023-06-15 | H49: Plat | I49: soir | J49: 20
A50: pizza jambon fromage | B50: mozzarella | C50: fromages | D50: 3.75 | E50: boule | F50: 23 | G50: 2023-06-15 | H50: Plat | I50: midi | J50: 15
A51: pizza jambon fromage | B51: basilic | C51: herbes | D51: 3.75 | E51: brin(s) | F51: 23 | G51: 2023-06-15 | H51: Plat | I51: midi | J51: 15
A52: pizza jambon fromage | B52: origan | C52: herbes | D52: 3.75 | E52: pincée(s) | F52: 23 | G52: 2023-06-15 | H52: Plat | I52: midi | J52: 15
A53: pizza jambon fromage | B53: huile d'olive | C53: huile | D53: 7.5 | E53: cuillère(s) à soupe | F53: 23 | G53: 2023-06-15 | H53: Plat | I53: midi | J53: 15
A54: pizza jambon fromage | B54: olives noires | C54: condiments | D54: 45 | E54: unité(s) | F54: 23 | G54: 2023-06-15 | H54: Plat | I54: midi | J54: 15
A55: tarte aux pommes | B55: pate brisée | C55: boulangerie | D55: 3.333333333 | E55: unité(s) | F55: 23 | G55: 2023-06-15 | H55: Dessert | I55: soir | J55: 20
A56: tarte aux pommes | B56: pommes | C56: fruits | D56: 20 | E56: unité(s) | F56: 23 | G56: 2023-06-15 | H56: Dessert | I56: soir | J56: 20
A57: tarte aux pommes | B57: sucre vanillé | C57: épicerie | D57: 3.333333333 | E57: sachet | F57: 23 | G57: 2023-06-15 | H57: Dessert | I57: soir | J57: 20
A58: tarte aux pommes | B58: beurre | C58: pdts laitiers | D58: 100 | E58: gramme(s) | F58: 23 | G58: 2023-06-15 | H58: Dessert | I58: soir | J58: 20
A59: oeufs mimosa | B59: oeufs | C59: œufs | D59: 10 | E59: unité(s) | F59: 23 | G59: 2023-06-15 | H59: Entrée | I59: midi | J59: 10
A60: oeufs mimosa | B60: mayonnaise | C60: conserves | D60: 250 | E60: gramme(s) | F60: 23 | G60: 2023-06-15 | H60: Entrée | I60: midi | J60: 10
A61: yaourt | B61: yaourt | C61: yaourt(s) | D61: 15 | E61: unité(s) | F61: 23 | G61: 2023-06-15 | H61: Dessert | I61: soir | J61: 15
A62: yaourt | B62: sucre | C62: sucre | D62: 75 | E62: gramme(s) | F62: 23 | G62: 2023-06-15 | H62: Dessert | I62: soir | J62: 15
A63: harengs pommes à l'huile | B63: harengs | C63: poissonnerie | D63: 2000 | E63: gramme(s) | F63: 23 | G63: 2023-06-15 | H63: Entrée | I63: midi | J63: 10
A64: harengs pommes à l'huile | B64: pommes de terre | C64: légumes | D64: 1500 | E64: gramme(s) | F64: 23 | G64: 2023-06-15 | H64: Entrée | I64: midi | J64: 10
A65: harengs pommes à l'huile | B65: huile | C65: huile | D65: 50 | E65: centilitre(s) | F65: 23 | G65: 2023-06-15 | H65: Entrée | I65: midi | J65: 10
A66: harengs pommes à l'huile | B66: vinaigre | C66: vinaigre | D66: 10 | E66: cuillère(s) à soupe | F66: 23 | G66: 2023-06-15 | H66: Entrée | I66: midi | J66: 10
A67: céleri rémoulade | B67: mayonnaise | C67: conserves | D67: 500 | E67: gramme(s) | F67: 23 | G67: 2023-06-15 | H67: Entrée | I67: soir | J67: 10
A68: céleri rémoulade | B68: céleri | C68: légumes | D68: 2500 | E68: gramme(s) | F68: 23 | G68: 2023-06-15 | H68: Entrée | I68: soir | J68: 10
A69: crème brulée | B69: crème liquide | C69: pdts laitiers | D69: 70 | E69: centilitre(s) | F69: 23 | G69: 2023-06-15 | H69: Dessert | I69: midi | J69: 14
A70: crème brulée | B70: jaunes d'oeufs | C70: œufs | D70: 10.5 | E70: unité(s) | F70: 23 | G70: 2023-06-15 | H70: Dessert | I70: midi | J70: 14
A71: crème brulée | B71: lait | C71: pdts laitiers | D71: 43.75 | E71: centilitre(s) | F71: 23 | G71: 2023-06-15 | H71: Dessert | I71: midi | J71: 14
A72: crème brulée | B72: sucre | C72: sucre | D72: 262.5 | E72: gramme(s) | F72: 23 | G72: 2023-06-15 | H72: Dessert | I72: midi | J72: 14
A73: tiramisu | B73: boudoirs | C73: biscuits | D73: 33 | E73: unité(s) | F73: 23 | G73: 2023-06-15 | H73: Dessert | I73: soir | J73: 11
A74: tiramisu | B74: café expresso | C74: café | D74: 27.5 | E74: centilitre(s) | F74: 23 | G74: 2023-06-15 | H74: Dessert | I74: soir | J74: 11
A75: tiramisu | B75: oeufs | C75: œufs | D75: 5.5 | E75: unité(s) | F75: 23 | G75: 2023-06-15 | H75: Dessert | I75: soir | J75: 11
A76: tiramisu | B76: sucre | C76: sucre | D76: 247.5 | E76: gramme(s) | F76: 23 | G76: 2023-06-15 | H76: Dessert | I76: soir | J76: 11
A77: tiramisu | B77: créme mascarpone | C77: pdts laitiers | D77: 550 | E77: gramme(s) | F77: 23 | G77: 2023-06-15 | H77: Dessert | I77: soir | J77: 11
A78: tiramisu | B78: crème liquide | C78: pdts laitiers | D78: 41.25 | E78: centilitre(s) | F78: 23 | G78: 2023-06-15 | H78: Dessert | I78: soir | J78: 11
A79: tiramisu | B79: cacao | C79: café | D79: 68.75 | E79: gramme(s) | F79: 23 | G79: 2023-06-15 | H79: Dessert | I79: soir | J79: 11
A80: salade niçoise | B80: tomate(s) | C80: légumes | D80: 10 | E80: unité(s) | F80: 23 | G80: 2023-06-15 | H80: Entrée | I80: midi | J80: 10
A81: salade niçoise | B81: basilic | C81: herbes | D81: 5 | E81: brin(s) | F81: 23 | G81: 2023-06-15 | H81: Entrée | I81: midi | J81: 10
A82: salade niçoise | B82: vinaigre | C82: vinaigre | D82: 2.5 | E82: cuillère(s) à soupe | F82: 23 | G82: 2023-06-15 | H82: Entrée | I82: midi | J82: 10
A83: salade niçoise | B83: huile d'olive | C83: huile | D83: 7.5 | E83: cuillère(s) à soupe | F83: 23 | G83: 2023-06-15 | H83: Entrée | I83: midi | J83: 10
A84: salade niçoise | B84: oeufs | C84: œufs | D84: 10 | E84: unité(s) | F84: 23 | G84: 2023-06-15 | H84: Entrée | I84: midi | J84: 10
A85: salade niçoise | B85: oignon cébette | C85: légumes | D85: 5 | E85: unité(s) | F85: 23 | G85: 2023-06-15 | H85: Entrée | I85: midi | J85: 10
A86: salade niçoise | B86: févettes | C86: légumes | D86: 20 | E86: unité(s) | F86: 23 | G86: 2023-06-15 | H86: Entrée | I86: midi | J86: 10
A87: salade niçoise | B87: poivron vert | C87: légumes | D87: 2.5 | E87: unité(s) | F87: 23 | G87: 2023-06-15 | H87: Entrée | I87: midi | J87: 10
A88: salade niçoise | B88: thon | C88: poissonnerie | D88: 500 | E88: gramme(s) | F88: 23 | G88: 2023-06-15 | H88: Entrée | I88: midi | J88: 10
A89: salade niçoise | B89: anchois | C89: poissonnerie | D89: 5 | E89: filet(s) | F89: 23 | G89: 2023-06-15 | H89: Entrée | I89: midi | J89: 10
A90: salade niçoise | B90: poivre | C90: épicerie | D90: 5 | E90: pincée(s) | F90: 23 | G90: 2023-06-15 | H90: Entrée | I90: midi | J90: 10
A91: salade niçoise | B91: sel fin | C91: épicerie | D91: 2.5 | E91: pincée(s) | F91: 23 | G91: 2023-06-15 | H91: Entrée | I91: midi | J91: 10
A92: quiche lorraine | B92: pate feullettée | C92: surgelés | D92: 1.333333333 | E92: unité(s) | F92: 23 | G92: 2023-06-15 | H92: Plat | I92: midi | J92: 8
A93: quiche lorraine | B93: oeufs | C93: œufs | D93: 8 | E93: unité(s) | F93: 23 | G93: 2023-06-15 | H93: Plat | I93: midi | J93: 8
A94: quiche lorraine | B94: lardons | C94: charcuterie | D94: 400 | E94: gramme(s) | F94: 23 | G94: 2023-06-15 | H94: Plat | I94: midi | J94: 8
A95: soupe à l'oignon | B95: pain de campagne | C95: boulangerie | D95: 13 | E95: tranches(s) | F95: 23 | G95: 2023-06-15 | H95: Entrée | I95: soir | J95: 13
A96: soupe à l'oignon | B96: beurre | C96: pdts laitiers | D96: 65 | E96: gramme(s) | F96: 23 | G96: 2023-06-15 | H96: Entrée | I96: soir | J96: 13
A97: soupe à l'oignon | B97: farine | C97: épicerie | D97: 48.75 | E97: gramme(s) | F97: 23 | G97: 2023-06-15 | H97: Entrée | I97: soir | J97: 13
A98: soupe à l'oignon | B98: oignons | C98: condiments | D98: 13 | E98: unité(s) | F98: 23 | G98: 2023-06-15 | H98: Entrée | I98: soir | J98: 13
A99: soupe à l'oignon | B99: gruyère rapé | C99: fromages | D99: 325 | E99: gramme(s) | F99: 23 | G99: 2023-06-15 | H99: Entrée | I99: soir | J99: 13
A100: soupe à l'oignon | B100: bouillon de volaille | C100: divers | D100: 3.25 | E100: Litre(s) | F100: 23 | G100: 2023-06-15 | H100: Entrée | I100: soir | J100: 13
A101: huitres | B101: huitres | C101: crustacés | D101: 80 | E101: unité(s) | F101: 23 | G101: 2023-06-15 | H101: Entrée | I101: midi | J101: 16
A102: melon jambon au porto | B102: melon | C102: légumes | D102: 4.25 | E102: unité(s) | F102: 23 | G102: 2023-06-15 | H102: Entrée | I102: soir | J102: 17
A103: melon jambon au porto | B103: porto | C103: spiritueux | D103: 106.25 | E103: centilitre(s) | F103: 23 | G103: 2023-06-15 | H103: Entrée | I103: soir | J103: 17
A104: melon jambon au porto | B104: jambon cru | C104: charcuterie | D104: 8.5 | E104: unité(s) | F104: 23 | G104: 2023-06-15 | H104: Entrée | I104: soir | J104: 17
A105: panacotta fraise | B105: sucre | C105: sucre | D105: 566.6666667 | E105: gramme(s) | F105: 23 | G105: 2023-06-15 | H105: Dessert | I105: soir | J105: 17
A106: panacotta fraise | B106: gélatine | C106: épicerie | D106: 11.33333333 | E106: feuille(s) | F106: 23 | G106: 2023-06-15 | H106: Dessert | I106: soir | J106: 17
A107: panacotta fraise | B107: vanille | C107: épicerie | D107: 5.666666667 | E107: gousse(s) | F107: 23 | G107: 2023-06-15 | H107: Dessert | I107: soir | J107: 17
A108: panacotta fraise | B108: fraises | C108: fruits | D108: 1416.666667 | E108: gramme(s) | F108: 23 | G108: 2023-06-15 | H108: Dessert | I108: soir | J108: 17
A109: panacotta fraise | B109: crème liquide | C109: pdts laitiers | D109: 2.833333333 | E109: Litre(s) | F109: 23 | G109: 2023-06-15 | H109: Dessert | I109: soir | J109: 17
A110: panacotta fraise | B110: menthe | C110: herbes | D110: 8.5 | E110: brin | F110: 23 | G110: 2023-06-15 | H110: Dessert | I110: soir | J110: 17
A111: plateau de fromages | B111: bleu de bresse | C111: fromages | D111: 0.64 | E111: unité(s) | F111: 23 | G111: 2023-06-15 | H111: Dessert | I111: midi | J111: 16
A112: plateau de fromages | B112: roquefort | C112: fromages | D112: 0.64 | E112: unité(s) | F112: 23 | G112: 2023-06-15 | H112: Dessert | I112: midi | J112: 16
A113: plateau de fromages | B113: camembert | C113: fromages | D113: 0.64 | E113: unité(s) | F113: 23 | G113: 2023-06-15 | H113: Dessert | I113: midi | J113: 16
A114: plateau de fromages | B114: comté | C114: fromages | D114: 0.64 | E114: unité(s) | F114: 23 | G114: 2023-06-15 | H114: Dessert | I114: midi | J114: 16
A115: plateau de fromages | B115: fromage de chèvre | C115: fromages | D115: 0.64 | E115: unité(s) | F115: 23 | G115: 2023-06-15 | H115: Dessert | I115: midi | J115: 16
A116: quiche lorraine | B116: pate feullettée | C116: pdts laitiers | D116: 2.833333333 | E116: unité(s) | F116: 23 | G116: 2023-06-15 | H116: Plat | I116: soir | J116: 17
A117: quiche lorraine | B117: oeufs | C117: œufs | D117: 17 | E117: unité(s) | F117: 23 | G117: 2023-06-15 | H117: Plat | I117: soir | J117: 17
A118: quiche lorraine | B118: lardons | C118: charcuterie | D118: 850 | E118: gramme(s) | F118: 23 | G118: 2023-06-15 | H118: Plat | I118: soir | J118: 17
A119: roti de porc | B119: roti de porc | C119: boucherie | D119: 4 | E119: Kg(s) | F119: 23 | G119: 2023-06-15 | H119: Plat | I119: midi | J119: 16
A120: roti de porc | B120: beurre | C120: pdts laitiers | D120: 100 | E120: gramme(s) | F120: 23 | G120: 2023-06-15 | H120: Plat | I120: midi | J120: 16
A121: roti de porc | B121: échalotte(s) | C121: légumes | D121: 12 | E121: unité(s) | F121: 23 | G121: 2023-06-15 | H121: Plat | I121: midi | J121: 16
A122: roti de porc | B122: ail | C122: condiments | D122: 20 | E122: gousse(s) | F122: 23 | G122: 2023-06-15 | H122: Plat | I122: midi | J122: 16
A123: roti de porc | B123: laurier | C123: herbes | D123: 12 | E123: unité(s) | F123: 23 | G123: 2023-06-15 | H123: Plat | I123: midi | J123: 16
A124: roti de porc | B124: thym | C124: herbes | D124: 8 | E124: brin(s) | F124: 23 | G124: 2023-06-15 | H124: Plat | I124: midi | J124: 16
A125: roti de porc | B125: vin blanc | C125: spiritueux | D125: 100 | E125: centilitre(s) | F125: 23 | G125: 2023-06-15 | H125: Plat | I125: midi | J125: 16
A126: roti de porc | B126: sel fin | C126: épicerie | D126: 8 | E126: pincée(s) | F126: 23 | G126: 2023-06-15 | H126: Plat | I126: midi | J126: 16
A127: roti de porc | B127: poivre | C127: épicerie | D127: 4 | E127: pincée(s) | F127: 23 | G127: 2023-06-15 | H127: Plat | I127: midi | J127: 16
A128: paté de lapin | B128: paté de lapin | C128: charcuterie | D128: 0.45 | E128: Kg(s) | F128: 23 | G128: 2023-06-15 | H128: Entrée | I128: midi | J128: 9
A129: pates à la tomate | B129: pates | C129: pâtes | D129: 875 | E129: gramme(s) | F129: 23 | G129: 2023-06-15 | H129: Plat | I129: soir | J129: 7
A130: pates à la tomate | B130: chair de tomates | C130: légumes | D130: 1050 | E130: gramme(s) | F130: 23 | G130: 2023-06-15 | H130: Plat | I130: soir | J130: 7
A131: pates à la tomate | B131: sel fin | C131: épicerie | D131: 3.5 | E131: pincée(s) | F131: 23 | G131: 2023-06-15 | H131: Plat | I131: soir | J131: 7
A132: pates à la tomate | B132: poivre | C132: épicerie | D132: 1.75 | E132: pincée(s) | F132: 23 | G132: 2023-06-15 | H132: Plat | I132: soir | J132: 7
A133: purée de pommes de terre | B133: pommes de terre | C133: légumes | D133: 2.25 | E133: Kg(s) | F133: 23 | G133: 2023-06-15 | H133: Plat | I133: midi | J133: 9
A134: purée de pommes de terre | B134: beurre | C134: pdts laitiers | D134: 225 | E134: gramme(s) | F134: 23 | G134: 2023-06-15 | H134: Plat | I134: midi | J134: 9
A135: purée de pommes de terre | B135: crème fraiche | C135: pdts laitiers | D135: 225 | E135: gramme(s) | F135: 23 | G135: 2023-06-15 | H135: Plat | I135: midi | J135: 9
A136: purée de pommes de terre | B136: noix de muscade | C136: épicerie | D136: 2.25 | E136: gousse(s) | F136: 23 | G136: 2023-06-15 | H136: Plat | I136: midi | J136: 9
A137: purée de pommes de terre | B137: Lait | C137: pdts laitiers | D137: 112.5 | E137: centilitre(s) | F137: 23 | G137: 2023-06-15 | H137: Plat | I137: midi | J137: 9
A138: tarte au citron | B138: pate brisée | C138: boulangerie | D138: 1.166666667 | E138: unité(s) | F138: 23 | G138: 2023-06-15 | H138: Dessert | I138: soir | J138: 7
A139: tarte au citron | B139: sucre | C139: sucre | D139: 175 | E139: gramme(s) | F139: 23 | G139: 2023-06-15 | H139: Dessert | I139: soir | J139: 7
A140: tarte au citron | B140: beurre | C140: pdts laitiers | D140: 116.6666667 | E140: gramme(s) | F140: 23 | G140: 2023-06-15 | H140: Dessert | I140: soir | J140: 7
A141: tarte au citron | B141: citron | C141: fruits | D141: 2.333333333 | E141: unité(s) | F141: 23 | G141: 2023-06-15 | H141: Dessert | I141: soir | J141: 7
A142: tarte au citron | B142: oeufs | C142: œufs | D142: 3.5 | E142: unité(s) | F142: 23 | G142: 2023-06-15 | H142: Dessert | I142: soir | J142: 7
A143: tiramisu | B143: boudoirs | C143: biscuits | D143: 27 | E143: unité(s) | F143: 23 | G143: 2023-06-15 | H143: Dessert | I143: midi | J143: 9
A144: tiramisu | B144: café expresso | C144: café | D144: 22.5 | E144: centilitre(s) | F144: 23 | G144: 2023-06-15 | H144: Dessert | I144: midi | J144: 9
A145: tiramisu | B145: oeufs | C145: œufs | D145: 4.5 | E145: unité(s) | F145: 23 | G145: 2023-06-15 | H145: Dessert | I145: midi | J145: 9
A146: tiramisu | B146: sucre | C146: sucre | D146: 202.5 | E146: gramme(s) | F146: 23 | G146: 2023-06-15 | H146: Dessert | I146: midi | J146: 9
A147: tiramisu | B147: créme mascarpone | C147: pdts laitiers | D147: 450 | E147: gramme(s) | F147: 23 | G147: 2023-06-15 | H147: Dessert | I147: midi | J147: 9
A148: tiramisu | B148: crème liquide | C148: pdts laitiers | D148: 33.75 | E148: centilitre(s) | F148: 23 | G148: 2023-06-15 | H148: Dessert | I148: midi | J148: 9
A149: tiramisu | B149: cacao | C149: café | D149: 56.25 | E149: gramme(s) | F149: 23 | G149: 2023-06-15 | H149: Dessert | I149: midi | J149: 9
A150: velouté d'asperges | B150: asperges | C150: légumes | D150: 1.75 | E150: botte(s) | F150: 23 | G150: 2023-06-15 | H150: Entrée | I150: soir | J150: 7
A151: velouté d'asperges | B151: pommes de terre | C151: légumes | D151: 3.5 | E151: unité(s) | F151: 23 | G151: 2023-06-15 | H151: Entrée | I151: soir | J151: 7
A152: velouté d'asperges | B152: oignons | C152: condiments | D152: 1.75 | E152: unité(s) | F152: 23 | G152: 2023-06-15 | H152: Entrée | I152: soir | J152: 7
A153: velouté d'asperges | B153: persil | C153: herbes | D153: 1.75 | E153: brin(s) | F153: 23 | G153: 2023-06-15 | H153: Entrée | I153: soir | J153: 7
A154: velouté d'asperges | B154: bouillon | C154: épicerie | D154: 0.875 | E154: cube(s) | F154: 23 | G154: 2023-06-15 | H154: Entrée | I154: soir | J154: 7
A155: velouté d'asperges | B155: lait | C155: pdts laitiers | D155: 17.5 | E155: centilitre(s) | F155: 23 | G155: 2023-06-15 | H155: Entrée | I155: soir | J155: 7
A156: omelette sans oeufs | B156: farine pois chiche | C156: épicerie | D156: 400 | E156: gramme(s) | F156: 23 | G156: 2023-06-15 | H156: Plat | I156: midi | J156: 16
A157: omelette sans oeufs | B157: fromage en dés | C157: fromages | D157: 200 | E157: gramme(s) | F157: 23 | G157: 2023-06-15 | H157: Plat | I157: midi | J157: 16
A158: omelette sans oeufs | B158: farine de mais | C158: épicerie | D158: 160 | E158: gramme(s) | F158: 23 | G158: 2023-06-15 | H158: Plat | I158: midi | J158: 16
A159: omelette sans oeufs | B159: eau | C159: eau | D159: 100 | E159: centilitre(s) | F159: 23 | G159: 2023-06-15 | H159: Plat | I159: midi | J159: 16
A160: omelette sans oeufs | B160: huile d'olive | C160: huile | D160: 4 | E160: cuillère(s) à soupe | F160: 23 | G160: 2023-06-15 | H160: Plat | I160: midi | J160: 16
A161: omelette sans oeufs | B161: oignons | C161: condiments | D161: 2 | E161: unité(s) | F161: 23 | G161: 2023-06-15 | H161: Plat | I161: midi | J161: 16
A162: salade de riz | B162: tomate | C162: légumes | D162: 8 | E162: unité(s) | F162: 23 | G162: 2023-06-15 | H162: Entrée | I162: midi | J162: 16
A163: salade de riz | B163: vinaigre | C163: vinaigre | D163: 16 | E163: cuillère(s) à soupe | F163: 23 | G163: 2023-06-15 | H163: Entrée | I163: midi | J163: 16
A164: salade de riz | B164: riz | C164: graines | D164: 1600 | E164: gramme(s) | F164: 23 | G164: 2023-06-15 | H164: Entrée | I164: midi | J164: 16
A165: salade de riz | B165: oeufs | C165: œufs | D165: 8 | E165: unité(s) | F165: 23 | G165: 2023-06-15 | H165: Entrée | I165: midi | J165: 16
A166: salade de riz | B166: thon | C166: poissonnerie | D166: 800 | E166: gramme(s) | F166: 23 | G166: 2023-06-15 | H166: Entrée | I166: midi | J166: 16
A167: salade de riz | B167: mayonnaise | C167: sauces | D167: 16 | E167: cuillère(s) à soupe | F167: 23 | G167: 2023-06-15 | H167: Entrée | I167: midi | J167: 16
A168: smoothie fraise-menthe | B168: frites | C168: surgelés | D168: 1400 | E168: gramme(s) | F168: 23 | G168: 2023-06-15 | H168: Dessert | I168: soir | J168: 14
A169: smoothie fraise-menthe | B169: sucre | C169: sucre | D169: 140 | E169: gramme(s) | F169: 23 | G169: 2023-06-15 | H169: Dessert | I169: soir | J169: 14
A170: smoothie fraise-menthe | B170: lait | C170: pdts laitiers | D170: 140 | E170: centilitre(s) | F170: 23 | G170: 2023-06-15 | H170: Dessert | I170: soir | J170: 14
A171: smoothie fraise-menthe | B171: menthe | C171: herbes | D171: 14 | E171: brin | F171: 23 | G171: 2023-06-15 | H171: Dessert | I171: soir | J171: 14
A172: salade de pommes de terre | B172: pommes de terre | C172: légumes | D172: 1.375 | E172: Kg(s) | F172: 23 | G172: 2023-06-15 | H172: Entrée | I172: soir | J172: 11
A173: salade de pommes de terre | B173: oignons | C173: condiments | D173: 2.75 | E173: unité(s) | F173: 23 | G173: 2023-06-15 | H173: Entrée | I173: soir | J173: 11
A174: salade de pommes de terre | B174: vinaigre | C174: vinaigre | D174: 2.75 | E174: cuillère(s) à soupe | F174: 23 | G174: 2023-06-15 | H174: Entrée | I174: soir | J174: 11
A175: salade de pommes de terre | B175: mayonnaise | C175: sauces | D175: 8.25 | E175: cuillère(s) à soupe | F175: 23 | G175: 2023-06-15 | H175: Entrée | I175: soir | J175: 11
A176: salade de pommes de terre | B176: sel fin | C176: épicerie | D176: 1.375 | E176: pincée(s) | F176: 23 | G176: 2023-06-15 | H176: Entrée | I176: soir | J176: 11
A177: salade de pommes de terre | B177: cornichons au vinaigre | C177: condiments | D177: 13.75 | E177: unité(s) | F177: 23 | G177: 2023-06-15 | H177: Entrée | I177: soir | J177: 11
A178: yaourt | B178: yaourt(s) | C178: pdts laitiers | D178: 2 | E178: unité(s) | F178: 23 | G178: 2023-06-15 | H178: Dessert | I178: midi | J178: 2
A179: yaourt | B179: sucre | C179: sucre | D179: 10 | E179: gramme(s) | F179: 23 | G179: 2023-06-15 | H179: Dessert | I179: midi | J179: 2
A180: carottes rapées | B180: carottes | C180: légumes | D180: 1500 | E180: gramme(s) | F180: 23 | G180: 2023-06-15 | H180: Entrée | I180: midi | J180: 12
A181: carottes rapées | B181: huile | C181: huile | D181: 30 | E181: centilitre(s) | F181: 23 | G181: 2023-06-15 | H181: Entrée | I181: midi | J181: 12
A182: bananes flambées | B182: bananes | C182: fruits | D182: 6 | E182: unité(s) | F182: 23 | G182: 2023-06-15 | H182: Dessert | I182: midi | J182: 6
A183: bananes flambées | B183: sucre | C183: sucre | D183: 75 | E183: gramme(s) | F183: 23 | G183: 2023-06-15 | H183: Dessert | I183: midi | J183: 6
A184: bananes flambées | B184: rhum | C184: spiritueux | D184: 45 | E184: centilitre(s) | F184: 23 | G184: 2023-06-15 | H184: Dessert | I184: midi | J184: 6
A185: harengs pommes à l'huile | B185: filets de harengs | C185: poissonnerie | D185: 2 | E185: unité(s) | F185: 33 | G185: 19/08/2023 | H185: Entrée | I185: midi | J185: 2
A186: harengs pommes à l'huile | B186: pommes de terre | C186: légumes | D186: 300 | E186: gramme(s) | F186: 33 | G186: 19/08/2023 | H186: Entrée | I186: midi | J186: 2
A187: harengs pommes à l'huile | B187: radis | C187: légumes | D187: 0.25 | E187: botte(s) | F187: 33 | G187: 19/08/2023 | H187: Entrée | I187: midi | J187: 2
A188: harengs pommes à l'huile | B188: oignon nouveau | D188: 1 | E188: unité(s) | F188: 33 | G188: 19/08/2023 | H188: Entrée | I188: midi | J188: 2
A189: harengs pommes à l'huile | B189: moutarde | C189: sauces | D189: 0.5 | E189: cac | F189: 33 | G189: 19/08/2023 | H189: Entrée | I189: midi | J189: 2
A190: harengs pommes à l'huile | B190: vinaigre rouge | D190: 0.5 | E190: cas | F190: 33 | G190: 19/08/2023 | H190: Entrée | I190: midi | J190: 2
A191: harengs pommes à l'huile | B191: huile d'olive | C191: huile | D191: 1.5 | E191: cas | F191: 33 | G191: 19/08/2023 | H191: Entrée | I191: midi | J191: 2
A192: huîtres au kacha et à la pomme | B192: huitres | C192: crustacés | D192: 3 | E192: unité(s) | F192: 33 | G192: 20/08/2023 | H192: Entrée | I192: midi | J192: 1
A193: huîtres au kacha et à la pomme | B193: kasha | C193: graines | D193: 12.5 | E193: gramme(s) | F193: 33 | G193: 20/08/2023 | H193: Entrée | I193: midi | J193: 1
A194: huîtres au kacha et à la pomme | B194: pommes reinette | C194: pdts laitiers | D194: 0.25 | E194: unité(s) | F194: 33 | G194: 20/08/2023 | H194: Entrée | I194: midi | J194: 1
A195: huîtres au kacha et à la pomme | B195: citron vert | C195: agrumes | D195: 0.25 | E195: unité(s) | F195: 33 | G195: 20/08/2023 | H195: Entrée | I195: midi | J195: 1
A196: huîtres au kacha et à la pomme | B196: beurre | C196: pdts laitiers | D196: 7.5 | E196: gramme(s) | F196: 33 | G196: 20/08/2023 | H196: Entrée | I196: midi | J196: 1
A197: huîtres au kacha et à la pomme | B197: sauce soja | C197: sauces | D197: 0.25 | E197: cas | F197: 33 | G197: 20/08/2023 | H197: Entrée | I197: midi | J197: 1
A198: huîtres au kacha et à la pomme | B198: gingembre | C198: épicerie | D198: 2.5 | E198: gramme(s) | F198: 33 | G198: 20/08/2023 | H198: Entrée | I198: midi | J198: 1
A199: huîtres au kacha et à la pomme | B199: coriandre | C199: herbes | D199: 1.25 | E199: feuille(s) | F199: 33 | G199: 20/08/2023 | H199: Entrée | I199: midi | J199: 1
A200: huîtres au kacha et à la pomme | B200: poivre | C200: épices | D200: 0.25 | E200: pincée(s) | F200: 33 | G200: 20/08/2023 | H200: Entrée | I200: midi | J200: 1
... 74 more rows

Sheet Couts
A1: Ingrédients | B1: unité de gros | C1: Observ. | D1: prix de gros | E1: Qté | F1: Unité repas | G1: cout /qté | H1: cout /1 | I1: unité1 | J1: unité2 | K1: coeff. | N1: 1 cas = 1,5 cl 1 cac = 0,5 cl | O1: 1 cac = 5 g 1 cas = 10 g | P1: 11
A2: ail | B2: kg | C2: 1 gousse = 7 g | D2: 8 | E2: 1 | F2: gousse(s) | G2: =+D2/1000*7 -> 0.056 | H2: =+G2/E2 -> 0.056
A3: anchois | B3: 800 g | C3: 1 anchois = 10 g | D3: 18 | E3: 1 | F3: unité(s) | G3: =+D2/800*10 -> 0.1 | H3: 0.1
A4: filet anchois | B4: 100 g | C4: 25 filets /boite 1 filet = 4 g | D4: 2.85 | E4: 1 | F4: filet(s) | G4: =+D3/100*4 -> 0.72 | H4: 0.72
A5: aneth | B5: 1 | C5: 1 botte = 30 g, 1 cas 3 g | D5: 1 | E5: 1 | F5: cas | G5: 0.3 | H5: 0.3
A6: arome vanille | B6: litre | C6: 1 cas = 1,5 cl | D6: 7.5 | E6: 1 | F6: cas | G6: =+D6/100*1.5 -> 0.1125 | H6: 0.1125
A7: asperges | B7: 500 g | C7: 1 bote de 500 g 1 asperge = 50 g | D7: 3 | E7: 1 | F7: unité(s) | G7: =+D7/500*50 -> 0.3 | H7: 0.3
A8: avocat | E8: 1 | F8: unité(s) | G8: 1 | H8: =+G8/E8 -> 1
A9: avocat | B9: 1 | C9: 1 avocat = 300 g, chair 200 g | D9: 1 | E9: 100 | F9: gramme(s) | G9: 0.5 | H9: 0.005
A10: bananes | B10: 1 kg | C10: 5 bananes/kilo | D10: 1 | E10: 1 | F10: unité(s) | G10: 0.2 | H10: 0.2
A11: basilic | B11: 1 botte | C11: 20 feuilles /botte | D11: 1 | E11: 5 | F11: feuille(s) | G11: 0.2 | H11: 0.04
A12: beurre | B12: 500 g | D12: 3 | E12: 100 | F12: gramme(s) | G12: =3/5 -> 0.6 | H12: 0.006
A13: beurre | B13: 500 g | C13: noix= 20 g | D13: 3 | E13: 1 | F13: noix | G13: =+D13/500*20 -> 0.12 | H13: 0.12
A14: beurre d'escargot | B14: 300 g | C14: voir préparations | D14: 5.71 | E14: 100 | F14: gramme(s) | G14: =+D14/3 -> 1.903333333 | H14: =+G14/E14 -> 0.01903333333
A15: beurre pommade | B15: 500 g | D15: 3 | E15: 100 | F15: gramme(s) | G15: =3/5 -> 0.6 | H15: 0.006
A16: beurre salé | B16: 500 g | D16: 3 | E16: 100 | F16: gramme(s) | G16: =3/5 -> 0.6 | H16: 0.006
A17: beurre salé | B17: 500 g | C17: noix= 20 g | D17: 3 | E17: 1 | F17: noix | G17: =+D17/500*20 -> 0.12 | H17: 0.12
A18: biscuits boudoir | B18: 100 g | C18: 12 biscuits | D18: 3 | E18: 1 | F18: unité(s) | G18: =D18/12 -> 0.25 | H18: 0.25
A19: blanc d'œuf | C19: 12 œufs 1 jaune œuf = 2/3 px | D19: 2.85 | E19: 1 | F19: unité(s) | G19: =2.85/12*1/3 -> 0.07916666667 | H19: 0.07916666667
A20: bleu de bresse | D20: 4 | E20: 1 | F20: unité(s) | G20: =+D20 -> 4 | H20: =+G20/E20 -> 4
A21: bleu de bresse | B21: 300 g | D21: 4 | E21: 50 | F21: gramme(s) | G21: =+D21/300*50 -> 0.6666666667 | H21: 0.01333333333
A22: bouillon bœuf | B22: 120 g | C22: 12 cubes | D22: 2.45 | E22: 1 | F22: cube(s) | G22: =+D22/12 -> 0.2041666667 | H22: 0.2041666667
A23: bouillon de volaille | B23: 120 g | C23: 12 cubes | D23: 2.25 | E23: 1 | F23: litre(s) | G23: =+D23/12 -> 0.1875 | H23: 0.1875
A24: bouillon de volaille | B24: 1 litre | C24: 2 cubes | D24: 4.5 | E24: 10 | F24: ctl(s) | G24: =4.5/12*2 -> 0.75 | H24: 0.075
A25: bouquet garni | E25: 1 | F25: unité(s) | G25: 1 | H25: =+G25/E25 -> 1
A26: brocoli | B26: 1 kg | E26: 1 | F26: unité(s) | G26: 1 | H26: =+G26/E26 -> 1
A27: brocoli | B27: 1 kg | D27: 5.3 | E27: 100 | F27: gramme(s) | G27: =+D27/1000*100 -> 0.53 | H27: 0.0053
A28: cacao | B28: 800 g | D28: 4.75 | E28: 10 | F28: gramme(s) | G28: =+D28/800*10 -> 0.059375 | H28: 0.0059375
A29: cacao | B29: 800 g | C29: 1 cas = 20 g | D29: 4.75 | E29: 1 | F29: cas | G29: =+D29/800*20 -> 0.11875 | H29: 0.11875
A30: café | B30: 750 g | C30: 10 g cafetière donne 30 ctls | D30: 13.5 | E30: 30 | F30: ctl(s) | G30: =13.5/750*10 -> 0.18 | H30: 0.006
A31: café expresso | B31: 750g | C31: 10 g expresso donne 10 ctls | D31: 13.5 | E31: 10 | F31: ctl(s) | G31: =13.5/750*10 -> 0.18 | H31: 0.018
A32: calvados | B32: 70 cls | D32: 27 | E32: 5 | F32: ctl(s) | G32: =5/70*27 -> 1.928571429 | H32: 0.3857142857
A33: camembert | B33: 250 g | D33: 3.5 | E33: 1 | F33: unité(s) | G33: 3.5 | H33: 3.5
A34: cannelle | B34: 70 g | C34: 1 pincée = 1 g | D34: 1.3 | E34: 1 | F34: pincée(s) | G34: =1.3/70 -> 0.01857142857 | H34: 0.01857142857
A35: câpres | B35: 120 g | C35: 1 cas = 10 g | D35: 2.49 | E35: 1 | F35: cas | G35: =+D35/120*10 -> 0.2075 | H35: 0.2075
A36: carcasses crevettes | B36: 500 g | C36: 1/3 crevette | D36: 9 | E36: 100 | F36: gramme(s) | G36: =+D36/5*3 -> 5.4 | H36: 0.054
A37: carottes | C37: 1 carotte = 125 g | E37: 1 | F37: unité(s) | G37: =2/1000*125 -> 0.25 | H37: =+G37/E37 -> 0.25
A38: carottes | B38: 1 kg | D38: 2 | E38: 100 | F38: gramme(s) | G38: =+D38/1000*100 -> 0.2 | H38: 0.002
A39: cassonnade | B39: 1 kg | D39: 2.69 | E39: 100 | F39: gramme(s) | G39: 0.27 | H39: =+G39/E39 -> 0.0027
A40: céleri rave | D40: 3 | E40: 1 | F40: unité(s) | G40: 3 | H40: =+G40/E40 -> 3
A41: céleri rave | B41: 1 kg | D41: 3 | E41: 100 | F41: gramme(s) | G41: =+D41/1000*100 -> 0.3 | H41: 0.003
A42: céleri branche | B42: 1 kg | D42: 3 | E42: 1 | F42: unité(s) | G42: 3 | H42: =+G42/E42 -> 3
A43: céleri branche | B43: 1 kg | D43: 3 | E43: 100 | F43: gramme(s) | G43: =+D43/1000*100 -> 0.3 | H43: 0.003
A44: cerfeuil | B44: 1 | C44: 1 botte = 200 feuilles | D44: 1 | E44: 20 | F44: feuille(s) | G44: 0.1 | H44: =+G44/E44 -> 0.005
A45: cerneaux noix | B45: 400 g | D45: 7 | E45: 20 | F45: gramme(s) | G45: =20/400*D45 -> 0.35 | H45: 0.0175
A46: chair de potiron | B46: 1 kg | D46: 2.4 | E46: 100 | F46: gramme(s) | G46: 0.24 | H46: 0.0024
A47: chair de tomates | B47: 1 kg | D47: 1.5 | E47: 100 | F47: gramme(s) | G47: 0.15 | H47: 0.0015
A48: champignons pleurotte | B48: 250 g | C48: boite | D48: 4 | E48: 100 | F48: gramme(s) | G48: =100/250*D48 -> 1.6 | H48: 0.016
A49: champignons paris | B49: 500 g | C49: en barquette | D49: 2.8 | E49: 100 | F49: gramme(s) | G49: =+D49/500*100 -> 0.56 | H49: 0.0056
A50: chocolat noir | B50: 300 g | C50: tablette | D50: 1.35 | E50: 100 | F50: gramme(s) | G50: =1.35/3 -> 0.45 | H50: 0.0045
A51: chorizo | B51: 200 g | C51: saucisson | D51: 3.5 | E51: 100 | F51: gramme(s) | G51: =+D51/2 -> 1.75 | H51: 0.0175
A52: chou fleur | B52: 1,5 kg | D52: 3 | E52: 1 | F52: unité(s) | G52: 1 | H52: 1
A53: chou fleur | B53: 1,5 kg | C53: pièce | D53: 3 | E53: 100 | F53: gramme(s) | G53: =3/1.5*0.1 -> 0.2 | H53: 0.002
A54: ciboulette | B54: 100 g | D54: 1 | E54: 1 | F54: botte(s) | G54: 1 | H54: =+G54/E54 -> 1
A55: ciboulette | B55: 100 g | C55: 1 botte=100 grammes | D55: 1 | E55: 20 | F55: gramme(s) | G55: 0.2 | H55: 0.01
A56: cidre | B56: 75 cl | D56: 1.9 | E56: 10 | F56: ctl(s) | G56: =1.9/75*10 -> 0.2533333333 | H56: 0.02533333333
A57: citron jaune | B57: 500 g | C57: 1 citron = 100 g | D57: 2.8 | E57: 1 | F57: unité(s) | G57: =2/5 -> 0.4 | H57: 0.4
A58: citron jaune | B58: 500 g | C58: 1 citron = 45 ml | D58: 2.8 | E58: 1 | F58: cas | G58: =+D58/500/4.5*1.5 -> 0.001866666667 | H58: =+G58/E58 -> 0.001866666667
A59: citron vert | B59: 500 g | C59: 1 citron = 100 g | D59: 2 | E59: 1 | F59: unité(s) | G59: =2/5 -> 0.4 | H59: 0.4
A60: concombre | B60: 200 g | C60: 1 concombre = 200 g | D60: 1 | E60: 1 | F60: unité(s) | G60: 1 | H60: =+G60/E60 -> 1 | I60: unité(s) | J60: gramme(s) | K60: 200
A61: concombre | B61: 200 g | C61: 1 concombre = 200 g | D61: 1 | E61: 100 | F61: gramme(s) | G61: =+D61/10 -> 0.1 | H61: =+G61/E61 -> 0.001
A62: compote pomme | B62: 710 g | D62: 1.3 | E62: 100 | F62: gramme(s) | G62: =+D62/710*100 -> 0.1830985915 | H62: 0.001830985915
A63: comté | B63: 200 g | D63: 3.5 | E63: 1 | F63: unité(s) | G63: 3.5 | H63: =+G63/E63 -> 3.5
A64: comté | B64: 200 g | D64: 3.5 | E64: 100 | F64: gramme(s) | G64: =+D64/2 -> 1.75 | H64: 0.0175 | I64: unité(s) | J64: gramme(s) | K64: 200
A65: comté rapé | B65: 150 g | D65: 2.5 | E65: 100 | F65: gramme(s) | G65: =2.5/3*2 -> 1.666666667 | H65: 0.01666666667
A66: confiture abricots | B66: 370 g | D66: 2.4 | E66: 100 | F66: gramme(s) | G66: =2.4/370*100 -> 0.6486486486 | H66: 0.006486486486
A67: coriandre | C67: 1 botte = 50 feuilles | D67: 1 | E67: 10 | F67: feuille(s) | G67: =1/50*10 -> 0.2 | H67: 0.02
A68: cornichons au vinaigre | B68: 360 g | D68: 3.45 | E68: 20 | F68: gramme(s) | G68: =3.45/360*20 -> 0.1916666667 | H68: 0.009583333333
A69: coulis framboise | B69: 165 g | C69: flacon | D69: 2.45 | E69: 20 | F69: ctl(s) | G69: 2.05 | H69: 0.1025
A70: courgette | B70: 1 kg | C70: 1 courgette = 200 g | D70: 1.7 | E70: 1 | F70: unité(s) | G70: =D70/1000*200 -> 0.34 | H70: =+G70/E70 -> 0.34
A71: courgette | B71: 1 kg | D71: 1.7 | E71: 100 | F71: gramme(s) | G71: =1.7/10 -> 0.17 | H71: 0.0017
A72: crème fraiche | B72: 50 cls | D72: 2 | E72: 10 | F72: ctl(s) | G72: 0.2 | H72: 0.02
A73: crème fraiche | B73: 50 cls | D73: 2 | E73: 1 | F73: cas | G73: =+D73/50*1.5 -> 0.06 | H73: =+G73/E73 -> 0.06
A74: crème fraiche | B74: 50 cls | D74: 2 | E74: 50 | F74: gramme(s) | G74: 0.2 | H74: 0.004
A75: crème liquide | B75: 1 litre | C75: 1 brique = 20 ctls | D75: 4 | E75: 10 | F75: ctl(s) | G75: 0.4 | H75: 0.04 | I75: centilitre(s) | J75: Litre(s) | K75: =1/100 -> 0.01
A76: crevettes | B76: 500 g | D76: 9 | E76: 100 | F76: gramme(s) | G76: 0.9 | H76: 0.009
A77: crevettes | B77: 500 g | C77: 6 crevettes pour 100 g, 30 pour 500 g | D77: 9 | E77: 1 | F77: unité(s) | G77: =9/30 -> 0.3 | H77: 0.3
A78: curcuma | B78: 100 g | C78: 1 pincée = 1 g | D78: 1.7 | E78: 1 | F78: pincée(s) | G78: =1.7/100 -> 0.017 | H78: 0.017
A79: échalotte | B79: 500 g | C79: 1 gousse = 4 g | D79: 2 | E79: 1 | F79: gousse(s) | G79: =2/500*4 -> 0.016 | H79: 0.016
A80: emmental | B80: 250 g | C80: piéce | D80: 2.49 | E80: 100 | F80: gramme(s) | G80: =2.49/250*100 -> 0.996 | H80: 0.00996
A81: endives | B81: 500 g | C81: 4 endives pour 500g | D81: 2 | E81: 1 | F81: unité(s) | G81: =2/4 -> 0.5 | H81: 0.5
A82: endives | B82: 500 g | C82: 4 endives pour 500g | D82: 2 | E82: 100 | F82: gramme(s) | G82: =2/500*E82 -> 0.4 | H82: =+G82/E82 -> 0.004
A83: farine | B83: 1 kg | D83: 0.75 | E83: 100 | F83: gramme(s) | G83: =0.75/10 -> 0.075 | H83: 0.00075 | I83: cas | J83: gramme(s) | K83: 10
A84: farine | B84: 1 kg | C84: 1 cas = 10 g | D84: 0.75 | E84: 1 | F84: cas | G84: =+D84/1000*15 -> 0.01125 | H84: =+G84/E84 -> 0.01125
A85: farine de mais | B85: 500 g | D85: 3.85 | E85: 100 | F85: gramme(s) | G85: 0.38 | H85: 0.0038
A86: farine de pois chiche | B86: 500 g | D86: 4.19 | E86: 100 | F86: gramme(s) | G86: 0.42 | H86: =+G86/E86 -> 0.0042
A87: fécule pdt | B87: 250 g | C87: 1 cac = 5 g | D87: 1.55 | E87: 1 | F87: cac | G87: =1.55/250*5 -> 0.031 | H87: 0.031
A88: fenouil | B88: 1 kg | C88: 1 fenouil = 300 g | D88: 4 | E88: 100 | F88: gramme(s) | G88: =+D88/1000*300 -> 1.2 | H88: 0.012
A89: fenouil | B89: 300 g | C89: 1 fenouil = 300 g | D89: 1.19 | E89: 1.2 | F89: unité(s) | G89: =+E89 -> 1.2 | H89: =+G89/E89 -> 1
A90: féta | B90: 1 kg | D90: 14 | E90: 100 | F90: gramme(s) | G90: 1.4 | H90: =+G90/E90 -> 0.014
A91: févettes | B91: 1 kg | D91: 2.39 | E91: 100 | F91: gramme(s) | G91: 0.24 | H91: 0.0024
A92: filets de harengs | B92: 325 g | C92: 1 filet = 50 g | D92: 5.29 | E92: 1 | F92: unité(s) | G92: =5.29/325*50 -> 0.8138461538 | H92: 0.8138461538
A93: fond de veau | B93: 110 g | C93: 1 cas = 10 g | D93: 3.15 | E93: 1 | F93: cas | G93: =3.15/110*10 -> 0.2863636364 | H93: 0.2863636364
A94: fraises | B94: 250 g | C94: 1 fraise = 15 g | D94: 3 | E94: 100 | F94: gramme(s) | G94: =3/250*100 -> 1.2 | H94: 0.012
A95: framboises | B95: 125 g | C95: 1 framboise = 4 g | D95: 2 | E95: 100 | F95: gramme(s) | G95: =2/125*100 -> 1.6 | H95: 0.016
A96: frites | B96: 1 kg | D96: 1 | E96: 100 | F96: gramme(s) | G96: 0.1 | H96: 0.001
A97: fromage de chèvre | B97: 300 g | D97: 3.34 | E97: 1 | F97: unité(s) | G97: 3.34 | H97: =+G97/E97 -> 3.34
A98: fromage de chèvre | B98: 300 g | D98: 3.34 | E98: 25 | F98: gramme(s) | G98: =+D98/300*25 -> 0.2783333333 | H98: 0.01113333333
A99: féta en dés | B99: 200 g | D99: 2.15 | E99: 20 | F99: gramme(s) | G99: =2.15/200*50 -> 0.5375 | H99: 0.026875
A100: fromage frais | B100: 500 g | D100: 1.8 | E100: 100 | F100: gramme(s) | G100: =+D100/500*100 -> 0.36 | H100: 0.0036
A101: gélatine | B101: 17 g | C101: 9 feuilles | D101: 1.55 | E101: 1 | F101: feuille(s) | G101: =+D101/9 -> 0.1722222222 | H101: 0.1722222222
A102: gingembre | B102: 200 g | D102: 2.59 | E102: 10 | F102: gramme(s) | G102: =+D102/200*10 -> 0.1295 | H102: 0.01295
A103: glaçons | E103: 1 | F103: unité(s) | G103: 0 | H103: =+G103/E103 -> 0
A104: graines fenouil | B104: 50 g | D104: 2.29 | E104: 10 | F104: gramme(s) | G104: =+D104/5 -> 0.458 | H104: 0.0458
A105: grains de poivre noir | B105: 45 g | C105: 1 grain= 1 g | D105: 1.45 | E105: 1 | F105: grain(s) | G105: =+D105/45 -> 0.03222222222 | H105: 0.03222222222
A106: gros sel | B106: 1 kg | D106: 0.5 | E106: 5 | F106: gramme(s) | G106: =+D106/1000*5 -> 0.0025 | H106: 0.0005
A107: gruyère rapé | B107: 500 g | D107: 4.45 | E107: 100 | F107: gramme(s) | G107: =+D107/5 -> 0.89 | H107: 0.0089
A108: hachis de porc | B108: 500 g | D108: 6.85 | E108: 100 | F108: gramme(s) | G108: =+D108/5 -> 1.37 | H108: =+G108/E108 -> 0.0137
A109: haricots secs | B109: 1 kg | D109: 3.85 | E109: 100 | F109: gramme(s) | G109: 0.39 | H109: 0.0039
A110: haricots verts | B110: 500 g | D110: 1.5 | E110: 100 | F110: gramme(s) | G110: =+D110/5 -> 0.3 | H110: 0.003
A111: huile de tournesol | B111: 1 litre | C111: 1 cas = 1,5 cl | D111: 2.59 | E111: 1 | F111: cas | G111: =2.59/100*1.5 -> 0.03885 | H111: =+G111/E111 -> 0.03885
A112: huile de tournesol | B112: 1 litre | D112: 2.59 | E112: 10 | F112: ctl(s) | G112: 0.26 | H112: =+G112/E112 -> 0.026
A113: huile végétale | B113: 2 litres | D113: 3.8 | E113: 10 | F113: ctl(s) | G113: =+D113/2*0.1 -> 0.19 | H113: 0.019
A114: huile d'olive | B114: 1 litre | D114: 6.65 | E114: 5 | F114: ctl(s) | G114: =+D114/100*5 -> 0.3325 | H114: 0.0665
A115: huile d'olive | B115: 1 litre | C115: 1 cas = 1,5 cl | D115: 6.65 | E115: 1 | F115: cas | G115: =+D115/100*1.5 -> 0.09975 | H115: 0.09975
A116: huile d'olive | B116: 1 litre | C116: 1 cac = 0,5 cl | D116: 6.65 | E116: 1 | F116: cac | G116: =+D116/100*0.5 -> 0.03325 | H116: 0.03325
A117: huitres | B117: 1 kg | C117: 12 huitres | D117: 14 | E117: 1 | F117: unité(s) | G117: =+D117/12 -> 1.166666667 | H117: 1.166666667
A118: infusion de thé | B118: 32,5 g | C118: 25 sachets | D118: 1.1 | E118: 1 | F118: sachet(s) | G118: =+D118/25 -> 0.044 | H118: 0.044
A119: jambon blanc | B119: 1 kg | C119: cuit au torchon. 1 tranche = 50 g | D119: 18.5 | E119: 1 | F119: tranche(s) | G119: =+D119/1000*50 -> 0.925 | H119: 0.925
A120: jambon cru | B120: 1 kg | C120: 1 tranche = 25 g | D120: 33 | E120: 1 | F120: tranche(s) | G120: =+D120/1000*25 -> 0.825 | H120: 0.825
A121: jambon cru | B121: 90 g | C121: barquette 6 tranches | D121: 3 | E121: 1 | F121: tranche(s) | G121: =3/6 -> 0.5 | H121: 0.5
A122: jaune d'œuf | C122: 12 œufs 1 jaune œuf = 2/3 px | D122: 2.85 | E122: 1 | F122: unité(s) | G122: =2.85/12*2/3 -> 0.1583333333 | H122: 0.1583333333
A123: joue de bœuf | B123: 1 kg | D123: =10.15/450*1000 -> 22.55555556 | E123: 1 | F123: kg(s) | G123: =+D123 -> 22.55555556 | H123: =+G123/E123 -> 22.55555556
A124: joue de bœuf | B124: 450 g | D124: 10.15 | E124: 1 | F124: unité(s) | G124: 10.15 | H124: 10.15
A125: jus d'orange | B125: litre | D125: 1.65 | E125: 10 | F125: ctl(s) | G125: 0.17 | H125: 0.017
A126: kasha | B126: 250 g | D126: 6.5 | E126: 10 | F126: gramme(s) | G126: 0.65 | H126: =+G126/E126 -> 0.065
A127: lait | B127: litre | D127: 1 | E127: 10 | F127: ctl(s) | G127: 0.1 | H127: 0.01
A128: lait | B128: litre | D128: 1 | E128: 1 | F128: litre(s) | G128: 1 | H128: =+G128/E128 -> 1 | I128: ctl(s) | J128: Litre(s) | K128: =1/100 -> 0.01
A129: lait entier | B129: litre | D129: 1 | E129: 100 | F129: ctl(s) | G129: 1 | H129: =+G129/E129 -> 0.01
A130: laitue | B130: 1 | D130: 1 | E130: 1 | F130: unité(s) | G130: 1 | H130: =+G130/E130 -> 1
A131: laitue | B131: 1 | C131: 5 feuilles autour = 1/2 laitue | D131: 1 | E131: 5 | F131: feuille(s) | G131: =0.2/2 -> 0.1 | H131: 0.02
A132: langue de bœuf | B132: 325 g | C132: boite | D132: 6.35 | E132: 100 | F132: gramme(s) | G132: =+D132/325*100 -> 1.953846154 | H132: 0.01953846154
A133: lapin | B133: 1 kg | C133: 1 lapin = 1 kg | D133: 10.35 | E133: 1 | F133: unité(s) | G133: 10.35 | H133: =+G133/E133 -> 10.35
A134: lapin | B134: 1 kg | D134: 10.35 | E134: 1 | F134: kg(s) | G134: =+D134 -> 10.35 | H134: =+G134/E134 -> 10.35
A135: lapin | B135: 1 kg | D135: 10.35 | E135: 100 | F135: gramme(s) | G135: =10.35/10 -> 1.035 | H135: 0.01035
A136: lard fumé | B136: 1 kg | C136: 1 tranche = 80 g | D136: 17 | E136: 100 | F136: gramme(s) | G136: =+D136/10 -> 1.7 | H136: =+G136/E136 -> 0.017
A137: lard fumé | B137: 1 kg | C137: 1 tranche = 80 g | D137: 17 | E137: 1 | F137: tranche(s) | G137: =17/10 -> 1.7 | H137: 1.7
A138: lard gras | B138: 500 g | D138: 10 | E138: 100 | F138: gramme(s) | G138: 1 | H138: 0.01
A139: lardons | B139: 200 g | D139: 1.65 | E139: 100 | F139: gramme(s) | G139: =1.65/2 -> 0.825 | H139: 0.00825
A140: laurier | B140: botte | C140: 1 botte= 50 feuilles | D140: 1 | E140: 1 | F140: feuille(s) | G140: =1/50 -> 0.02 | H140: 0.02
A141: levure boulangère | C141: 6 sachets de 5 g | D141: 1 | E141: 1 | F141: sachet(s) | G141: =1/6 -> 0.1666666667 | H141: 0.1666666667
A142: levure chimique | C142: 6 sachets de 11 g | D142: 0.34 | E142: 1 | F142: sachet(s) | G142: =0.34/6 -> 0.05666666667 | H142: 0.05666666667
A143: maïs | B143: 300 g | C143: boite | D143: 1.35 | E143: 1 | F143: cas | G143: =+D143/300*10 -> 0.045 | H143: 0.045
A144: marc de Bourgogne | B144: 70 cls | D144: 40.95 | E144: 10 | F144: ctl(s) | G144: =+D144/70*10 -> 5.85 | H144: 0.585
A145: margarine | B145: 500 g | D145: 1.45 | E145: 100 | F145: gramme(s) | G145: 0.145 | H145: 0.00145
A146: mascarpone | B146: 500 g | D146: 3.45 | E146: 100 | F146: gramme(s) | G146: =+D146/5 -> 0.69 | H146: 0.0069
A147: mayonnaise | B147: 150 g | C147: voir onglet préparations | D147: 0.98 | E147: 1 | F147: cas | G147: =+D147/150*10 -> 0.06533333333 | H147: =+G147/E147 -> 0.06533333333 | I147: cas | J147: gramme(s) | K147: 0.06666666667
A148: mayonnaise | B148: 150 g | C148: 150g pour 6 personnes | D148: 0.98 | E148: 1 | F148: dose(s) | G148: =+D148/6 -> 0.1633333333 | H148: =+G148/E148 -> 0.1633333333
A149: melon | B149: 500 g | C149: 1 melon = 600 g | D149: 2.7 | E149: 1 | F149: unité(s) | G149: =D149/500*600 -> 3.24 | H149: =+G149/E149 -> 3.24
A150: melon | B150: 500 g | D150: 2.7 | E150: 100 | F150: gramme(s) | G150: =+D150/5 -> 0.54 | H150: 0.0054
A151: menthe | B151: botte | D151: 1 | E151: 1 | F151: botte(s) | G151: 1 | H151: =+G151/E151 -> 1
A152: menthe | B152: botte | C152: 1 botte = 50 feuilles 1 brin = 5 feuilles | D152: 1 | E152: 1 | F152: brin(s) | G152: 0.1 | H152: 0.1
A153: mesclun | B153: 100 g | C153: en sachet | D153: 1.85 | E153: 100 | F153: gramme(s) | G153: =+D153 -> 1.85 | H153: 0.0185
A154: mesclun | B154: 1 kg | D154: 16 | H154: =+G154/E154 -> 
A155: miel | B155: 500 g | D155: 5.6 | E155: 1 | F155: cas | G155: =+D155/500*10 -> 0.112 | H155: 0.112
A156: moules | B156: 1,5 kg | C156: barquette | D156: 8.5 | E156: 1 | F156: kg(s) | G156: =+D156/1.5 -> 5.666666667 | H156: =+G156/E156 -> 5.666666667
A157: moules | B157: 1,5 kg | C157: barquette | D157: 8.5 | E157: 100 | F157: gramme(s) | G157: =+D157/1500*100 -> 0.5666666667 | H157: 0.005666666667
A158: moutarde | B158: 200 g | C158: dijon | D158: 1.59 | E158: 1 | F158: cac | G158: =+D158/200*5 -> 0.03975 | H158: 0.03975 | I158: cac | J158: gramme(s) | K158: =200/5 -> 40
A159: moutarde | B159: 200 g | C159: dijon | D159: 1.59 | E159: 1 | F159: cas | G159: =+D159/200*10 -> 0.0795 | H159: 0.0795
A160: mozzarella | B160: 375 g | C160: 3 boules | D160: 2.6 | E160: 1 | F160: boule(s) | G160: =+D160/3 -> 0.8666666667 | H160: 0.8666666667
A161: noix de muscade | B161: 30 g | D161: 2 | E161: 1 | F161: pincée(s) | G161: =+D161/30 -> 0.06666666667 | H161: =+G161/E161 -> 0.06666666667
A162: noix de muscade | B162: 30 g | D162: 2 | E162: 1 | F162: gramme(s) | G162: =+D162/30 -> 0.06666666667 | H162: =+G162/E162 -> 0.06666666667
A163: noix de muscade | B163: 30 g | D163: 2 | E163: 1 | F163: cac | G163: =+D163/30 -> 0.06666666667 | H163: 0.06666666667
A164: œufs | C164: 12 œufs | D164: 2.85 | E164: 1 | F164: unité(s) | G164: =2.85/12 -> 0.2375 | H164: 0.2375
A165: oignon nouveau | C165: 1 botte = 5 oignons = oignon cébette | D165: 1.7 | E165: 1 | F165: unité(s) | G165: =1.7/5 -> 0.34 | H165: 0.34
A166: oignon de Roscoff | B166: 500g | C166: 1 filet = 5 oignons | D166: 3.79 | E166: 1 | F166: unité(s) | G166: =+D166/5 -> 0.758 | H166: 0.758
A167: oignon | B167: 1 kg | C167: 1 oignon = 100 g | D167: 2.75 | E167: 1 | F167: unité(s) | G167: =D167/1000*100 -> 0.275 | H167: =+G167/E167 -> 0.275 | I167: unité(s) | J167: gramme(s) | K167: 100
A168: oignon | B168: 1 kg | D168: 2.75 | E168: 100 | F168: gramme(s) | G168: =+D168/10 -> 0.275 | H168: 0.00275
A169: olives dénoyautées | B169: 200g | C169: 1 olive = 2,5 g | D169: 2.85 | E169: 1 | F169: unité(s) | G169: =+D169/200*2.5 -> 0.035625 | H169: 0.035625
A170: olives noires | B170: 200 g | C170: boite | D170: 0.9 | E170: 1 | F170: unité(s) | G170: =0.9/200*2.5 -> 0.01125 | H170: 0.01125
A171: orange | B171: 1 kg | C171: 1 orange = 200g | D171: 1 | E171: 1 | F171: unité(s) | G171: =1/1000*200 -> 0.2 | H171: 0.2
A172: origan | B172: 25 g | C172: 1 pincée = 1 g | D172: 1.15 | E172: 1 | F172: pincée(s) | G172: =1.15/25 -> 0.046 | H172: =+G172/E172 -> 0.046
A173: pain | B173: 250 g | C173: baguette = 6 tartines | D173: 1 | E173: 1 | F173: tartine(s) | G173: =1/6 -> 0.1666666667 | H173: 0.1666666667
A174: pain campagne | B174: 400 g | C174: 1 tranche = 50 g | D174: 1.65 | E174: 1 | F174: tranche(s) | G174: =1.25/16 -> 0.078125 | H174: 0.078125
A175: pain campagne | B175: 400 g | C175: 16 tranches | D175: 1.65 | E175: 100 | F175: gramme(s) | G175: =1.65/4 -> 0.4125 | H175: 0.004125
A176: pain rassis | B176: 400 g | C176: 16 tranches | D176: 1.65 | E176: 100 | F176: gramme(s) | G176: =1.65/4 -> 0.4125 | H176: 0.004125
A177: paleron | E177: 1 | F177: kg(s) | G177: 14 | H177: 14
A178: pancetta | B178: 1 kg | D178: 27 | E178: 100 | F178: gramme(s) | G178: =+D178/10 -> 2.7 | H178: 0.027
A179: paprika | B179: 40 g | C179: flacon | D179: 0.5 | E179: 1 | F179: cac | G179: =+D179/40*5 -> 0.0625 | H179: 0.0625
A180: parmesan | B180: 1 kg | D180: 20 | E180: 100 | F180: gramme(s) | G180: =+D180/10 -> 2 | H180: =+G180/E180 -> 0.02
A181: parmesan | B181: 1 kg | D181: 20 | E181: 1 | F181: cas | G181: =+D181/1000*10 -> 0.2 | H181: =+G181/E181 -> 0.2
A182: paté de lapin | E182: 1 | F182: kg(s) | G182: 23 | H182: 23
A183: pate feuilletée | C183: surgelée | E183: 1 | F183: unité(s) | G183: 1.5 | H183: 1.5
A184: pâtes torsades | B184: 1 kg | D184: 1.55 | E184: 100 | F184: gramme(s) | G184: 0.16 | H184: 0.0016
A185: pâtes coquillettes | B185: 1 kg | D185: 1.55 | E185: 100 | F185: gramme(s) | G185: 0.16 | H185: 0.0016
A186: pâtes macaroni | B186: 1 kg | D186: 1.55 | E186: 100 | F186: gramme(s) | G186: 0.16 | H186: 0.0016
A187: pâtes spaghetti | B187: 500 g | D187: 0.8 | E187: 100 | F187: gramme(s) | G187: =+D187/5 -> 0.16 | H187: 0.0016
A188: persil plat | B188: botte | C188: 1 botte = 150 feuilles | D188: 1 | E188: 10 | F188: feuille(s) | G188: =1/150 -> 0.006666666667 | H188: 0.0006666666667 | I188: feuille(s) | J188: botte(s) | K188: =1/150 -> 0.006666666667
A189: persil plat | B189: botte | C189: 2 botte = 150 feuilles | D189: 1 | E189: 1 | F189: botte(s) | G189: 1 | H189: =+G189/E189 -> 1
A190: persil plat | C190: 1 botte = 80 g | D190: 1 | E190: 10 | F190: gramme(s) | G190: =+D190/80*10 -> 0.125 | H190: =+G190/E190 -> 0.0125
A191: petits oignons blancs | B191: 200 g | C191: 1 oignon = 4 g 50 oignons/boite | D191: 4.19 | E191: 1 | F191: unité(s) | G191: =+D191/50 -> 0.0838 | H191: 0.0838
A192: pétoncles | B192: 200 g | C192: 100g = 7 pétoncles | D192: 6 | E192: 100 | F192: gramme(s) | G192: 3 | H192: =+G192/E192 -> 0.03
A193: pétoncles | B193: 200 g | C193: 100g = 7 pétoncles | D193: 6 | E193: 1 | F193: unité(s) | G193: =D193/14 -> 0.4285714286 | H193: 0.4285714286
A194: piment cayenne | B194: 40 g | C194: 1 cac = 5 g | D194: 2.5 | E194: 1 | F194: cac | G194: =2.5/40*5 -> 0.3125 | H194: 0.3125
A195: pointes asperges blanches | B195: 135 g | C195: 20 par boite | D195: 3 | E195: 1 | F195: unité(s) | G195: =+D195/20 -> 0.15 | H195: 0.15
A196: pointes asperges vertes | B196: 125 g | C196: 20 par boite | D196: 4 | E196: 1 | F196: unité(s) | G196: =+D196/20 -> 0.2 | H196: 0.2
A197: poire | B197: 1 kg | C197: 5 par kilo | D197: 2.5 | E197: 1 | F197: unité(s) | G197: =+D197/5 -> 0.5 | H197: 0.5
A198: poireau | B198: 1 kg | C198: 1 poireau = 150 g | D198: 3 | E198: 1 | F198: unité(s) | G198: =D198/1000*150 -> 0.45 | H198: =+G198/E198 -> 0.45
A199: poireau | B199: 1 kg | C199: blanc = 1/2 | D199: 3 | E199: 100 | F199: gramme(s) | G199: =+D199/1000*2*100 -> 0.6 | H199: 0.006
A200: poitrine fumée | B200: 1 kg | D200: 17 | E200: 100 | F200: gramme(s) | G200: =+D200/10 -> 1.7 | H200: 0.017
... 70 more rows

Sheet Courses
A1: Recettes | B1: Ingrédients | C1: Rayons | D1: Quantités | E1: Unité | F1: Semaine | G1: Date repas | H1: Type plat | I1: miid/soir | J1: Nbre pers. | K1: Inventaire | L1: Qtité à acheter | M1: Prix | N1: Conversion | P1: 5
A2: moules au cidre | B2: ail | C2: légumes | D2: 12 | E2: gousse(s) | F2: 34 | G2: 23/08/2023 | H2: Plat | I2: midi | J2: 12
A3: salade d'avocat et crevettes | B3: ail | C3: légumes | D3: 14 | E3: gousse(s) | F3: 34 | G3: 23/08/2023 | H3: Entrée | I3: soir | J3: 14
B4: Total ail | C4: légumes | D4: =SUBTOTAL(9,D2:D3) -> 26 | E4: gousse(s) | J4: =SUBTOTAL(9,J2:J3) -> 26
A5: salade d'avocat et crevettes | B5: avocat | C5: légumes | D5: 7 | E5: unité(s) | F5: 34 | G5: 23/08/2023 | H5: Entrée | I5: soir | J5: 14
B6: Total avocat | C6: légumes | D6: =SUBTOTAL(9,D5:D5) -> 7 | E6: unité(s) | J6: =SUBTOTAL(9,J5:J5) -> 14
A7: huîtres au kacha et à la pomme | B7: beurre | C7: pdts laitiers | D7: 7.5 | E7: gramme(s) | F7: 33 | G7: 20/08/2023 | H7: Entrée | I7: midi | J7: 1
A8: omelette aux champignons | B8: beurre | C8: pdts laitiers | D8: 25 | E8: gramme(s) | F8: 34 | G8: 22/08/2023 | H8: Plat | I8: midi | J8: 3
A9: soupe à l'oignon | B9: beurre | C9: pdts laitiers | D9: 30 | E9: gramme(s) | F9: 34 | G9: 22/08/2023 | H9: Entrée | I9: midi | J9: 3
B10: Total beurre | C10: pdts laitiers | D10: =SUBTOTAL(9,D7:D9) -> 62.5 | E10: gramme(s) | J10: =SUBTOTAL(9,J7:J9) -> 7
A11: far breton aux pruneaux | B11: beurre salé | C11: pdts laitiers | D11: 46.66666667 | E11: gramme(s) | F11: 34 | G11: 23/08/2023 | H11: Dessert | I11: soir | J11: 14
B12: Total beurre salé | C12: pdts laitiers | D12: =SUBTOTAL(9,D11:D11) -> 46.66666667 | E12: gramme(s) | J12: =SUBTOTAL(9,J11:J11) -> 14
A13: plateau de fromages | B13: bleu de bresse | C13: fromages | D13: 0.4 | E13: unité(s) | F13: 34 | G13: 22/08/2023 | H13: Dessert | I13: soir | J13: 4
B14: Total bleu de bresse | C14: fromages | D14: =SUBTOTAL(9,D13:D13) -> 0.4 | E14: unité(s) | J14: =SUBTOTAL(9,J13:J13) -> 4
A15: soupe à l'oignon | B15: bouillon bœuf | C15: épices | D15: 1.125 | E15: cube(s) | F15: 34 | G15: 22/08/2023 | H15: Entrée | I15: midi | J15: 3
B16: Total bouillon bœuf | C16: épices | D16: =SUBTOTAL(9,D15:D15) -> 1.125 | E16: cube(s) | J16: =SUBTOTAL(9,J15:J15) -> 3
A17: soupe à l'oignon | B17: bouquet garni | D17: 0.75 | E17: unité(s) | F17: 34 | G17: 22/08/2023 | H17: Entrée | I17: midi | J17: 3
B18: Total bouquet garni | D18: =SUBTOTAL(9,D17:D17) -> 0.75 | E18: unité(s) | J18: =SUBTOTAL(9,J17:J17) -> 3
A19: plateau de fromages | B19: camembert | C19: fromages | D19: 0.4 | E19: unité(s) | F19: 34 | G19: 22/08/2023 | H19: Dessert | I19: soir | J19: 4
B20: Total camembert | C20: fromages | D20: =SUBTOTAL(9,D19:D19) -> 0.4 | E20: unité(s) | J20: =SUBTOTAL(9,J19:J19) -> 4
A21: omelette aux champignons | B21: champignons pleurotte | D21: 150 | E21: gramme(s) | F21: 34 | G21: 22/08/2023 | H21: Plat | I21: midi | J21: 3
B22: Total champignons pleurotte | D22: =SUBTOTAL(9,D21:D21) -> 150 | E22: gramme(s) | J22: =SUBTOTAL(9,J21:J21) -> 3
A23: salade d'avocat et crevettes | B23: ciboulette | C23: herbes | D23: 210 | E23: gramme(s) | F23: 34 | G23: 23/08/2023 | H23: Entrée | I23: soir | J23: 14
B24: Total ciboulette | C24: herbes | D24: =SUBTOTAL(9,D23:D23) -> 210 | E24: gramme(s) | J24: =SUBTOTAL(9,J23:J23) -> 14
A25: moules au cidre | B25: cidre | C25: alcools | D25: 300 | E25: ctl(s) | F25: 34 | G25: 23/08/2023 | H25: Plat | I25: midi | J25: 12
B26: Total cidre | C26: alcools | D26: =SUBTOTAL(9,D25:D25) -> 300 | E26: ctl(s) | J26: =SUBTOTAL(9,J25:J25) -> 12
A27: omelette aux champignons | B27: citron jaune | D27: 0.25 | E27: unité(s) | F27: 34 | G27: 22/08/2023 | H27: Plat | I27: midi | J27: 3
A28: salade d'avocat et crevettes | B28: citron jaune | D28: 7 | E28: unité(s) | F28: 34 | G28: 23/08/2023 | H28: Entrée | I28: soir | J28: 14
B29: Total citron jaune | D29: =SUBTOTAL(9,D27:D28) -> 7.25 | E29: unité(s) | J29: =SUBTOTAL(9,J27:J28) -> 17
A30: huîtres au kacha et à la pomme | B30: citron vert | C30: agrumes | D30: 0.25 | E30: unité(s) | F30: 33 | G30: 20/08/2023 | H30: Entrée | I30: midi | J30: 1
A31: tartare de melon | B31: citron vert | C31: agrumes | D31: 3 | E31: unité(s) | F31: 34 | G31: 23/08/2023 | H31: Entrée | I31: midi | J31: 12
B32: Total citron vert | C32: agrumes | D32: =SUBTOTAL(9,D30:D31) -> 3.25 | E32: unité(s) | J32: =SUBTOTAL(9,J30:J31) -> 13
A33: tarte aux pommes vegan | B33: compote pomme | D33: 18.75 | E33: gramme(s) | F33: 34 | G33: 22/08/2023 | H33: Dessert | I33: midi | J33: 3
B34: Total compote pomme | D34: =SUBTOTAL(9,D33:D33) -> 18.75 | E34: gramme(s) | J34: =SUBTOTAL(9,J33:J33) -> 3
A35: quiche lorraine | B35: comté | C35: fromages | D35: 233.3333333 | E35: gramme(s) | F35: 34 | G35: 23/08/2023 | H35: Plat | I35: soir | J35: 14
A36: plateau de fromages | B36: comté | C36: fromages | D36: 80 | E36: gramme(s) | F36: 34 | G36: 22/08/2023 | H36: Dessert | I36: soir | J36: 4
B37: Total comté | C37: fromages | D37: =SUBTOTAL(9,D35:D36) -> 313.3333333 | E37: gramme(s) | J37: =SUBTOTAL(9,J35:J36) -> 18
A38: salade d'avocat et crevettes | B38: concombre | D38: 700 | E38: gramme(s) | F38: 34 | G38: 23/08/2023 | H38: Entrée | I38: soir | J38: 14
A39: tartare de melon | B39: concombre | C39: sucre | D39: 600 | E39: gramme(s) | F39: 34 | G39: 23/08/2023 | H39: Entrée | I39: midi | J39: 12
B40: Total concombre | C40: sucre | D40: =SUBTOTAL(9,D38:D39) -> 1300 | E40: gramme(s) | J40: =SUBTOTAL(9,J38:J39) -> 26
A41: huîtres au kacha et à la pomme | B41: coriandre | C41: herbes | D41: 1.25 | E41: feuille(s) | F41: 33 | G41: 20/08/2023 | H41: Entrée | I41: midi | J41: 1
B42: Total coriandre | C42: herbes | D42: =SUBTOTAL(9,D41:D41) -> 1.25 | E42: feuille(s) | J42: =SUBTOTAL(9,J41:J41) -> 1
A43: quiche lorraine | B43: crème liquide | C43: pdts laitiers | D43: 46.66666667 | E43: ctl(s) | F43: 34 | G43: 23/08/2023 | H43: Plat | I43: soir | J43: 14
B44: Total crème liquide | C44: pdts laitiers | D44: =SUBTOTAL(9,D43:D43) -> 46.66666667 | E44: ctl(s) | J44: =SUBTOTAL(9,J43:J43) -> 14
A45: salade d'avocat et crevettes | B45: crevettes | C45: crustacés | D45: 168 | E45: unité(s) | F45: 34 | G45: 23/08/2023 | H45: Entrée | I45: soir | J45: 14
B46: Total crevettes | C46: crustacés | D46: =SUBTOTAL(9,D45:D45) -> 168 | E46: unité(s) | J46: =SUBTOTAL(9,J45:J45) -> 14
A47: moules au cidre | B47: échalotte | D47: 12 | E47: gousse(s) | F47: 34 | G47: 23/08/2023 | H47: Plat | I47: midi | J47: 12
B48: Total échalotte | D48: =SUBTOTAL(9,D47:D47) -> 12 | E48: gousse(s) | J48: =SUBTOTAL(9,J47:J47) -> 12
A49: rillettes de saumon | B49: endives | D49: 0.6666666667 | E49: unité(s) | F49: 34 | G49: 22/08/2023 | H49: Entrée | I49: soir | J49: 4
B50: Total endives | D50: =SUBTOTAL(9,D49:D49) -> 0.6666666667 | E50: unité(s) | J50: =SUBTOTAL(9,J49:J49) -> 4
A51: soupe à l'oignon | B51: farine | C51: épices | D51: 15 | E51: gramme(s) | F51: 34 | G51: 22/08/2023 | H51: Entrée | I51: midi | J51: 3
A52: tarte aux pommes vegan | B52: farine | C52: épices | D52: 84.375 | E52: gramme(s) | F52: 34 | G52: 22/08/2023 | H52: Dessert | I52: midi | J52: 3
B53: Total farine | C53: épices | D53: =SUBTOTAL(9,D51:D52) -> 99.375 | E53: gramme(s) | J53: =SUBTOTAL(9,J51:J52) -> 6
A54: moules au cidre | B54: fenouil | C54: légumes | D54: 6 | E54: unité(s) | F54: 34 | G54: 23/08/2023 | H54: Plat | I54: midi | J54: 12
B55: Total fenouil | C55: légumes | D55: =SUBTOTAL(9,D54:D54) -> 6 | E55: unité(s) | J55: =SUBTOTAL(9,J54:J54) -> 12
A56: tartare de melon | B56: féta | C56: pdts laitiers | D56: 600 | E56: gramme(s) | F56: 34 | G56: 23/08/2023 | H56: Entrée | I56: midi | J56: 12
B57: Total féta | C57: pdts laitiers | D57: =SUBTOTAL(9,D56:D56) -> 600 | E57: gramme(s) | J57: =SUBTOTAL(9,J56:J56) -> 12
A58: harengs pommes à l'huile | B58: filets de harengs | C58: poissonnerie | D58: 2 | E58: unité(s) | F58: 33 | G58: 19/08/2023 | H58: Entrée | I58: midi | J58: 2
B59: Total filets de harengs | C59: poissonnerie | D59: =SUBTOTAL(9,D58:D58) -> 2 | E59: unité(s) | J59: =SUBTOTAL(9,J58:J58) -> 2
A60: plateau de fromages | B60: fromage de chèvre | C60: fromages | D60: 0.4 | E60: unité(s) | F60: 34 | G60: 22/08/2023 | H60: Dessert | I60: soir | J60: 4
B61: Total fromage de chèvre | C61: fromages | D61: =SUBTOTAL(9,D60:D60) -> 0.4 | E61: unité(s) | J61: =SUBTOTAL(9,J60:J60) -> 4
A62: moules au cidre | B62: fromage frais | C62: fromages | D62: 900 | E62: gramme(s) | F62: 34 | G62: 23/08/2023 | H62: Plat | I62: midi | J62: 12
B63: Total fromage frais | C63: fromages | D63: =SUBTOTAL(9,D62:D62) -> 900 | E63: gramme(s) | J63: =SUBTOTAL(9,J62:J62) -> 12
A64: huîtres au kacha et à la pomme | B64: gingembre | C64: épicerie | D64: 2.5 | E64: gramme(s) | F64: 33 | G64: 20/08/2023 | H64: Entrée | I64: midi | J64: 1
B65: Total gingembre | C65: épicerie | D65: =SUBTOTAL(9,D64:D64) -> 2.5 | E65: gramme(s) | J65: =SUBTOTAL(9,J64:J64) -> 1
A66: soupe à l'oignon | B66: gruyère rapé | C66: fromages | D66: 90 | E66: gramme(s) | F66: 34 | G66: 22/08/2023 | H66: Entrée | I66: midi | J66: 3
B67: Total gruyère rapé | C67: fromages | D67: =SUBTOTAL(9,D66:D66) -> 90 | E67: gramme(s) | J67: =SUBTOTAL(9,J66:J66) -> 3
A68: huîtres au kacha et à la pomme | B68: huitres | C68: crustacés | D68: 3 | E68: unité(s) | F68: 33 | G68: 20/08/2023 | H68: Entrée | I68: midi | J68: 1
B69: Total huitres | C69: crustacés | D69: =SUBTOTAL(9,D68:D68) -> 3 | E69: unité(s) | J69: =SUBTOTAL(9,J68:J68) -> 1
A70: far breton aux pruneaux | B70: infusion de thé | C70: épices | D70: 2.333333333 | E70: sachet(s) | F70: 34 | G70: 23/08/2023 | H70: Dessert | I70: soir | J70: 14
B71: Total infusion de thé | C71: épices | D71: =SUBTOTAL(9,D70:D70) -> 2.333333333 | E71: sachet(s) | J71: =SUBTOTAL(9,J70:J70) -> 14
A72: pates carbonara | B72: jaune d' œuf | D72: 4 | E72: unité(s) | F72: 34 | G72: 22/08/2023 | H72: Plat | I72: soir | J72: 4
B73: Total jaune d' œuf | D73: =SUBTOTAL(9,D72:D72) -> 4 | E73: unité(s) | J73: =SUBTOTAL(9,J72:J72) -> 4
A74: huîtres au kacha et à la pomme | B74: kasha | C74: graines | D74: 12.5 | E74: gramme(s) | F74: 33 | G74: 20/08/2023 | H74: Entrée | I74: midi | J74: 1
B75: Total kasha | C75: graines | D75: =SUBTOTAL(9,D74:D74) -> 12.5 | E75: gramme(s) | J75: =SUBTOTAL(9,J74:J74) -> 1
A76: oeufs à la neige | B76: lait | C76: pdts laitiers | D76: 1.5 | E76: litre(s) | F76: 34 | G76: 23/08/2023 | H76: Dessert | I76: midi | J76: 12
B77: Total lait | C77: pdts laitiers | D77: =SUBTOTAL(9,D76:D76) -> 1.5 | E77: litre(s) | J77: =SUBTOTAL(9,J76:J76) -> 12
A78: salade d'avocat et crevettes | B78: laitue | C78: légumes | D78: 56 | E78: feuille(s) | F78: 34 | G78: 23/08/2023 | H78: Entrée | I78: soir | J78: 14
B79: Total laitue | C79: légumes | D79: =SUBTOTAL(9,D78:D78) -> 56 | E79: feuille(s) | J79: =SUBTOTAL(9,J78:J78) -> 14
A80: quiche lorraine | B80: lardons | C80: charcuterie | D80: 466.6666667 | E80: gramme(s) | F80: 34 | G80: 23/08/2023 | H80: Plat | I80: soir | J80: 14
B81: Total lardons | C81: charcuterie | D81: =SUBTOTAL(9,D80:D80) -> 466.6666667 | E81: gramme(s) | J81: =SUBTOTAL(9,J80:J80) -> 14
A82: moules au cidre | B82: laurier | C82: herbes | D82: 12 | E82: feuille(s) | F82: 34 | G82: 23/08/2023 | H82: Plat | I82: midi | J82: 12
B83: Total laurier | C83: herbes | D83: =SUBTOTAL(9,D82:D82) -> 12 | E83: feuille(s) | J83: =SUBTOTAL(9,J82:J82) -> 12
A84: tarte aux pommes vegan | B84: margarine | C84: pdts laitiers | D84: 30 | E84: gramme(s) | F84: 34 | G84: 22/08/2023 | H84: Dessert | I84: midi | J84: 3
B85: Total margarine | C85: pdts laitiers | D85: =SUBTOTAL(9,D84:D84) -> 30 | E85: gramme(s) | J85: =SUBTOTAL(9,J84:J84) -> 3
A86: tartare de melon | B86: melon | C86: légumes | D86: 3 | E86: unité(s) | F86: 34 | G86: 23/08/2023 | H86: Entrée | I86: midi | J86: 12
B87: Total melon | C87: légumes | D87: =SUBTOTAL(9,D86:D86) -> 3 | E87: unité(s) | J87: =SUBTOTAL(9,J86:J86) -> 12
A88: tartare de melon | B88: menthe | C88: herbes | D88: 3 | E88: botte(s) | F88: 34 | G88: 23/08/2023 | H88: Entrée | I88: midi | J88: 12
B89: Total menthe | C89: herbes | D89: =SUBTOTAL(9,D88:D88) -> 3 | E89: botte(s) | J89: =SUBTOTAL(9,J88:J88) -> 12
A90: moules au cidre | B90: moules | C90: crustacés | D90: 6 | E90: kg(s) | F90: 34 | G90: 23/08/2023 | H90: Plat | I90: midi | J90: 12
B91: Total moules | C91: crustacés | D91: =SUBTOTAL(9,D90:D90) -> 6 | E91: kg(s) | J91: =SUBTOTAL(9,J90:J90) -> 12
A92: omelette aux champignons | B92: œufs | D92: 6 | E92: unité(s) | F92: 34 | G92: 22/08/2023 | H92: Plat | I92: midi | J92: 3
A93: pates carbonara | B93: œufs | D93: 2 | E93: unité(s) | F93: 34 | G93: 22/08/2023 | H93: Plat | I93: soir | J93: 4
A94: oeufs à la neige | B94: œufs | D94: 12 | E94: unité(s) | F94: 34 | G94: 23/08/2023 | H94: Dessert | I94: midi | J94: 12
A95: quiche lorraine | B95: œufs | D95: 9.333333333 | E95: unité(s) | F95: 34 | G95: 23/08/2023 | H95: Plat | I95: soir | J95: 14
B96: Total œufs | D96: =SUBTOTAL(9,D92:D95) -> 29.33333333 | E96: unité(s) | J96: =SUBTOTAL(9,J92:J95) -> 33
A97: soupe à l'oignon | B97: oignon | C97: poissonnerie | D97: 450 | E97: gramme(s) | F97: 34 | G97: 22/08/2023 | H97: Entrée | I97: midi | J97: 3
A98: quiche lorraine | B98: oignon | D98: 233.3333282 | E98: gramme(s) | F98: 34 | G98: 23/08/2023 | H98: Plat | I98: soir | J98: 14
B99: Total oignon | D99: =SUBTOTAL(9,D97:D98) -> 683.3333282 | E99: gramme(s) | J99: =SUBTOTAL(9,J97:J98) -> 17
A100: harengs pommes à l'huile | B100: oignon nouveau | D100: 1 | E100: unité(s) | F100: 33 | G100: 19/08/2023 | H100: Entrée | I100: midi | J100: 2
B101: Total oignon nouveau | D101: =SUBTOTAL(9,D100:D100) -> 1 | E101: unité(s) | J101: =SUBTOTAL(9,J100:J100) -> 2
A102: soupe à l'oignon | B102: pain campagne | C102: boulangerie | D102: 3 | E102: tranche(s) | F102: 34 | G102: 22/08/2023 | H102: Entrée | I102: midi | J102: 3
B103: Total pain campagne | C103: boulangerie | D103: =SUBTOTAL(9,D102:D102) -> 3 | E103: tranche(s) | J103: =SUBTOTAL(9,J102:J102) -> 3
A104: pates carbonara | B104: pancetta | C104: charcuterie | D104: 200 | E104: gramme(s) | F104: 34 | G104: 22/08/2023 | H104: Plat | I104: soir | J104: 4
B105: Total pancetta | C105: charcuterie | D105: =SUBTOTAL(9,D104:D104) -> 200 | E105: gramme(s) | J105: =SUBTOTAL(9,J104:J104) -> 4
A106: pates carbonara | B106: parmesan | D106: 100 | E106: gramme(s) | F106: 34 | G106: 22/08/2023 | H106: Plat | I106: soir | J106: 4
B107: Total parmesan | D107: =SUBTOTAL(9,D106:D106) -> 100 | E107: gramme(s) | J107: =SUBTOTAL(9,J106:J106) -> 4
A108: quiche lorraine | B108: pate feuilletée | D108: 2.333333333 | E108: unité(s) | F108: 34 | G108: 23/08/2023 | H108: Plat | I108: soir | J108: 14
B109: Total pate feuilletée | D109: =SUBTOTAL(9,D108:D108) -> 2.333333333 | E109: unité(s) | J109: =SUBTOTAL(9,J108:J108) -> 14
A110: pates carbonara | B110: pâtes spaghetti | D110: 500 | E110: gramme(s) | F110: 34 | G110: 22/08/2023 | H110: Plat | I110: soir | J110: 4
B111: Total pâtes spaghetti | D111: =SUBTOTAL(9,D110:D110) -> 500 | E111: gramme(s) | J111: =SUBTOTAL(9,J110:J110) -> 4
A112: omelette aux champignons | B112: persil plat | D112: 0.5 | E112: botte(s) | F112: 34 | G112: 22/08/2023 | H112: Plat | I112: midi | J112: 3
A113: moules au cidre | B113: persil plat | D113: 6 | E113: botte(s) | F113: 34 | G113: 23/08/2023 | H113: Plat | I113: midi | J113: 12
A114: quiche lorraine | B114: persil plat | D114: 0.1555555612 | E114: botte(s) | F114: 34 | G114: 23/08/2023 | H114: Plat | I114: soir | J114: 14
B115: Total persil plat | D115: =SUBTOTAL(9,D112:D114) -> 6.655555561 | E115: botte(s) | J115: =SUBTOTAL(9,J112:J114) -> 29
A116: harengs pommes à l'huile | B116: pommes de terre | C116: légumes | D116: 0.3000000119 | E116: Kg(s) | F116: 33 | G116: 19/08/2023 | H116: Entrée | I116: midi | J116: 2
B117: Total pommes de terre | C117: légumes | D117: =SUBTOTAL(9,D116:D116) -> 0.3000000119 | E117: Kg(s) | J117: =SUBTOTAL(9,J116:J116) -> 2
A118: huîtres au kacha et à la pomme | B118: pommes reinette | C118: pdts laitiers | D118: 0.25 | E118: unité(s) | F118: 33 | G118: 20/08/2023 | H118: Entrée | I118: midi | J118: 1
A119: tarte aux pommes vegan | B119: pommes reinette | D119: 1.5 | E119: unité(s) | F119: 34 | G119: 22/08/2023 | H119: Dessert | I119: midi | J119: 3
B120: Total pommes reinette | D120: =SUBTOTAL(9,D118:D119) -> 1.75 | E120: unité(s) | J120: =SUBTOTAL(9,J118:J119) -> 4
A121: tarte aux pommes vegan | B121: poudre d'amande | D121: 26.25 | E121: gramme(s) | F121: 34 | G121: 22/08/2023 | H121: Dessert | I121: midi | J121: 3
B122: Total poudre d'amande | D122: =SUBTOTAL(9,D121:D121) -> 26.25 | E122: gramme(s) | J122: =SUBTOTAL(9,J121:J121) -> 3
A123: harengs pommes à l'huile | B123: radis | C123: légumes | D123: 0.25 | E123: botte(s) | F123: 33 | G123: 19/08/2023 | H123: Entrée | I123: midi | J123: 2
B124: Total radis | C124: légumes | D124: =SUBTOTAL(9,D123:D123) -> 0.25 | E124: botte(s) | J124: =SUBTOTAL(9,J123:J123) -> 2
A125: moules au cidre | B125: rhum | C125: alcools | D125: 60 | E125: ctl(s) | F125: 34 | G125: 23/08/2023 | H125: Plat | I125: midi | J125: 12
B126: Total rhum | C126: alcools | D126: =SUBTOTAL(9,D125:D125) -> 60 | E126: ctl(s) | J126: =SUBTOTAL(9,J125:J125) -> 12
A127: plateau de fromages | B127: roquefort | C127: fromages | D127: 100 | E127: gramme(s) | F127: 34 | G127: 22/08/2023 | H127: Dessert | I127: soir | J127: 4
B128: Total roquefort | C128: fromages | D128: =SUBTOTAL(9,D127:D127) -> 100 | E128: gramme(s) | J128: =SUBTOTAL(9,J127:J127) -> 4
A129: huîtres au kacha et à la pomme | B129: sauce soja | C129: sauces | D129: 0.25 | E129: cas | F129: 33 | G129: 20/08/2023 | H129: Entrée | I129: midi | J129: 1
B130: Total sauce soja | C130: sauces | D130: =SUBTOTAL(9,D129:D129) -> 0.25 | E130: cas | J130: =SUBTOTAL(9,J129:J129) -> 1
A131: oeufs à la neige | B131: sucre | C131: sucre | D131: 525 | E131: gramme(s) | F131: 34 | G131: 23/08/2023 | H131: Dessert | I131: midi | J131: 12
B132: Total sucre | C132: sucre | D132: =SUBTOTAL(9,D131:D131) -> 525 | E132: gramme(s) | J132: =SUBTOTAL(9,J131:J131) -> 12
A133: tarte aux pommes vegan | B133: sucre glace | D133: 26.25 | E133: gramme(s) | F133: 34 | G133: 22/08/2023 | H133: Dessert | I133: midi | J133: 3
B134: Total sucre glace | D134: =SUBTOTAL(9,D133:D133) -> 26.25 | E134: gramme(s) | J134: =SUBTOTAL(9,J133:J133) -> 3
A135: tarte aux pommes vegan | B135: sucre vanillé | C135: épices | D135: 0.375 | E135: sachet(s) | F135: 34 | G135: 22/08/2023 | H135: Dessert | I135: midi | J135: 3
B136: Total sucre vanillé | C136: épices | D136: =SUBTOTAL(9,D135:D135) -> 0.375 | E136: sachet(s) | J136: =SUBTOTAL(9,J135:J135) -> 3
A137: moules au cidre | B137: thym | C137: herbes | D137: 60 | E137: gramme(s) | F137: 34 | G137: 23/08/2023 | H137: Plat | I137: midi | J137: 12
B138: Total thym | C138: herbes | D138: =SUBTOTAL(9,D137:D137) -> 60 | E138: gramme(s) | J138: =SUBTOTAL(9,J137:J137) -> 12
A139: moules au cidre | B139: tomates | C139: légumes | D139: 6 | E139: unité(s) | F139: 34 | G139: 23/08/2023 | H139: Plat | I139: midi | J139: 12
B140: Total tomates | C140: légumes | D140: =SUBTOTAL(9,D139:D139) -> 6 | E140: unité(s) | J140: =SUBTOTAL(9,J139:J139) -> 12
A141: salade d'avocat et crevettes | B141: tomates cerise | C141: légumes | D141: 42 | E141: unité(s) | F141: 34 | G141: 23/08/2023 | H141: Entrée | I141: soir | J141: 14
B142: Total tomates cerise | C142: légumes | D142: =SUBTOTAL(9,D141:D141) -> 42 | E142: unité(s) | J142: =SUBTOTAL(9,J141:J141) -> 14
A143: oeufs à la neige | B143: vanille | C143: épices | D143: 3 | E143: gousse(s) | F143: 34 | G143: 23/08/2023 | H143: Dessert | I143: midi | J143: 12
B144: Total vanille | C144: épices | D144: =SUBTOTAL(9,D143:D143) -> 3 | E144: gousse(s) | J144: =SUBTOTAL(9,J143:J143) -> 12
A145: soupe à l'oignon | B145: vin blanc | C145: alcools | D145: 15 | E145: ctl(s) | F145: 34 | G145: 22/08/2023 | H145: Entrée | I145: midi | J145: 3
B146: Total vin blanc | C146: alcools | D146: =SUBTOTAL(9,D145:D145) -> 15 | E146: ctl(s) | J146: =SUBTOTAL(9,J145:J145) -> 3
A147: harengs pommes à l'huile | B147: vinaigre rouge | D147: 0.5 | E147: cas | F147: 33 | G147: 19/08/2023 | H147: Entrée | I147: midi | J147: 2
B148: Total vinaigre rouge | D148: =SUBTOTAL(9,D147:D147) -> 0.5 | E148: cas | J148: =SUBTOTAL(9,J147:J147) -> 2
E149: cas
E150: cas
E151: cas
E152: cas
B153: Total général | D153: =SUBTOTAL(9,D2:D152) -> 7368.863884 | E153: cas | J153: =SUBTOTAL(9,J2:J152) -> 600

Sheet Stocks
A1: Ingrédient | B1: Qtité | C1: Unité
A2: avocat | B2: 3 | C2: unité(s)
A3: beurre | B3: 250 | C3: gramme(s)
A4: bleu de bresse | B4: 100 | C4: unité(s)
A5: bouillon bœuf | C5: cube(s)
A6: bouquet garni | C6: unité(s)
A7: camembert | B7: 2 | C7: unité(s)
A8: champignons pleurotte | C8: gramme(s)
A9: ciboulette | C9: gramme(s)
A10: cidre | C10: ctl(s)
A11: citron jaune | B11: 3 | C11: unité(s)
A12: citron vert | C12: unité(s)
A13: compote pomme | C13: gramme(s)
A14: comté | C14: gramme(s)
A15: concombre | C15: gramme(s)
A16: coriandre | C16: feuille(s)
A17: crème liquide | C17: ctl(s)
A18: crevettes | C18: unité(s)
A19: échalotte | C19: gousse(s)
A20: endives | C20: unité(s)
A21: farine | B21: 1000 | C21: gramme(s)
A22: fenouil | C22: unité(s)
A23: féta | C23: gramme(s)
A24: filets de harengs | C24: unité(s)
A25: fromage de chèvre | C25: unité(s)
A26: gingembre | C26: gramme(s)
A27: gruyère rapé | C27: gramme(s)
A28: huile d'olive | C28: Litre(s)
A29: huitres | C29: unité(s)

Sheet Achats
A1: Ingrédients | B1: Semaine | C1: Date repas | D1: Nbre pers. | E1: Qtité à Acheter | F1: Unité | G1: Prix
A2: boudoirs | B2: 23 | C2: 20/06/2022 | D2: 20 | E2: 60 | F2: unité(s)
A3: langue de boeuf | B3: 23 | C3: 16/06/2022 | D3: 12 | E3: 3 | F3: Kg(s)
A4: roti de porc | B4: 23 | C4: 19/06/2022 | D4: 16 | E4: 4 | F4: Kg(s)
A5: pain de campagne | B5: 23 | C5: 18/06/2022 | D5: 13 | E5: 13 | F5: tranches(s)
A6: pate brisée | B6: 23 | C6: 20/06/2022 | D6: 27 | E6: 4.5 | F6: unité(s)
A7: cacao | B7: 23 | C7: 20/06/2022 | D7: 20 | E7: 125 | F7: Gramme(s)
A8: café expresso | B8: 23 | C8: 20/06/2022 | D8: 20 | E8: 50 | F8: centilitre(s)
A9: jambon cru | B9: 23 | C9: 19/06/2022 | D9: 17 | E9: 8.5 | F9: unité(s)
A10: lardons | B10: 23 | C10: 21/06/2022 | D10: 39 | E10: 1565 | F10: Gramme(s)
A11: paté de lapin | B11: 23 | C11: 20/06/2022 | D11: 9 | E11: 0.45 | F11: Kg(s)
A12: poitrine fumée | B12: 23 | C12: 15/06/2022 | D12: 10 | E12: 1250 | F12: Gramme(s)
A13: ail | B13: 23 | C13: 19/06/2022 | D13: 16 | E13: 20 | F13: gousse(s)
A14: cornichons au vinaigre | B14: 23 | C14: 21/06/2022 | D14: 23 | E14: 19.75 | F14: unité(s)
A15: échalottes | B15: 23 | C15: 16/06/2022 | D15: 36 | E15: 40 | F15: unité(s)
A16: gros sel | B16: 23 | C16: 16/06/2022 | D16: 10 | E16: 16.66666667 | F16: Gramme(s)
A17: oignons | B17: 23 | C17: 21/06/2022 | D17: 47 | E17: 19.5 | F17: unité(s)
A18: olives noires | B18: 23 | C18: 17/06/2022 | D18: 15 | E18: 45 | F18: unité(s)
A19: mayonnaise | B19: 23 | C19: 17/06/2022 | D19: 20 | E19: 750 | F19: Gramme(s)
A20: crevettes | B20: 23 | C20: 15/06/2022 | D20: 10 | E20: 375 | F20: Gramme(s)
A21: huitres | B21: 23 | C21: 19/06/2022 | D21: 16 | E21: 80 | F21: unité(s)
A22: moules | B22: 23 | C22: 15/06/2022 | D22: 14 | E22: 11.66666667 | F22: Litre(s)
A23: bouillon de volaille | B23: 23 | C23: 18/06/2022 | D23: 25 | E23: 4.25 | F23: Litre(s)
A24: bouillon | B24: 23 | C24: 20/06/2022 | D24: 7 | E24: 0.875 | F24: cube(s)
A25: farine | B25: 23 | C25: 18/06/2022 | D25: 25 | E25: 68.75 | F25: Gramme(s)
A26: farine de mais | B26: 23 | C26: 21/06/2022 | D26: 16 | E26: 160 | F26: Gramme(s)
A27: farine pois chiche | B27: 23 | C27: 21/06/2022 | D27: 16 | E27: 400 | F27: Gramme(s)
A28: gélatine | B28: 23 | C28: 19/06/2022 | D28: 17 | E28: 11.33333333 | F28: feuille(s)
A29: poivre | B29: 23 | C29: 21/06/2022 | D29: 67 | E29: 19.25 | F29: pincée(s)
A30: sel fin | B30: 23 | C30: 21/06/2022 | D30: 70 | E30: 22.875 | F30: pincée(s)
A31: sucre vanillé | B31: 23 | C31: 17/06/2022 | D31: 20 | E31: 3.333333333 | F31: sachet
A32: vanille | B32: 23 | C32: 19/06/2022 | D32: 17 | E32: 5.666666667 | F32: gousse(s)
A33: bleu de bresse | B33: 23 | C33: 19/06/2022 | D33: 16 | E33: 0.64 | F33: unité(s)
A34: camembert | B34: 23 | C34: 19/06/2022 | D34: 16 | E34: 0.64 | F34: unité(s)
A35: comté | B35: 23 | C35: 19/06/2022 | D35: 16 | E35: 0.64 | F35: unité(s)
A36: fromage de chèvre | B36: 23 | C36: 19/06/2022 | D36: 16 | E36: 0.64 | F36: unité(s)
A37: fromage en dés | B37: 23 | C37: 21/06/2022 | D37: 16 | E37: 200 | F37: Gramme(s)
A38: gruyère rapé | B38: 23 | C38: 21/06/2022 | D38: 37 | E38: 666.6666667 | F38: Gramme(s)
A39: mozzarella | B39: 23 | C39: 17/06/2022 | D39: 15 | E39: 3.75 | F39: boule
A40: roquefort | B40: 23 | C40: 19/06/2022 | D40: 16 | E40: 0.64 | F40: unité(s)
A41: bananes | B41: 23 | C41: 15/06/2022 | D41: 6 | E41: 6 | F41: unité(s)
A42: fraises | B42: 23 | C42: 19/06/2022 | D42: 17 | E42: 1416.666667 | F42: Gramme(s)
A43: pommes | B43: 23 | C43: 17/06/2022 | D43: 30 | E43: 30 | F43: unité(s) | G43: 15
A44: pruneaux | B44: 23 | C44: 17/06/2022 | D44: 15 | E44: 150 | F44: Gramme(s)
A45: raisins secs | B45: 23 | C45: 17/06/2022 | D45: 15 | E45: 75 | F45: Gramme(s)
A46: riz | B46: 23 | C46: 21/06/2022 | D46: 16 | E46: 1600 | F46: Gramme(s)
A47: basilic | B47: 23 | C47: 18/06/2022 | D47: 25 | E47: 8.75 | F47: brin(s)
A48: ciboulette | B48: 23 | C48: 15/06/2022 | D48: 10 | E48: 1.25 | F48: botte
A49: laurier | B49: 23 | C49: 19/06/2022 | D49: 16 | E49: 12 | F49: unité(s)
A50: menthe | B50: 23 | C50: 21/06/2022 | D50: 31 | E50: 22.5 | F50: brin
A51: persil | B51: 23 | C51: 20/06/2022 | D51: 21 | E51: 15.75 | F51: brin(s)
A52: persil haché | B52: 23 | C52: 16/06/2022 | D52: 12 | E52: 10 | F52: Gramme(s)
A53: thym | B53: 23 | C53: 19/06/2022 | D53: 16 | E53: 8 | F53: brin(s)
A54: huile | B54: 23 | C54: 15/06/2022 | D54: 52 | E54: 155 | F54: centilitre(s)
A55: huile d'olive | B55: 23 | C55: 21/06/2022 | D55: 41 | E55: 19 | F55: cuillère(s) à soupe
A56: asperges | B56: 23 | C56: 20/06/2022 | D56: 7 | E56: 1.75 | F56: botte(s)
A57: avocat | B57: 23 | C57: 15/06/2022 | D57: 10 | E57: 10 | F57: pièce(s)
A58: brocoli | B58: 23 | C58: 16/06/2022 | D58: 10 | E58: 1.666666667 | F58: pièce(s)
A59: carottes | B59: 23 | C59: 15/06/2022 | D59: 12 | E59: 1500 | F59: gramme(s)
A60: céleri | B60: 23 | C60: 17/06/2022 | D60: 10 | E60: 2500 | F60: Gramme(s)
A61: champignons | B61: 23 | C61: 17/06/2022 | D61: 20 | E61: 3000 | F61: Gramme(s)
A62: chou fleur | B62: 23 | C62: 16/06/2022 | D62: 10 | E62: 1.666666667 | F62: pièce(s)
A63: échalotte(s) | B63: 23 | C63: 19/06/2022 | D63: 16 | E63: 12 | F63: unité(s)
A64: févettes | B64: 23 | C64: 18/06/2022 | D64: 10 | E64: 20 | F64: unité(s)
A65: melon | B65: 23 | C65: 19/06/2022 | D65: 17 | E65: 4.25 | F65: unité(s)
A66: oignon cébette | B66: 23 | C66: 18/06/2022 | D66: 10 | E66: 5 | F66: unité(s)
A67: poivron vert | B67: 23 | C67: 18/06/2022 | D67: 10 | E67: 2.5 | F67: unité(s)
A68: pommes de terre | B68: 23 | C68: 21/06/2022 | D68: 28 | E68: 1504.875 | F68: Kg(s)
A69: tomate | B69: 23 | C69: 21/06/2022 | D69: 26 | E69: 2008 | F69: unité(s)
A70: tomate(s) | B70: 23 | C70: 18/06/2022 | D70: 10 | E70: 10 | F70: unité(s)
A71: jaunes d'oeufs | B71: 23 | C71: 18/06/2022 | D71: 28 | E71: 24.5 | F71: unité(s)
A72: oeufs | B72: 23 | C72: 21/06/2022 | D72: 152 | E72: 146.5 | F72: unité(s)
A73: pates | B73: 23 | C73: 21/06/2022 | D73: 21 | E73: 2100 | F73: Gramme(s)
A74: beurre | B74: 23 | C74: 20/06/2022 | D74: 74 | E74: 726.6666667 | F74: Gramme(s)
A75: beurre salé | B75: 23 | C75: 17/06/2022 | D75: 15 | E75: 6 | F75: noix
A76: crème fraiche | B76: 23 | C76: 21/06/2022 | D76: 37 | E76: 1210.833333 | F76: centilitre(s)
A77: crème liquide | B77: 23 | C77: 20/06/2022 | D77: 51 | E77: 147.8333333 | F77: centilitre(s)
A78: créme mascarpone | B78: 23 | C78: 20/06/2022 | D78: 20 | E78: 1000 | F78: Gramme(s)
A79: lait | B79: 23 | C79: 21/06/2022 | D79: 65 | E79: 220.6666667 | F79: centilitre(s)
A80: pate feullettée | B80: 23 | C80: 19/06/2022 | D80: 17 | E80: 2.833333333 | F80: unité(s)
A81: yaourt(s) | B81: 23 | C81: 21/06/2022 | D81: 2 | E81: 2 | F81: unité(s)
A82: anchois | B82: 23 | C82: 18/06/2022 | D82: 10 | E82: 5 | F82: filet(s)
A83: harengs | B83: 23 | C83: 17/06/2022 | D83: 10 | E83: 2000 | F83: Gramme(s)
A84: thon | B84: 23 | C84: 21/06/2022 | D84: 26 | E84: 1300 | F84: Gramme(s)
A85: mayonnaise | B85: 23 | C85: 21/06/2022 | D85: 11 | E85: 8.25 | F85: cuillère(s) à soupe
A86: moutarde | B86: 23 | C86: 16/06/2022 | D86: 12 | E86: 10 | F86: Gramme(s)
A87: cidre | B87: 23 | C87: 15/06/2022 | D87: 14 | E87: 233.3333333 | F87: centilitre(s)
A88: porto | B88: 23 | C88: 19/06/2022 | D88: 17 | E88: 106.25 | F88: centilitre(s)
A89: rhum | B89: 23 | C89: 15/06/2022 | D89: 6 | E89: 45 | F89: centilitre(s)
A90: vin blanc | B90: 23 | C90: 19/06/2022 | D90: 28 | E90: 140 | F90: centilitre(s)
A91: sucre | B91: 23 | C91: 15/06/2022 | D91: 120 | E91: 2379.166667 | F91: gramme(s)
A92: frites | B92: 23 | C92: 21/06/2022 | D92: 14 | E92: 1400 | F92: Gramme(s)
A93: vinaigre | B93: 23 | C93: 21/06/2022 | D93: 46 | E93: 58.5 | F93: cuillère(s) à soupe
A94: vin rouge bourgogne | B94: 33 | C94: 19/08/2023 | D94: 3 | E94: 0.5 | F94: litre(s)
A95: boudoirs | B95: 23 | C95: 18/06/2022 | D95: 11 | E95: 33 | F95: unité(s)
A96: joue de bœuf | B96: 33 | C96: 19/08/2023 | D96: 3 | E96: 0.35 | F96: kg(s)
A97: langue de boeuf | B97: 23 | C97: 16/06/2022 | D97: 12 | E97: 3 | F97: Kg(s)
A98: roti de porc | B98: 23 | C98: 19/06/2022 | D98: 16 | E98: 4 | F98: Kg(s)
A99: pain de campagne | B99: 23 | C99: 18/06/2022 | D99: 13 | E99: 13 | F99: tranches(s)
A100: pate brisée | B100: 23 | C100: 17/06/2022 | D100: 20 | E100: 3.333333333 | F100: unité(s)
A101: cacao | B101: 23 | C101: 18/06/2022 | D101: 11 | E101: 68.75 | F101: Gramme(s)
A102: café expresso | B102: 23 | C102: 18/06/2022 | D102: 11 | E102: 27.5 | F102: centilitre(s)
A103: jambon cru | B103: 23 | C103: 19/06/2022 | D103: 17 | E103: 8.5 | F103: unité(s)
A104: lardons | B104: 33 | C104: 19/08/2023 | D104: 28 | E104: 1350 | F104: gramme(s)
A105: poitrine fumée | B105: 23 | C105: 15/06/2022 | D105: 10 | E105: 1250 | F105: Gramme(s)
A106: ail | B106: 23 | C106: 19/06/2022 | D106: 16 | E106: 20 | F106: gousse(s)
A107: cornichons au vinaigre | B107: 23 | C107: 16/06/2022 | D107: 12 | E107: 6 | F107: unité(s)
A108: échalottes | B108: 23 | C108: 16/06/2022 | D108: 36 | E108: 40 | F108: unité(s)
A109: gros sel | B109: 23 | C109: 16/06/2022 | D109: 10 | E109: 16.66666667 | F109: Gramme(s)
A110: oignons | B110: 23 | C110: 18/06/2022 | D110: 13 | E110: 13 | F110: unité(s)
A111: olives noires | B111: 23 | C111: 17/06/2022 | D111: 15 | E111: 45 | F111: unité(s)
A112: mayonnaise | B112: 23 | C112: 17/06/2022 | D112: 20 | E112: 750 | F112: Gramme(s)
A113: crevettes | B113: 23 | C113: 15/06/2022 | D113: 10 | E113: 375 | F113: Gramme(s)
A114: huitres | B114: 23 | C114: 19/06/2022 | D114: 16 | E114: 80 | F114: unité(s)
A115: moules | B115: 23 | C115: 15/06/2022 | D115: 14 | E115: 11.66666667 | F115: Litre(s)
A116: bouillon de volaille | B116: 23 | C116: 18/06/2022 | D116: 25 | E116: 4.25 | F116: Litre(s)
A117: farine | B117: 23 | C117: 18/06/2022 | D117: 25 | E117: 68.75 | F117: Gramme(s)
A118: gélatine | B118: 23 | C118: 19/06/2022 | D118: 17 | E118: 11.33333333 | F118: feuille(s)
A119: poivre | B119: 23 | C119: 19/06/2022 | D119: 46 | E119: 14 | F119: pincée(s)
A120: sel fin | B120: 23 | C120: 19/06/2022 | D120: 38 | E120: 14.5 | F120: pincée(s)
A121: sucre vanillé | B121: 23 | C121: 17/06/2022 | D121: 20 | E121: 3.333333333 | F121: sachet
A122: vanille | B122: 23 | C122: 19/06/2022 | D122: 17 | E122: 5.666666667 | F122: gousse(s)
A123: grains de poivre noir | B123: 33 | C123: 19/08/2023 | D123: 3 | E123: 2.5 | F123: grain(s)
A124: bleu de bresse | B124: 23 | C124: 19/06/2022 | D124: 16 | E124: 0.64 | F124: unité(s)
A125: camembert | B125: 23 | C125: 19/06/2022 | D125: 16 | E125: 0.64 | F125: unité(s)
A126: comté | B126: 23 | C126: 19/06/2022 | D126: 16 | E126: 0.64 | F126: unité(s)
A127: fromage de chèvre | B127: 23 | C127: 19/06/2022 | D127: 16 | E127: 0.64 | F127: unité(s)
A128: gruyère rapé | B128: 23 | C128: 18/06/2022 | D128: 23 | E128: 491.6666667 | F128: Gramme(s)
A129: mozzarella | B129: 23 | C129: 17/06/2022 | D129: 15 | E129: 3.75 | F129: boule
A130: roquefort | B130: 23 | C130: 19/06/2022 | D130: 16 | E130: 0.64 | F130: unité(s)
A131: fraises | B131: 23 | C131: 19/06/2022 | D131: 17 | E131: 1416.666667 | F131: Gramme(s)
A132: pommes | B132: 23 | C132: 17/06/2022 | D132: 30 | E132: 30 | F132: unité(s)
A133: pruneaux | B133: 23 | C133: 17/06/2022 | D133: 15 | E133: 150 | F133: Gramme(s)
A134: raisins secs | B134: 23 | C134: 17/06/2022 | D134: 15 | E134: 75 | F134: Gramme(s)
A135: basilic | B135: 23 | C135: 18/06/2022 | D135: 25 | E135: 8.75 | F135: brin(s)
A136: ciboulette | B136: 23 | C136: 15/06/2022 | D136: 10 | E136: 1.25 | F136: botte
A137: laurier | B137: 23 | C137: 19/06/2022 | D137: 16 | E137: 12 | F137: unité(s)
A138: menthe | B138: 23 | C138: 19/06/2022 | D138: 17 | E138: 8.5 | F138: brin
A139: persil | B139: 23 | C139: 15/06/2022 | D139: 14 | E139: 14 | F139: brin(s)
A140: persil haché | B140: 23 | C140: 16/06/2022 | D140: 12 | E140: 10 | F140: Gramme(s)
A141: thym | B141: 23 | C141: 19/06/2022 | D141: 16 | E141: 8 | F141: brin(s)
A142: huile | B142: 23 | C142: 15/06/2022 | D142: 52 | E142: 155 | F142: centilitre(s)
A143: huile d'olive | B143: 33 | C143: 19/08/2023 | D143: 27 | E143: 16.5 | F143: cas
A144: ail | B144: 33 | C144: 19/08/2023 | D144: 3 | E144: 0.5 | F144: gousse(s)
A145: avocat | B145: 23 | C145: 15/06/2022 | D145: 10 | E145: 10 | F145: pièce(s)
A146: brocoli | B146: 23 | C146: 16/06/2022 | D146: 10 | E146: 1.666666667 | F146: pièce(s)
A147: carottes | B147: 33 | C147: 19/08/2023 | D147: 15 | E147: 1501.5 | F147: unité(s)
A148: céleri | B148: 23 | C148: 17/06/2022 | D148: 10 | E148: 2500 | F148: Gramme(s)
A149: champignons | B149: 23 | C149: 17/06/2022 | D149: 20 | E149: 3000 | F149: Gramme(s)
A150: chou fleur | B150: 23 | C150: 16/06/2022 | D150: 10 | E150: 1.666666667 | F150: pièce(s)
A151: échalotte(s) | B151: 23 | C151: 19/06/2022 | D151: 16 | E151: 12 | F151: unité(s)
A152: févettes | B152: 23 | C152: 18/06/2022 | D152: 10 | E152: 20 | F152: unité(s)
A153: melon | B153: 23 | C153: 19/06/2022 | D153: 17 | E153: 4.25 | F153: unité(s)
A154: oignon cébette | B154: 23 | C154: 18/06/2022 | D154: 10 | E154: 5 | F154: unité(s)
A155: poivron vert | B155: 23 | C155: 18/06/2022 | D155: 10 | E155: 2.5 | F155: unité(s)
A156: pommes de terre | B156: 33 | C156: 19/08/2023 | D156: 12 | E156: 1800 | F156: gramme(s)
A157: radis | B157: 33 | C157: 19/08/2023 | D157: 2 | E157: 0.25 | F157: botte(s)
A158: Tomate | B158: 23 | C158: 16/06/2022 | D158: 10 | E158: 2000 | F158: Gramme(s)
A159: tomate(s) | B159: 23 | C159: 18/06/2022 | D159: 10 | E159: 10 | F159: unité(s)
A160: jaunes d'oeufs | B160: 23 | C160: 18/06/2022 | D160: 28 | E160: 24.5 | F160: unité(s)
A161: oeufs | B161: 23 | C161: 19/06/2022 | D161: 106 | E161: 127 | F161: unité(s)
A162: beurre | B162: 33 | C162: 19/08/2023 | D162: 61 | E162: 400 | F162: gramme(s)
A163: beurre salé | B163: 23 | C163: 17/06/2022 | D163: 15 | E163: 6 | F163: noix
A164: crème fraiche | B164: 23 | C164: 15/06/2022 | D164: 14 | E164: 933.3333333 | F164: Gramme(s)
A165: crème liquide | B165: 23 | C165: 19/06/2022 | D165: 42 | E165: 114.0833333 | F165: Litre(s)
A166: créme mascarpone | B166: 23 | C166: 18/06/2022 | D166: 11 | E166: 550 | F166: Gramme(s)
A167: lait | B167: 23 | C167: 18/06/2022 | D167: 44 | E167: 63.16666667 | F167: centilitre(s)
A168: pate feullettée | B168: 23 | C168: 19/06/2022 | D168: 17 | E168: 2.833333333 | F168: unité(s)
A169: anchois | B169: 23 | C169: 18/06/2022 | D169: 10 | E169: 5 | F169: filet(s)
A170: harengs | B170: 23 | C170: 17/06/2022 | D170: 10 | E170: 2000 | F170: Gramme(s)
A171: thon | B171: 23 | C171: 18/06/2022 | D171: 10 | E171: 500 | F171: Gramme(s)
A172: moutarde | B172: 23 | C172: 16/06/2022 | D172: 12 | E172: 10 | F172: Gramme(s)
A173: cidre | B173: 23 | C173: 15/06/2022 | D173: 14 | E173: 233.3333333 | F173: centilitre(s)
A174: porto | B174: 23 | C174: 19/06/2022 | D174: 17 | E174: 106.25 | F174: centilitre(s)
A175: rhum | B175: 23 | C175: 15/06/2022 | D175: 6 | E175: 45 | F175: centilitre(s)
A176: vin blanc | B176: 23 | C176: 19/06/2022 | D176: 28 | E176: 140 | F176: centilitre(s)
A177: sucre | B177: 23 | C177: 15/06/2022 | D177: 88 | E177: 1851.666667 | F177: gramme(s)
A178: vinaigre | B178: 23 | C178: 18/06/2022 | D178: 30 | E178: 42.5 | F178: cuillère(s) à soupe
A179: yaourt | B179: 23 | C179: 16/06/2022 | D179: 15 | E179: 15 | F179: unité(s)
A180: bouquet garni | B180: 33 | C180: 19/08/2023 | D180: 3 | E180: 0.5 | F180: unité(s)
A181: oignon | B181: 33 | C181: 19/08/2023 | D181: 3 | E181: 1.5 | F181: unité(s)

Sheet Menus
B2: Menus du | C2: jeudi 15 | D2: au | E2: mercredi 21
B4: jeudi
B5: midi | C5: soir
B6: carottes rapées | C6: salade de pommes de terre
B7: omelette sans oeufs | C7: pates à la tomate
B8: bananes flambées | C8: smoothie fraise-menthe
B10: vendredi
B11: midi | C11: soir
B12: oeufs mimosa | C12: salade de tomates
B13: gratin de chou fleur et brocoli | C13: langue de boeuf sauce piquante
B14: oeufs à la neige | C14: yaourt
B16: samedi
B17: midi | C17: soir
B18: harengs pommes à l'huile | C18: céleri rémoulade
B19: pizza jambon fromage | C19: omelette aux champignons
B20: far breton | C20: tarte aux pommes
B22: dimanche
B23: midi | C23: soir
B24: salade niçoise | C24: soupe à l'oignon
B25: quiche lorraine | C25: Plat
B26: crème brulée | C26: tiramisu
B28: lundi
B29: midi | C29: soir
B30: huitres | C30: melon jambon au porto
B31: roti de porc | C31: quiche lorraine
B32: plateau de fromages | C32: panacotta fraise
B34: mardi
B35: midi | C35: soir
B36: paté de lapin | C36: velouté d'asperges
B37: purée de pommes de terre | C37: pates à la tomate
B38: tiramisu | C38: tarte au citron
B40: mercredi
B41: midi | C41: soir
B42: salade de riz | C42: salade de pommes de terre
B43: omelette sans oeufs | C43: pates carbonara
B44: yaourt | C44: smoothie fraise-menthe
